Workbook

Sheet CONTENTS
C1: =IF(dms_MultiYear_ResponseFlag="Yes","REGULATORY REPORTING STATEMENT - HISTORICAL INFORMATION",INDEX(dms_Worksheet_List,MATCH(dms_Model,dms_Model_List))) -> REGULATORY REPORTING STATEMENT
C2: =INDEX(dms_TradingNameFull_List,MATCH(dms_TradingName,dms_TradingName_List)) -> Powercor Australia
C3: =CONCATENATE("REGULATORY PERIOD FROM ", FRCP_y1," TO ",dms_MultiYear_FinalYear_Result) -> REGULATORY PERIOD FROM 2026-27 TO 2030-31
D7: CONTENTS
D9: DRAFT RIN ONLY - DO NOT USE FOR SUBMISSION
D11: TEMPLATE | E11: JUNE 2024 - DRAFT RIN
D13: SUBMISSION | E13: Business & other details
D15: NETWORK | E15: OPTIONAL 5.4 MD & utilisation

Sheet Business & other details
V1: =INDEX(dms_Worksheet_List,MATCH(dms_Model,dms_Model_List)) -> REGULATORY REPORTING STATEMENT
V2: =INDEX(dms_TradingNameFull_List,MATCH(dms_TradingName,dms_TradingName_List)) -> Powercor Australia
V3: =CONCATENATE("REGULATORY PERIOD FROM ", FRCP_y1," TO ",dms_MultiYear_FinalYear_Result) -> REGULATORY PERIOD FROM 2026-27 TO 2030-31
V4: BUSINESS & OTHER DETAILS
V6: INSTRUCTIONS
V7: Complete the following business details regulatory template before entering data or values in any other regulatory template. This regulatory template is linked to other cells within the spreadsheet and automatically generates column headings and conditional formatting to distinguish business specific input and non-input cells.
Q9: SUBMISSION PARTICULARS INPUT SHEET
Q11: DRAFT TEMPLATE ONLY
Q12: DO NOT USE FOR SUBMISSIONS
V15: ENTITY DETAILS
V17: Business Name
V19: Short name | AL19: Powercor Australia
V20: ACN/ABN | AL20: =INDEX(dms_ABN_List,MATCH(dms_TradingName,dms_TradingName_List)) -> 89064651109
V24: Business Address | BQ24: Postal Address
V26: Address 1 | BI26: Address 1
V27: Address 2 | BI27: Address 2
V28: Suburb | BI28: Suburb
V29: State | AL29: =INDEX(dms_State_List,MATCH(dms_TradingName,dms_TradingName_List)) -> Vic | AV29: Post code | BI29: State | BQ29: =INDEX(dms_PState_List,MATCH(dms_TradingName,dms_TradingName_List)) -> Vic | CA29: Post code
BA31: `
V33: Contact Names
V35: Name | BI35: Name
V36: Phone | BI36: Phone
V37: Email | BI37: Email
Q42: REGULATORY CONTROL PERIODS
Z45: Forthcoming period | AL45: 2026-27 | AU45: =FRCP_y2 -> 2027-28 | BD45: =FRCP_y3 -> 2028-29 | BM45: =FRCP_y4 -> 2029-30 | BV45: =FRCP_y5 -> 2030-31
AL46: =FRCP_y6 -> 2031-32 | AU46: =FRCP_y7 -> 2032-33 | BD46: =FRCP_y8 -> 2033-34 | BM46: =FRCP_y9 -> 2034-35 | BV46: =FRCP_y10 -> 2035-36
AL47: =FRCP_y11 -> 2036-37 | AU47: =FRCP_y12 -> 2037-38 | BD47: =FRCP_y13 -> 2038-39 | BM47: =FRCP_y14 -> 2039-40 | BV47: =FRCP_y15 -> 2040-41
X49: RESETS | Z49: Current period | AL49: =CRCP_y1 -> 2021-22 | AU49: =CRCP_y2 -> 2022-23 | BD49: =CRCP_y3 -> 2023-24 | BM49: =CRCP_y4 -> 2024-25 | BV49: =CRCP_y5 -> 2025-26
AL50: =CRCP_y6 -> 2026-27 | AU50: =CRCP_y7 -> 2027-28 | BD50: =CRCP_y8 -> 2028-29 | BM50: =CRCP_y9 -> 2029-30 | BV50: =CRCP_y10 -> 2030-31
AL51: =CRCP_y11 -> 2031-32 | AU51: =CRCP_y12 -> 2032-33 | BD51: =CRCP_y13 -> 2033-34 | BM51: =CRCP_y14 -> 2034-35 | BV51: =CRCP_y15 -> 2035-36
Z53: Previous period | AL53: =PRCP_y1 -> 2016-17 | AU53: =PRCP_y2 -> 2017-18 | BD53: =PRCP_y3 -> 2018-19 | BM53: =PRCP_y4 -> 2019-20 | BV53: =PRCP_y5 -> 2020-21
AL54: =PRCP_y6 -> 2021-22 | AU54: =PRCP_y7 -> 2022-23 | BD54: =PRCP_y8 -> 2023-24 | BM54: =PRCP_y9 -> 2024-25 | BV54: =PRCP_y10 -> 2025-26
AL55: =PRCP_y11 -> 2026-27 | AU55: =PRCP_y12 -> 2027-28 | BD55: =PRCP_y13 -> 2028-29 | BM55: =PRCP_y14 -> 2029-30 | BV55: =PRCP_y15 -> 2030-31
Z57: Commencing year | AL57: 2022-23
X58: ANNUAL RINS
Z59: Final year | AL59: 2028-29
Q63: SUBMISSION DETAILS
Z65: RIN type | AL65: =INDIRECT(dms_Model) -> Regulatory Reporting (Reset)
Z67: Source | AL67: Regulatory proposal
X69: THIS FILE | Z69: Data Quality | AL69: Consolidated
Z71: Confidentiality Status | AL71: Confidential
Z73: Amended RIN Amendment Reason | AL73: .
Z77: Submission Date | AL77: 31/01/25 | BD77: Please enter date this file submitted to AER

Sheet OPTIONAL 5.4 MD & utilisation
B1: =INDEX(dms_Worksheet_List,MATCH(dms_Model,dms_Model_List)) -> REGULATORY REPORTING STATEMENT
B2: =INDEX(dms_TradingNameFull_List,MATCH(dms_TradingName,dms_TradingName_List)) -> Powercor Australia
B3: =CONCATENATE("REGULATORY PERIOD FROM ", FRCP_y1," TO ",dms_MultiYear_FinalYear_Result) -> REGULATORY PERIOD FROM 2026-27 TO 2030-31
B4: 5.4 OPTIONAL MAXIMUM DEMAND AND UTILISATION AT SPATIAL LEVEL
B5: TEMPLATE DATE - SEPTEMBER 2024 - FINAL RIN
B8: 5.4.1 - OPTIONAL NON-COINCIDENT & COINCIDENT MAXIMUM DEMAND
B9: SUBTRANSMISSION/ZONE SUBSTATION
B10: Network Level | C10: Substation | D10: Incidence | E10: Seasonal peak | F10: Substation Rating | G10: Adjustments - Embedded Generation | H10: Weather corrected maximum demand 10% POE | I10: Weather corrected maximum demand 10% POE | J10: Weather corrected maximum demand 50% POE | K10: Weather corrected maximum demand 50% POE
A11: UNITS | B11: Subtransmission / Zone | C11: Name | D11: Coincident / non-coincident | E11: Summer/Winter | F11: MVA | G11: MW | H11: MVA | I11: MW | J11: MVA | K11: MW
B12: Zone | C12: AC | D12: Non-coincident | E12: Summer | F12: =_xlfn.XLOOKUP(C12,[1]Sheet1!$A$2:$A$86,[1]Sheet1!$B$2:$B$86) -> 40 | H12: =_xlfn.XLOOKUP(1,('[2]ZSS Results'!$B$4:$B$462="Powercor")*('[2]ZSS Results'!$D$4:$D$462="summer")*('[2]ZSS Results'!$C$4:$C$462=C12),'[2]ZSS Results'!$S$4:$S$462) -> 8.24 | I12: =_xlfn.XLOOKUP(C12,'[3]zss forecast'!$B$3:$B$155,'[3]zss forecast'!$CC$3:$CC$155) -> 7.73 | J12: =_xlfn.XLOOKUP(1,('[2]ZSS Results'!$B$4:$B$462="Powercor")*('[2]ZSS Results'!$D$4:$D$462="summer")*('[2]ZSS Results'!$C$4:$C$462=C12),'[2]ZSS Results'!$AO$4:$AO$462) -> 5.82 | K12: =_xlfn.XLOOKUP(C12,'[3]zss forecast'!$B$3:$B$155,'[3]zss forecast'!$DF$3:$DF$155) -> 5.61
B13: Zone | C13: AL | D13: Non-coincident | E13: Summer | F13: =_xlfn.XLOOKUP(C13,[1]Sheet1!$A$2:$A$86,[1]Sheet1!$B$2:$B$86) -> 30 | H13: =_xlfn.XLOOKUP(1,('[2]ZSS Results'!$B$4:$B$462="Powercor")*('[2]ZSS Results'!$D$4:$D$462="summer")*('[2]ZSS Results'!$C$4:$C$462=C13),'[2]ZSS Results'!$S$4:$S$462) -> 25.47 | I13: =_xlfn.XLOOKUP(C13,'[3]zss forecast'!$B$3:$B$155,'[3]zss forecast'!$CC$3:$CC$155) -> 24.81 | J13: =_xlfn.XLOOKUP(1,('[2]ZSS Results'!$B$4:$B$462="Powercor")*('[2]ZSS Results'!$D$4:$D$462="summer")*('[2]ZSS Results'!$C$4:$C$462=C13),'[2]ZSS Results'!$AO$4:$AO$462) -> 21.06 | K13: =_xlfn.XLOOKUP(C13,'[3]zss forecast'!$B$3:$B$155,'[3]zss forecast'!$DF$3:$DF$155) -> 21.48
B14: Zone | C14: ART | D14: Non-coincident | E14: Summer | F14: =_xlfn.XLOOKUP(C14,[1]Sheet1!$A$2:$A$86,[1]Sheet1!$B$2:$B$86) -> 20 | H14: =_xlfn.XLOOKUP(1,('[2]ZSS Results'!$B$4:$B$462="Powercor")*('[2]ZSS Results'!$D$4:$D$462="summer")*('[2]ZSS Results'!$C$4:$C$462=C14),'[2]ZSS Results'!$S$4:$S$462) -> 16.07 | I14: =_xlfn.XLOOKUP(C14,'[3]zss forecast'!$B$3:$B$155,'[3]zss forecast'!$CC$3:$CC$155) -> 16.06 | J14: =_xlfn.XLOOKUP(1,('[2]ZSS Results'!$B$4:$B$462="Powercor")*('[2]ZSS Results'!$D$4:$D$462="summer")*('[2]ZSS Results'!$C$4:$C$462=C14),'[2]ZSS Results'!$AO$4:$AO$462) -> 14.17 | K14: =_xlfn.XLOOKUP(C14,'[3]zss forecast'!$B$3:$B$155,'[3]zss forecast'!$DF$3:$DF$155) -> 14.21
B15: Zone | C15: AWT | D15: Non-coincident | E15: Summer | F15: =_xlfn.XLOOKUP(C15,[1]Sheet1!$A$2:$A$86,[1]Sheet1!$B$2:$B$86) -> 66 | H15: =_xlfn.XLOOKUP(1,('[2]ZSS Results'!$B$4:$B$462="Powercor")*('[2]ZSS Results'!$D$4:$D$462="summer")*('[2]ZSS Results'!$C$4:$C$462=C15),'[2]ZSS Results'!$S$4:$S$462) -> 14.71 | I15: =_xlfn.XLOOKUP(C15,'[3]zss forecast'!$B$3:$B$155,'[3]zss forecast'!$CC$3:$CC$155) -> 14.68 | J15: =_xlfn.XLOOKUP(1,('[2]ZSS Results'!$B$4:$B$462="Powercor")*('[2]ZSS Results'!$D$4:$D$462="summer")*('[2]ZSS Results'!$C$4:$C$462=C15),'[2]ZSS Results'!$AO$4:$AO$462) -> 4.21 | K15: =_xlfn.XLOOKUP(C15,'[3]zss forecast'!$B$3:$B$155,'[3]zss forecast'!$DF$3:$DF$155) -> 14.28
B16: Zone | C16: BAE | D16: Non-coincident | E16: Summer | F16: =_xlfn.XLOOKUP(C16,[1]Sheet1!$A$2:$A$86,[1]Sheet1!$B$2:$B$86) -> 33 | H16: =_xlfn.XLOOKUP(1,('[2]ZSS Results'!$B$4:$B$462="Powercor")*('[2]ZSS Results'!$D$4:$D$462="summer")*('[2]ZSS Results'!$C$4:$C$462=C16),'[2]ZSS Results'!$S$4:$S$462) -> 43.94 | I16: =_xlfn.XLOOKUP(C16,'[3]zss forecast'!$B$3:$B$155,'[3]zss forecast'!$CC$3:$CC$155) -> 43.94 | J16: =_xlfn.XLOOKUP(1,('[2]ZSS Results'!$B$4:$B$462="Powercor")*('[2]ZSS Results'!$D$4:$D$462="summer")*('[2]ZSS Results'!$C$4:$C$462=C16),'[2]ZSS Results'!$AO$4:$AO$462) -> 32.24 | K16: =_xlfn.XLOOKUP(C16,'[3]zss forecast'!$B$3:$B$155,'[3]zss forecast'!$DF$3:$DF$155) -> 38.08
B17: Zone | C17: BAN | D17: Non-coincident | E17: Summer | F17: =_xlfn.XLOOKUP(C17,[1]Sheet1!$A$2:$A$86,[1]Sheet1!$B$2:$B$86) -> 120 | H17: =_xlfn.XLOOKUP(1,('[2]ZSS Results'!$B$4:$B$462="Powercor")*('[2]ZSS Results'!$D$4:$D$462="summer")*('[2]ZSS Results'!$C$4:$C$462=C17),'[2]ZSS Results'!$S$4:$S$462) -> 90.2 | I17: =_xlfn.XLOOKUP(C17,'[3]zss forecast'!$B$3:$B$155,'[3]zss forecast'!$CC$3:$CC$155) -> 89.84 | J17: =_xlfn.XLOOKUP(1,('[2]ZSS Results'!$B$4:$B$462="Powercor")*('[2]ZSS Results'!$D$4:$D$462="summer")*('[2]ZSS Results'!$C$4:$C$462=C17),'[2]ZSS Results'!$AO$4:$AO$462) -> 91.56 | K17: =_xlfn.XLOOKUP(C17,'[3]zss forecast'!$B$3:$B$155,'[3]zss forecast'!$DF$3:$DF$155) -> 75.36
B18: Zone | C18: BAS | D18: Non-coincident | E18: Summer | F18: =_xlfn.XLOOKUP(C18,[1]Sheet1!$A$2:$A$86,[1]Sheet1!$B$2:$B$86) -> 99 | H18: =_xlfn.XLOOKUP(1,('[2]ZSS Results'!$B$4:$B$462="Powercor")*('[2]ZSS Results'!$D$4:$D$462="summer")*('[2]ZSS Results'!$C$4:$C$462=C18),'[2]ZSS Results'!$S$4:$S$462) -> 82.43 | I18: =_xlfn.XLOOKUP(C18,'[3]zss forecast'!$B$3:$B$155,'[3]zss forecast'!$CC$3:$CC$155) -> 82.34 | J18: =_xlfn.XLOOKUP(1,('[2]ZSS Results'!$B$4:$B$462="Powercor")*('[2]ZSS Results'!$D$4:$D$462="summer")*('[2]ZSS Results'!$C$4:$C$462=C18),'[2]ZSS Results'!$AO$4:$AO$462) -> 81.7 | K18: =_xlfn.XLOOKUP(C18,'[3]zss forecast'!$B$3:$B$155,'[3]zss forecast'!$DF$3:$DF$155) -> 77.18
B19: Zone | C19: BBD | D19: Non-coincident | E19: Summer | F19: =_xlfn.XLOOKUP(C19,[1]Sheet1!$A$2:$A$86,[1]Sheet1!$B$2:$B$86) -> 66 | H19: =_xlfn.XLOOKUP(1,('[2]ZSS Results'!$B$4:$B$462="Powercor")*('[2]ZSS Results'!$D$4:$D$462="summer")*('[2]ZSS Results'!$C$4:$C$462=C19),'[2]ZSS Results'!$S$4:$S$462) -> 37.69 | I19: =_xlfn.XLOOKUP(C19,'[3]zss forecast'!$B$3:$B$155,'[3]zss forecast'!$CC$3:$CC$155) -> 36.96 | J19: =_xlfn.XLOOKUP(1,('[2]ZSS Results'!$B$4:$B$462="Powercor")*('[2]ZSS Results'!$D$4:$D$462="summer")*('[2]ZSS Results'!$C$4:$C$462=C19),'[2]ZSS Results'!$AO$4:$AO$462) -> 33.17 | K19: =_xlfn.XLOOKUP(C19,'[3]zss forecast'!$B$3:$B$155,'[3]zss forecast'!$DF$3:$DF$155) -> 32.64
B20: Zone | C20: BGO | D20: Non-coincident | E20: Summer | F20: =_xlfn.XLOOKUP(C20,[1]Sheet1!$A$2:$A$86,[1]Sheet1!$B$2:$B$86) -> 66 | H20: =_xlfn.XLOOKUP(1,('[2]ZSS Results'!$B$4:$B$462="Powercor")*('[2]ZSS Results'!$D$4:$D$462="summer")*('[2]ZSS Results'!$C$4:$C$462=C20),'[2]ZSS Results'!$S$4:$S$462) -> 47.22 | I20: =_xlfn.XLOOKUP(C20,'[3]zss forecast'!$B$3:$B$155,'[3]zss forecast'!$CC$3:$CC$155) -> 47.01 | J20: =_xlfn.XLOOKUP(1,('[2]ZSS Results'!$B$4:$B$462="Powercor")*('[2]ZSS Results'!$D$4:$D$462="summer")*('[2]ZSS Results'!$C$4:$C$462=C20),'[2]ZSS Results'!$AO$4:$AO$462) -> 40.39 | K20: =_xlfn.XLOOKUP(C20,'[3]zss forecast'!$B$3:$B$155,'[3]zss forecast'!$DF$3:$DF$155) -> 41.5
B21: Zone | C21: BMH | D21: Non-coincident | E21: Summer | F21: =_xlfn.XLOOKUP(C21,[1]Sheet1!$A$2:$A$86,[1]Sheet1!$B$2:$B$86) -> 27 | H21: =_xlfn.XLOOKUP(1,('[2]ZSS Results'!$B$4:$B$462="Powercor")*('[2]ZSS Results'!$D$4:$D$462="summer")*('[2]ZSS Results'!$C$4:$C$462=C21),'[2]ZSS Results'!$S$4:$S$462) -> 36.63 | I21: =_xlfn.XLOOKUP(C21,'[3]zss forecast'!$B$3:$B$155,'[3]zss forecast'!$CC$3:$CC$155) -> 36.34 | J21: =_xlfn.XLOOKUP(1,('[2]ZSS Results'!$B$4:$B$462="Powercor")*('[2]ZSS Results'!$D$4:$D$462="summer")*('[2]ZSS Results'!$C$4:$C$462=C21),'[2]ZSS Results'!$AO$4:$AO$462) -> 30.01 | K21: =_xlfn.XLOOKUP(C21,'[3]zss forecast'!$B$3:$B$155,'[3]zss forecast'!$DF$3:$DF$155) -> 34.02
B22: Zone | C22: CDN | D22: Non-coincident | E22: Summer | F22: =_xlfn.XLOOKUP(C22,[1]Sheet1!$A$2:$A$86,[1]Sheet1!$B$2:$B$86) -> 20 | H22: =_xlfn.XLOOKUP(1,('[2]ZSS Results'!$B$4:$B$462="Powercor")*('[2]ZSS Results'!$D$4:$D$462="summer")*('[2]ZSS Results'!$C$4:$C$462=C22),'[2]ZSS Results'!$S$4:$S$462) -> 15.31 | I22: =_xlfn.XLOOKUP(C22,'[3]zss forecast'!$B$3:$B$155,'[3]zss forecast'!$CC$3:$CC$155) -> 15.31 | J22: =_xlfn.XLOOKUP(1,('[2]ZSS Results'!$B$4:$B$462="Powercor")*('[2]ZSS Results'!$D$4:$D$462="summer")*('[2]ZSS Results'!$C$4:$C$462=C22),'[2]ZSS Results'!$AO$4:$AO$462) -> 13.69 | K22: =_xlfn.XLOOKUP(C22,'[3]zss forecast'!$B$3:$B$155,'[3]zss forecast'!$DF$3:$DF$155) -> 13.93
B23: Zone | C23: CHA | D23: Non-coincident | E23: Summer | F23: =_xlfn.XLOOKUP(C23,[1]Sheet1!$A$2:$A$86,[1]Sheet1!$B$2:$B$86) -> 27 | H23: =_xlfn.XLOOKUP(1,('[2]ZSS Results'!$B$4:$B$462="Powercor")*('[2]ZSS Results'!$D$4:$D$462="summer")*('[2]ZSS Results'!$C$4:$C$462=C23),'[2]ZSS Results'!$S$4:$S$462) -> 27.01 | I23: =_xlfn.XLOOKUP(C23,'[3]zss forecast'!$B$3:$B$155,'[3]zss forecast'!$CC$3:$CC$155) -> 26.95 | J23: =_xlfn.XLOOKUP(1,('[2]ZSS Results'!$B$4:$B$462="Powercor")*('[2]ZSS Results'!$D$4:$D$462="summer")*('[2]ZSS Results'!$C$4:$C$462=C23),'[2]ZSS Results'!$AO$4:$AO$462) -> 18.49 | K23: =_xlfn.XLOOKUP(C23,'[3]zss forecast'!$B$3:$B$155,'[3]zss forecast'!$DF$3:$DF$155) -> 18.28
B24: Zone | C24: CHM | D24: Non-coincident | E24: Summer | F24: =_xlfn.XLOOKUP(C24,[1]Sheet1!$A$2:$A$86,[1]Sheet1!$B$2:$B$86) -> 33 | H24: =_xlfn.XLOOKUP(1,('[2]ZSS Results'!$B$4:$B$462="Powercor")*('[2]ZSS Results'!$D$4:$D$462="summer")*('[2]ZSS Results'!$C$4:$C$462=C24),'[2]ZSS Results'!$S$4:$S$462) -> 2.19 | I24: =_xlfn.XLOOKUP(C24,'[3]zss forecast'!$B$3:$B$155,'[3]zss forecast'!$CC$3:$CC$155) -> 2.18 | J24: =_xlfn.XLOOKUP(1,('[2]ZSS Results'!$B$4:$B$462="Powercor")*('[2]ZSS Results'!$D$4:$D$462="summer")*('[2]ZSS Results'!$C$4:$C$462=C24),'[2]ZSS Results'!$AO$4:$AO$462) -> 2.11 | K24: =_xlfn.XLOOKUP(C24,'[3]zss forecast'!$B$3:$B$155,'[3]zss forecast'!$DF$3:$DF$155) -> 2.08
B25: Zone | C25: CLC | D25: Non-coincident | E25: Summer | F25: =_xlfn.XLOOKUP(C25,[1]Sheet1!$A$2:$A$86,[1]Sheet1!$B$2:$B$86) -> 79 | H25: =_xlfn.XLOOKUP(1,('[2]ZSS Results'!$B$4:$B$462="Powercor")*('[2]ZSS Results'!$D$4:$D$462="summer")*('[2]ZSS Results'!$C$4:$C$462=C25),'[2]ZSS Results'!$S$4:$S$462) -> 46.07 | I25: =_xlfn.XLOOKUP(C25,'[3]zss forecast'!$B$3:$B$155,'[3]zss forecast'!$CC$3:$CC$155) -> 46.07 | J25: =_xlfn.XLOOKUP(1,('[2]ZSS Results'!$B$4:$B$462="Powercor")*('[2]ZSS Results'!$D$4:$D$462="summer")*('[2]ZSS Results'!$C$4:$C$462=C25),'[2]ZSS Results'!$AO$4:$AO$462) -> 40.51 | K25: =_xlfn.XLOOKUP(C25,'[3]zss forecast'!$B$3:$B$155,'[3]zss forecast'!$DF$3:$DF$155) -> 42.56
B26: Zone | C26: CME | D26: Non-coincident | E26: Summer | F26: =_xlfn.XLOOKUP(C26,[1]Sheet1!$A$2:$A$86,[1]Sheet1!$B$2:$B$86) -> 40.5 | H26: =_xlfn.XLOOKUP(1,('[2]ZSS Results'!$B$4:$B$462="Powercor")*('[2]ZSS Results'!$D$4:$D$462="summer")*('[2]ZSS Results'!$C$4:$C$462=C26),'[2]ZSS Results'!$S$4:$S$462) -> 45.34 | I26: =_xlfn.XLOOKUP(C26,'[3]zss forecast'!$B$3:$B$155,'[3]zss forecast'!$CC$3:$CC$155) -> 45.34 | J26: =_xlfn.XLOOKUP(1,('[2]ZSS Results'!$B$4:$B$462="Powercor")*('[2]ZSS Results'!$D$4:$D$462="summer")*('[2]ZSS Results'!$C$4:$C$462=C26),'[2]ZSS Results'!$AO$4:$AO$462) -> 36.01 | K26: =_xlfn.XLOOKUP(C26,'[3]zss forecast'!$B$3:$B$155,'[3]zss forecast'!$DF$3:$DF$155) -> 36.74
B27: Zone | C27: CMN | D27: Non-coincident | E27: Summer | F27: =_xlfn.XLOOKUP(C27,[1]Sheet1!$A$2:$A$86,[1]Sheet1!$B$2:$B$86) -> 66 | H27: =_xlfn.XLOOKUP(1,('[2]ZSS Results'!$B$4:$B$462="Powercor")*('[2]ZSS Results'!$D$4:$D$462="summer")*('[2]ZSS Results'!$C$4:$C$462=C27),'[2]ZSS Results'!$S$4:$S$462) -> 33.13 | I27: =_xlfn.XLOOKUP(C27,'[3]zss forecast'!$B$3:$B$155,'[3]zss forecast'!$CC$3:$CC$155) -> 33.05 | J27: =_xlfn.XLOOKUP(1,('[2]ZSS Results'!$B$4:$B$462="Powercor")*('[2]ZSS Results'!$D$4:$D$462="summer")*('[2]ZSS Results'!$C$4:$C$462=C27),'[2]ZSS Results'!$AO$4:$AO$462) -> 27.39 | K27: =_xlfn.XLOOKUP(C27,'[3]zss forecast'!$B$3:$B$155,'[3]zss forecast'!$DF$3:$DF$155) -> 28.55
B28: Zone | C28: COB | D28: Non-coincident | E28: Summer | F28: =_xlfn.XLOOKUP(C28,[1]Sheet1!$A$2:$A$86,[1]Sheet1!$B$2:$B$86) -> 26 | H28: =_xlfn.XLOOKUP(1,('[2]ZSS Results'!$B$4:$B$462="Powercor")*('[2]ZSS Results'!$D$4:$D$462="summer")*('[2]ZSS Results'!$C$4:$C$462=C28),'[2]ZSS Results'!$S$4:$S$462) -> 16.62 | I28: =_xlfn.XLOOKUP(C28,'[3]zss forecast'!$B$3:$B$155,'[3]zss forecast'!$CC$3:$CC$155) -> 16.19 | J28: =_xlfn.XLOOKUP(1,('[2]ZSS Results'!$B$4:$B$462="Powercor")*('[2]ZSS Results'!$D$4:$D$462="summer")*('[2]ZSS Results'!$C$4:$C$462=C28),'[2]ZSS Results'!$AO$4:$AO$462) -> 14.1 | K28: =_xlfn.XLOOKUP(C28,'[3]zss forecast'!$B$3:$B$155,'[3]zss forecast'!$DF$3:$DF$155) -> 13.37
B29: Zone | C29: CRO | D29: Non-coincident | E29: Summer | F29: =_xlfn.XLOOKUP(C29,[1]Sheet1!$A$2:$A$86,[1]Sheet1!$B$2:$B$86) -> 60 | H29: =_xlfn.XLOOKUP(1,('[2]ZSS Results'!$B$4:$B$462="Powercor")*('[2]ZSS Results'!$D$4:$D$462="summer")*('[2]ZSS Results'!$C$4:$C$462=C29),'[2]ZSS Results'!$S$4:$S$462) -> 40.33 | I29: =_xlfn.XLOOKUP(C29,'[3]zss forecast'!$B$3:$B$155,'[3]zss forecast'!$CC$3:$CC$155) -> 39.06 | J29: =_xlfn.XLOOKUP(1,('[2]ZSS Results'!$B$4:$B$462="Powercor")*('[2]ZSS Results'!$D$4:$D$462="summer")*('[2]ZSS Results'!$C$4:$C$462=C29),'[2]ZSS Results'!$AO$4:$AO$462) -> 33.79 | K29: =_xlfn.XLOOKUP(C29,'[3]zss forecast'!$B$3:$B$155,'[3]zss forecast'!$DF$3:$DF$155) -> 34.21
B30: Zone | C30: CTN | D30: Non-coincident | E30: Summer | F30: =_xlfn.XLOOKUP(C30,[1]Sheet1!$A$2:$A$86,[1]Sheet1!$B$2:$B$86) -> 39.5 | H30: =_xlfn.XLOOKUP(1,('[2]ZSS Results'!$B$4:$B$462="Powercor")*('[2]ZSS Results'!$D$4:$D$462="summer")*('[2]ZSS Results'!$C$4:$C$462=C30),'[2]ZSS Results'!$S$4:$S$462) -> 21.56 | I30: =_xlfn.XLOOKUP(C30,'[3]zss forecast'!$B$3:$B$155,'[3]zss forecast'!$CC$3:$CC$155) -> 20.88 | J30: =_xlfn.XLOOKUP(1,('[2]ZSS Results'!$B$4:$B$462="Powercor")*('[2]ZSS Results'!$D$4:$D$462="summer")*('[2]ZSS Results'!$C$4:$C$462=C30),'[2]ZSS Results'!$AO$4:$AO$462) -> 19.62 | K30: =_xlfn.XLOOKUP(C30,'[3]zss forecast'!$B$3:$B$155,'[3]zss forecast'!$DF$3:$DF$155) -> 19.16
B31: Zone | C31: DDL | D31: Non-coincident | E31: Summer | F31: =_xlfn.XLOOKUP(C31,[1]Sheet1!$A$2:$A$86,[1]Sheet1!$B$2:$B$86) -> 66 | H31: =_xlfn.XLOOKUP(1,('[2]ZSS Results'!$B$4:$B$462="Powercor")*('[2]ZSS Results'!$D$4:$D$462="summer")*('[2]ZSS Results'!$C$4:$C$462=C31),'[2]ZSS Results'!$S$4:$S$462) -> 83.08 | I31: =_xlfn.XLOOKUP(C31,'[3]zss forecast'!$B$3:$B$155,'[3]zss forecast'!$CC$3:$CC$155) -> 83.02 | J31: =_xlfn.XLOOKUP(1,('[2]ZSS Results'!$B$4:$B$462="Powercor")*('[2]ZSS Results'!$D$4:$D$462="summer")*('[2]ZSS Results'!$C$4:$C$462=C31),'[2]ZSS Results'!$AO$4:$AO$462) -> 67.38 | K31: =_xlfn.XLOOKUP(C31,'[3]zss forecast'!$B$3:$B$155,'[3]zss forecast'!$DF$3:$DF$155) -> 75.98
B32: Zone | C32: DLF | D32: Non-coincident | E32: Summer | F32: =_xlfn.XLOOKUP(C32,[1]Sheet1!$A$2:$A$86,[1]Sheet1!$B$2:$B$86) -> 66 | H32: =_xlfn.XLOOKUP(1,('[2]ZSS Results'!$B$4:$B$462="Powercor")*('[2]ZSS Results'!$D$4:$D$462="summer")*('[2]ZSS Results'!$C$4:$C$462=C32),'[2]ZSS Results'!$S$4:$S$462) -> 22.97 | I32: =_xlfn.XLOOKUP(C32,'[3]zss forecast'!$B$3:$B$155,'[3]zss forecast'!$CC$3:$CC$155) -> 22.74 | J32: =_xlfn.XLOOKUP(1,('[2]ZSS Results'!$B$4:$B$462="Powercor")*('[2]ZSS Results'!$D$4:$D$462="summer")*('[2]ZSS Results'!$C$4:$C$462=C32),'[2]ZSS Results'!$AO$4:$AO$462) -> 17.55 | K32: =_xlfn.XLOOKUP(C32,'[3]zss forecast'!$B$3:$B$155,'[3]zss forecast'!$DF$3:$DF$155) -> 20.55
B33: Zone | C33: ECA | D33: Non-coincident | E33: Summer | F33: =_xlfn.XLOOKUP(C33,[1]Sheet1!$A$2:$A$86,[1]Sheet1!$B$2:$B$86) -> 40.5 | H33: =_xlfn.XLOOKUP(1,('[2]ZSS Results'!$B$4:$B$462="Powercor")*('[2]ZSS Results'!$D$4:$D$462="summer")*('[2]ZSS Results'!$C$4:$C$462=C33),'[2]ZSS Results'!$S$4:$S$462) -> 42.72 | I33: =_xlfn.XLOOKUP(C33,'[3]zss forecast'!$B$3:$B$155,'[3]zss forecast'!$CC$3:$CC$155) -> 42.62 | J33: =_xlfn.XLOOKUP(1,('[2]ZSS Results'!$B$4:$B$462="Powercor")*('[2]ZSS Results'!$D$4:$D$462="summer")*('[2]ZSS Results'!$C$4:$C$462=C33),'[2]ZSS Results'!$AO$4:$AO$462) -> 37.13 | K33: =_xlfn.XLOOKUP(C33,'[3]zss forecast'!$B$3:$B$155,'[3]zss forecast'!$DF$3:$DF$155) -> 38.09
B34: Zone | C34: EHK | D34: Non-coincident | E34: Summer | F34: =_xlfn.XLOOKUP(C34,[1]Sheet1!$A$2:$A$86,[1]Sheet1!$B$2:$B$86) -> 54 | H34: =_xlfn.XLOOKUP(1,('[2]ZSS Results'!$B$4:$B$462="Powercor")*('[2]ZSS Results'!$D$4:$D$462="summer")*('[2]ZSS Results'!$C$4:$C$462=C34),'[2]ZSS Results'!$S$4:$S$462) -> 60.62 | I34: =_xlfn.XLOOKUP(C34,'[3]zss forecast'!$B$3:$B$155,'[3]zss forecast'!$CC$3:$CC$155) -> 60.36 | J34: =_xlfn.XLOOKUP(1,('[2]ZSS Results'!$B$4:$B$462="Powercor")*('[2]ZSS Results'!$D$4:$D$462="summer")*('[2]ZSS Results'!$C$4:$C$462=C34),'[2]ZSS Results'!$AO$4:$AO$462) -> 52.46 | K34: =_xlfn.XLOOKUP(C34,'[3]zss forecast'!$B$3:$B$155,'[3]zss forecast'!$DF$3:$DF$155) -> 55.89
B35: Zone | C35: FNS | D35: Non-coincident | E35: Summer | F35: =_xlfn.XLOOKUP(C35,[1]Sheet1!$A$2:$A$86,[1]Sheet1!$B$2:$B$86) -> 99 | H35: =_xlfn.XLOOKUP(1,('[2]ZSS Results'!$B$4:$B$462="Powercor")*('[2]ZSS Results'!$D$4:$D$462="summer")*('[2]ZSS Results'!$C$4:$C$462=C35),'[2]ZSS Results'!$S$4:$S$462) -> 60.04 | I35: =_xlfn.XLOOKUP(C35,'[3]zss forecast'!$B$3:$B$155,'[3]zss forecast'!$CC$3:$CC$155) -> 59.71 | J35: =_xlfn.XLOOKUP(1,('[2]ZSS Results'!$B$4:$B$462="Powercor")*('[2]ZSS Results'!$D$4:$D$462="summer")*('[2]ZSS Results'!$C$4:$C$462=C35),'[2]ZSS Results'!$AO$4:$AO$462) -> 45.87 | K35: =_xlfn.XLOOKUP(C35,'[3]zss forecast'!$B$3:$B$155,'[3]zss forecast'!$DF$3:$DF$155) -> 51.54
B36: Zone | C36: GB | D36: Non-coincident | E36: Summer | F36: =_xlfn.XLOOKUP(C36,[1]Sheet1!$A$2:$A$86,[1]Sheet1!$B$2:$B$86) -> 37.5 | H36: =_xlfn.XLOOKUP(1,('[2]ZSS Results'!$B$4:$B$462="Powercor")*('[2]ZSS Results'!$D$4:$D$462="summer")*('[2]ZSS Results'!$C$4:$C$462=C36),'[2]ZSS Results'!$S$4:$S$462) -> 17.06 | I36: =_xlfn.XLOOKUP(C36,'[3]zss forecast'!$B$3:$B$155,'[3]zss forecast'!$CC$3:$CC$155) -> 15.79 | J36: =_xlfn.XLOOKUP(1,('[2]ZSS Results'!$B$4:$B$462="Powercor")*('[2]ZSS Results'!$D$4:$D$462="summer")*('[2]ZSS Results'!$C$4:$C$462=C36),'[2]ZSS Results'!$AO$4:$AO$462) -> 15.26 | K36: =_xlfn.XLOOKUP(C36,'[3]zss forecast'!$B$3:$B$155,'[3]zss forecast'!$DF$3:$DF$155) -> 14.4
B37: Zone | C37: GCY | D37: Non-coincident | E37: Summer | F37: =_xlfn.XLOOKUP(C37,[1]Sheet1!$A$2:$A$86,[1]Sheet1!$B$2:$B$86) -> 66 | H37: =_xlfn.XLOOKUP(1,('[2]ZSS Results'!$B$4:$B$462="Powercor")*('[2]ZSS Results'!$D$4:$D$462="summer")*('[2]ZSS Results'!$C$4:$C$462=C37),'[2]ZSS Results'!$S$4:$S$462) -> 54.24 | I37: =_xlfn.XLOOKUP(C37,'[3]zss forecast'!$B$3:$B$155,'[3]zss forecast'!$CC$3:$CC$155) -> 53.47 | J37: =_xlfn.XLOOKUP(1,('[2]ZSS Results'!$B$4:$B$462="Powercor")*('[2]ZSS Results'!$D$4:$D$462="summer")*('[2]ZSS Results'!$C$4:$C$462=C37),'[2]ZSS Results'!$AO$4:$AO$462) -> 45.88 | K37: =_xlfn.XLOOKUP(C37,'[3]zss forecast'!$B$3:$B$155,'[3]zss forecast'!$DF$3:$DF$155) -> 46.21
B38: Zone | C38: GHP | D38: Non-coincident | E38: Summer | F38: =_xlfn.XLOOKUP(C38,[1]Sheet1!$A$2:$A$86,[1]Sheet1!$B$2:$B$86) -> 66 | H38: =_xlfn.XLOOKUP(1,('[2]ZSS Results'!$B$4:$B$462="Powercor")*('[2]ZSS Results'!$D$4:$D$462="summer")*('[2]ZSS Results'!$C$4:$C$462=C38),'[2]ZSS Results'!$S$4:$S$462) -> 40.88 | I38: =_xlfn.XLOOKUP(C38,'[3]zss forecast'!$B$3:$B$155,'[3]zss forecast'!$CC$3:$CC$155) -> 40.82 | J38: =_xlfn.XLOOKUP(1,('[2]ZSS Results'!$B$4:$B$462="Powercor")*('[2]ZSS Results'!$D$4:$D$462="summer")*('[2]ZSS Results'!$C$4:$C$462=C38),'[2]ZSS Results'!$AO$4:$AO$462) -> 33.55 | K38: =_xlfn.XLOOKUP(C38,'[3]zss forecast'!$B$3:$B$155,'[3]zss forecast'!$DF$3:$DF$155) -> 36.28
B39: Zone | C39: GL | D39: Non-coincident | E39: Summer | F39: =_xlfn.XLOOKUP(C39,[1]Sheet1!$A$2:$A$86,[1]Sheet1!$B$2:$B$86) -> 80 | H39: =_xlfn.XLOOKUP(1,('[2]ZSS Results'!$B$4:$B$462="Powercor")*('[2]ZSS Results'!$D$4:$D$462="summer")*('[2]ZSS Results'!$C$4:$C$462=C39),'[2]ZSS Results'!$S$4:$S$462) -> 47.87 | I39: =_xlfn.XLOOKUP(C39,'[3]zss forecast'!$B$3:$B$155,'[3]zss forecast'!$CC$3:$CC$155) -> 47.79 | J39: =_xlfn.XLOOKUP(1,('[2]ZSS Results'!$B$4:$B$462="Powercor")*('[2]ZSS Results'!$D$4:$D$462="summer")*('[2]ZSS Results'!$C$4:$C$462=C39),'[2]ZSS Results'!$AO$4:$AO$462) -> 41.62 | K39: =_xlfn.XLOOKUP(C39,'[3]zss forecast'!$B$3:$B$155,'[3]zss forecast'!$DF$3:$DF$155) -> 44.16
B40: Zone | C40: GLE | D40: Non-coincident | E40: Summer | F40: =_xlfn.XLOOKUP(C40,[1]Sheet1!$A$2:$A$86,[1]Sheet1!$B$2:$B$86) -> 79.5 | H40: =_xlfn.XLOOKUP(1,('[2]ZSS Results'!$B$4:$B$462="Powercor")*('[2]ZSS Results'!$D$4:$D$462="summer")*('[2]ZSS Results'!$C$4:$C$462=C40),'[2]ZSS Results'!$S$4:$S$462) -> 69.97 | I40: =_xlfn.XLOOKUP(C40,'[3]zss forecast'!$B$3:$B$155,'[3]zss forecast'!$CC$3:$CC$155) -> 69.84 | J40: =_xlfn.XLOOKUP(1,('[2]ZSS Results'!$B$4:$B$462="Powercor")*('[2]ZSS Results'!$D$4:$D$462="summer")*('[2]ZSS Results'!$C$4:$C$462=C40),'[2]ZSS Results'!$AO$4:$AO$462) -> 60.49 | K40: =_xlfn.XLOOKUP(C40,'[3]zss forecast'!$B$3:$B$155,'[3]zss forecast'!$DF$3:$DF$155) -> 63.68
B41: Zone | C41: GSB | D41: Non-coincident | E41: Summer | F41: =_xlfn.XLOOKUP(C41,[1]Sheet1!$A$2:$A$86,[1]Sheet1!$B$2:$B$86) -> 66 | H41: =_xlfn.XLOOKUP(1,('[2]ZSS Results'!$B$4:$B$462="Powercor")*('[2]ZSS Results'!$D$4:$D$462="summer")*('[2]ZSS Results'!$C$4:$C$462=C41),'[2]ZSS Results'!$S$4:$S$462) -> 35.17 | I41: =_xlfn.XLOOKUP(C41,'[3]zss forecast'!$B$3:$B$155,'[3]zss forecast'!$CC$3:$CC$155) -> 35.15 | J41: =_xlfn.XLOOKUP(1,('[2]ZSS Results'!$B$4:$B$462="Powercor")*('[2]ZSS Results'!$D$4:$D$462="summer")*('[2]ZSS Results'!$C$4:$C$462=C41),'[2]ZSS Results'!$AO$4:$AO$462) -> 29.33 | K41: =_xlfn.XLOOKUP(C41,'[3]zss forecast'!$B$3:$B$155,'[3]zss forecast'!$DF$3:$DF$155) -> 31.8
B42: Zone | C42: HSM | D42: Non-coincident | E42: Summer | F42: =_xlfn.XLOOKUP(C42,[1]Sheet1!$A$2:$A$86,[1]Sheet1!$B$2:$B$86) -> 40.5 | H42: =_xlfn.XLOOKUP(1,('[2]ZSS Results'!$B$4:$B$462="Powercor")*('[2]ZSS Results'!$D$4:$D$462="summer")*('[2]ZSS Results'!$C$4:$C$462=C42),'[2]ZSS Results'!$S$4:$S$462) -> 43.11 | I42: =_xlfn.XLOOKUP(C42,'[3]zss forecast'!$B$3:$B$155,'[3]zss forecast'!$CC$3:$CC$155) -> 42.94 | J42: =_xlfn.XLOOKUP(1,('[2]ZSS Results'!$B$4:$B$462="Powercor")*('[2]ZSS Results'!$D$4:$D$462="summer")*('[2]ZSS Results'!$C$4:$C$462=C42),'[2]ZSS Results'!$AO$4:$AO$462) -> 40.78 | K42: =_xlfn.XLOOKUP(C42,'[3]zss forecast'!$B$3:$B$155,'[3]zss forecast'!$DF$3:$DF$155) -> 40.8
B43: Zone | C43: HTN | D43: Non-coincident | E43: Summer | F43: =_xlfn.XLOOKUP(C43,[1]Sheet1!$A$2:$A$86,[1]Sheet1!$B$2:$B$86) -> 39.5 | H43: =_xlfn.XLOOKUP(1,('[2]ZSS Results'!$B$4:$B$462="Powercor")*('[2]ZSS Results'!$D$4:$D$462="summer")*('[2]ZSS Results'!$C$4:$C$462=C43),'[2]ZSS Results'!$S$4:$S$462) -> 27.85 | I43: =_xlfn.XLOOKUP(C43,'[3]zss forecast'!$B$3:$B$155,'[3]zss forecast'!$CC$3:$CC$155) -> 27.85 | J43: =_xlfn.XLOOKUP(1,('[2]ZSS Results'!$B$4:$B$462="Powercor")*('[2]ZSS Results'!$D$4:$D$462="summer")*('[2]ZSS Results'!$C$4:$C$462=C43),'[2]ZSS Results'!$AO$4:$AO$462) -> 24.86 | K43: =_xlfn.XLOOKUP(C43,'[3]zss forecast'!$B$3:$B$155,'[3]zss forecast'!$DF$3:$DF$155) -> 24.8
B44: Zone | C44: KRT | D44: Non-coincident | E44: Summer | F44: =_xlfn.XLOOKUP(C44,[1]Sheet1!$A$2:$A$86,[1]Sheet1!$B$2:$B$86) -> 40.5 | H44: =_xlfn.XLOOKUP(1,('[2]ZSS Results'!$B$4:$B$462="Powercor")*('[2]ZSS Results'!$D$4:$D$462="summer")*('[2]ZSS Results'!$C$4:$C$462=C44),'[2]ZSS Results'!$S$4:$S$462) -> 38.16 | I44: =_xlfn.XLOOKUP(C44,'[3]zss forecast'!$B$3:$B$155,'[3]zss forecast'!$CC$3:$CC$155) -> 38.15 | J44: =_xlfn.XLOOKUP(1,('[2]ZSS Results'!$B$4:$B$462="Powercor")*('[2]ZSS Results'!$D$4:$D$462="summer")*('[2]ZSS Results'!$C$4:$C$462=C44),'[2]ZSS Results'!$AO$4:$AO$462) -> 29.21 | K44: =_xlfn.XLOOKUP(C44,'[3]zss forecast'!$B$3:$B$155,'[3]zss forecast'!$DF$3:$DF$155) -> 29.28
B45: Zone | C45: KYM | D45: Non-coincident | E45: Summer | F45: =_xlfn.XLOOKUP(C45,[1]Sheet1!$A$2:$A$86,[1]Sheet1!$B$2:$B$86) -> 40.5 | H45: =_xlfn.XLOOKUP(1,('[2]ZSS Results'!$B$4:$B$462="Powercor")*('[2]ZSS Results'!$D$4:$D$462="summer")*('[2]ZSS Results'!$C$4:$C$462=C45),'[2]ZSS Results'!$S$4:$S$462) -> 28.75 | I45: =_xlfn.XLOOKUP(C45,'[3]zss forecast'!$B$3:$B$155,'[3]zss forecast'!$CC$3:$CC$155) -> 28.63 | J45: =_xlfn.XLOOKUP(1,('[2]ZSS Results'!$B$4:$B$462="Powercor")*('[2]ZSS Results'!$D$4:$D$462="summer")*('[2]ZSS Results'!$C$4:$C$462=C45),'[2]ZSS Results'!$AO$4:$AO$462) -> 26.27 | K45: =_xlfn.XLOOKUP(C45,'[3]zss forecast'!$B$3:$B$155,'[3]zss forecast'!$DF$3:$DF$155) -> 26.56
B46: Zone | C46: LV | D46: Non-coincident | E46: Summer | F46: =_xlfn.XLOOKUP(C46,[1]Sheet1!$A$2:$A$86,[1]Sheet1!$B$2:$B$86) -> 99 | H46: =_xlfn.XLOOKUP(1,('[2]ZSS Results'!$B$4:$B$462="Powercor")*('[2]ZSS Results'!$D$4:$D$462="summer")*('[2]ZSS Results'!$C$4:$C$462=C46),'[2]ZSS Results'!$S$4:$S$462) -> 117.98 | I46: =_xlfn.XLOOKUP(C46,'[3]zss forecast'!$B$3:$B$155,'[3]zss forecast'!$CC$3:$CC$155) -> 117.7 | J46: =_xlfn.XLOOKUP(1,('[2]ZSS Results'!$B$4:$B$462="Powercor")*('[2]ZSS Results'!$D$4:$D$462="summer")*('[2]ZSS Results'!$C$4:$C$462=C46),'[2]ZSS Results'!$AO$4:$AO$462) -> 103.13 | K46: =_xlfn.XLOOKUP(C46,'[3]zss forecast'!$B$3:$B$155,'[3]zss forecast'!$DF$3:$DF$155) -> 106.38
B47: Zone | C47: LVN | D47: Non-coincident | E47: Summer | F47: =_xlfn.XLOOKUP(C47,[1]Sheet1!$A$2:$A$86,[1]Sheet1!$B$2:$B$86) -> 99 | H47: =_xlfn.XLOOKUP(1,('[2]ZSS Results'!$B$4:$B$462="Powercor")*('[2]ZSS Results'!$D$4:$D$462="summer")*('[2]ZSS Results'!$C$4:$C$462=C47),'[2]ZSS Results'!$S$4:$S$462) -> 95.22 | I47: =_xlfn.XLOOKUP(C47,'[3]zss forecast'!$B$3:$B$155,'[3]zss forecast'!$CC$3:$CC$155) -> 92.94 | J47: =_xlfn.XLOOKUP(1,('[2]ZSS Results'!$B$4:$B$462="Powercor")*('[2]ZSS Results'!$D$4:$D$462="summer")*('[2]ZSS Results'!$C$4:$C$462=C47),'[2]ZSS Results'!$AO$4:$AO$462) -> 75.65 | K47: =_xlfn.XLOOKUP(C47,'[3]zss forecast'!$B$3:$B$155,'[3]zss forecast'!$DF$3:$DF$155) -> 76.73
B48: Zone | C48: LVN11 | D48: Non-coincident | E48: Summer | F48: =_xlfn.XLOOKUP(C48,[1]Sheet1!$A$2:$A$86,[1]Sheet1!$B$2:$B$86) -> 30 | H48: =_xlfn.XLOOKUP(1,('[2]ZSS Results'!$B$4:$B$462="Powercor")*('[2]ZSS Results'!$D$4:$D$462="summer")*('[2]ZSS Results'!$C$4:$C$462=C48),'[2]ZSS Results'!$S$4:$S$462) -> 14.05 | I48: =_xlfn.XLOOKUP(C48,'[3]zss forecast'!$B$3:$B$155,'[3]zss forecast'!$CC$3:$CC$155) -> 13.56 | J48: =_xlfn.XLOOKUP(1,('[2]ZSS Results'!$B$4:$B$462="Powercor")*('[2]ZSS Results'!$D$4:$D$462="summer")*('[2]ZSS Results'!$C$4:$C$462=C48),'[2]ZSS Results'!$AO$4:$AO$462) -> 13.95 | K48: =_xlfn.XLOOKUP(C48,'[3]zss forecast'!$B$3:$B$155,'[3]zss forecast'!$DF$3:$DF$155) -> 13.48
B49: Zone | C49: MBN | D49: Non-coincident | E49: Summer | F49: =_xlfn.XLOOKUP(C49,[1]Sheet1!$A$2:$A$86,[1]Sheet1!$B$2:$B$86) -> 59 | H49: =_xlfn.XLOOKUP(1,('[2]ZSS Results'!$B$4:$B$462="Powercor")*('[2]ZSS Results'!$D$4:$D$462="summer")*('[2]ZSS Results'!$C$4:$C$462=C49),'[2]ZSS Results'!$S$4:$S$462) -> 55.75 | I49: =_xlfn.XLOOKUP(C49,'[3]zss forecast'!$B$3:$B$155,'[3]zss forecast'!$CC$3:$CC$155) -> 54.84 | J49: =_xlfn.XLOOKUP(1,('[2]ZSS Results'!$B$4:$B$462="Powercor")*('[2]ZSS Results'!$D$4:$D$462="summer")*('[2]ZSS Results'!$C$4:$C$462=C49),'[2]ZSS Results'!$AO$4:$AO$462) -> 48.11 | K49: =_xlfn.XLOOKUP(C49,'[3]zss forecast'!$B$3:$B$155,'[3]zss forecast'!$DF$3:$DF$155) -> 49.65
B50: Zone | C50: MDA | D50: Non-coincident | E50: Summer | F50: =_xlfn.XLOOKUP(C50,[1]Sheet1!$A$2:$A$86,[1]Sheet1!$B$2:$B$86) -> 66 | H50: =_xlfn.XLOOKUP(1,('[2]ZSS Results'!$B$4:$B$462="Powercor")*('[2]ZSS Results'!$D$4:$D$462="summer")*('[2]ZSS Results'!$C$4:$C$462=C50),'[2]ZSS Results'!$S$4:$S$462) -> 57.92 | I50: =_xlfn.XLOOKUP(C50,'[3]zss forecast'!$B$3:$B$155,'[3]zss forecast'!$CC$3:$CC$155) -> 56.77 | J50: =_xlfn.XLOOKUP(1,('[2]ZSS Results'!$B$4:$B$462="Powercor")*('[2]ZSS Results'!$D$4:$D$462="summer")*('[2]ZSS Results'!$C$4:$C$462=C50),'[2]ZSS Results'!$AO$4:$AO$462) -> 51.1 | K50: =_xlfn.XLOOKUP(C50,'[3]zss forecast'!$B$3:$B$155,'[3]zss forecast'!$DF$3:$DF$155) -> 50.81
B51: Zone | C51: MLN | D51: Non-coincident | E51: Summer | F51: =_xlfn.XLOOKUP(C51,[1]Sheet1!$A$2:$A$86,[1]Sheet1!$B$2:$B$86) -> 99 | H51: =_xlfn.XLOOKUP(1,('[2]ZSS Results'!$B$4:$B$462="Powercor")*('[2]ZSS Results'!$D$4:$D$462="summer")*('[2]ZSS Results'!$C$4:$C$462=C51),'[2]ZSS Results'!$S$4:$S$462) -> 142.87 | I51: =_xlfn.XLOOKUP(C51,'[3]zss forecast'!$B$3:$B$155,'[3]zss forecast'!$CC$3:$CC$155) -> 142.73 | J51: =_xlfn.XLOOKUP(1,('[2]ZSS Results'!$B$4:$B$462="Powercor")*('[2]ZSS Results'!$D$4:$D$462="summer")*('[2]ZSS Results'!$C$4:$C$462=C51),'[2]ZSS Results'!$AO$4:$AO$462) -> 106.03 | K51: =_xlfn.XLOOKUP(C51,'[3]zss forecast'!$B$3:$B$155,'[3]zss forecast'!$DF$3:$DF$155) -> 129.08
B52: Zone | C52: MNA | D52: Non-coincident | E52: Summer | F52: =_xlfn.XLOOKUP(C52,[1]Sheet1!$A$2:$A$86,[1]Sheet1!$B$2:$B$86) -> 66 | H52: =_xlfn.XLOOKUP(1,('[2]ZSS Results'!$B$4:$B$462="Powercor")*('[2]ZSS Results'!$D$4:$D$462="summer")*('[2]ZSS Results'!$C$4:$C$462=C52),'[2]ZSS Results'!$S$4:$S$462) -> 50.75 | I52: =_xlfn.XLOOKUP(C52,'[3]zss forecast'!$B$3:$B$155,'[3]zss forecast'!$CC$3:$CC$155) -> 49.18 | J52: =_xlfn.XLOOKUP(1,('[2]ZSS Results'!$B$4:$B$462="Powercor")*('[2]ZSS Results'!$D$4:$D$462="summer")*('[2]ZSS Results'!$C$4:$C$462=C52),'[2]ZSS Results'!$AO$4:$AO$462) -> 43.9 | K52: =_xlfn.XLOOKUP(C52,'[3]zss forecast'!$B$3:$B$155,'[3]zss forecast'!$DF$3:$DF$155) -> 44.24
B53: Zone | C53: MRO | D53: Non-coincident | E53: Summer | F53: =_xlfn.XLOOKUP(C53,[1]Sheet1!$A$2:$A$86,[1]Sheet1!$B$2:$B$86) -> 27 | H53: =_xlfn.XLOOKUP(1,('[2]ZSS Results'!$B$4:$B$462="Powercor")*('[2]ZSS Results'!$D$4:$D$462="summer")*('[2]ZSS Results'!$C$4:$C$462=C53),'[2]ZSS Results'!$S$4:$S$462) -> 23.77 | I53: =_xlfn.XLOOKUP(C53,'[3]zss forecast'!$B$3:$B$155,'[3]zss forecast'!$CC$3:$CC$155) -> 23.74 | J53: =_xlfn.XLOOKUP(1,('[2]ZSS Results'!$B$4:$B$462="Powercor")*('[2]ZSS Results'!$D$4:$D$462="summer")*('[2]ZSS Results'!$C$4:$C$462=C53),'[2]ZSS Results'!$AO$4:$AO$462) -> 21.56 | K53: =_xlfn.XLOOKUP(C53,'[3]zss forecast'!$B$3:$B$155,'[3]zss forecast'!$DF$3:$DF$155) -> 21.9
B54: Zone | C54: MTC | D54: Non-coincident | E54: Summer | F54: =_xlfn.XLOOKUP(C54,[1]Sheet1!$A$2:$A$86,[1]Sheet1!$B$2:$B$86) -> 66 | H54: =_xlfn.XLOOKUP(1,('[2]ZSS Results'!$B$4:$B$462="Powercor")*('[2]ZSS Results'!$D$4:$D$462="summer")*('[2]ZSS Results'!$C$4:$C$462=C54),'[2]ZSS Results'!$S$4:$S$462) -> 104.84 | I54: =_xlfn.XLOOKUP(C54,'[3]zss forecast'!$B$3:$B$155,'[3]zss forecast'!$CC$3:$CC$155) -> 104.84 | J54: =_xlfn.XLOOKUP(1,('[2]ZSS Results'!$B$4:$B$462="Powercor")*('[2]ZSS Results'!$D$4:$D$462="summer")*('[2]ZSS Results'!$C$4:$C$462=C54),'[2]ZSS Results'!$AO$4:$AO$462) -> 0 | K54: =_xlfn.XLOOKUP(C54,'[3]zss forecast'!$B$3:$B$155,'[3]zss forecast'!$DF$3:$DF$155) -> 95.6
B55: Zone | C55: NHL | D55: Non-coincident | E55: Summer | F55: =_xlfn.XLOOKUP(C55,[1]Sheet1!$A$2:$A$86,[1]Sheet1!$B$2:$B$86) -> 20 | H55: =_xlfn.XLOOKUP(1,('[2]ZSS Results'!$B$4:$B$462="Powercor")*('[2]ZSS Results'!$D$4:$D$462="summer")*('[2]ZSS Results'!$C$4:$C$462=C55),'[2]ZSS Results'!$S$4:$S$462) -> 16.37 | I55: =_xlfn.XLOOKUP(C55,'[3]zss forecast'!$B$3:$B$155,'[3]zss forecast'!$CC$3:$CC$155) -> 16.37 | J55: =_xlfn.XLOOKUP(1,('[2]ZSS Results'!$B$4:$B$462="Powercor")*('[2]ZSS Results'!$D$4:$D$462="summer")*('[2]ZSS Results'!$C$4:$C$462=C55),'[2]ZSS Results'!$AO$4:$AO$462) -> 13.48 | K55: =_xlfn.XLOOKUP(C55,'[3]zss forecast'!$B$3:$B$155,'[3]zss forecast'!$DF$3:$DF$155) -> 13.26
B56: Zone | C56: NKA | D56: Non-coincident | E56: Summer | F56: =_xlfn.XLOOKUP(C56,[1]Sheet1!$A$2:$A$86,[1]Sheet1!$B$2:$B$86) -> 39.5 | H56: =_xlfn.XLOOKUP(1,('[2]ZSS Results'!$B$4:$B$462="Powercor")*('[2]ZSS Results'!$D$4:$D$462="summer")*('[2]ZSS Results'!$C$4:$C$462=C56),'[2]ZSS Results'!$S$4:$S$462) -> 34.91 | I56: =_xlfn.XLOOKUP(C56,'[3]zss forecast'!$B$3:$B$155,'[3]zss forecast'!$CC$3:$CC$155) -> 34.9 | J56: =_xlfn.XLOOKUP(1,('[2]ZSS Results'!$B$4:$B$462="Powercor")*('[2]ZSS Results'!$D$4:$D$462="summer")*('[2]ZSS Results'!$C$4:$C$462=C56),'[2]ZSS Results'!$AO$4:$AO$462) -> 29.41 | K56: =_xlfn.XLOOKUP(C56,'[3]zss forecast'!$B$3:$B$155,'[3]zss forecast'!$DF$3:$DF$155) -> 31.5
B57: Zone | C57: OYN | D57: Non-coincident | E57: Summer | F57: =_xlfn.XLOOKUP(C57,[1]Sheet1!$A$2:$A$86,[1]Sheet1!$B$2:$B$86) -> 27 | H57: =_xlfn.XLOOKUP(1,('[2]ZSS Results'!$B$4:$B$462="Powercor")*('[2]ZSS Results'!$D$4:$D$462="summer")*('[2]ZSS Results'!$C$4:$C$462=C57),'[2]ZSS Results'!$S$4:$S$462) -> 7.76 | I57: =_xlfn.XLOOKUP(C57,'[3]zss forecast'!$B$3:$B$155,'[3]zss forecast'!$CC$3:$CC$155) -> 6.75 | J57: =_xlfn.XLOOKUP(1,('[2]ZSS Results'!$B$4:$B$462="Powercor")*('[2]ZSS Results'!$D$4:$D$462="summer")*('[2]ZSS Results'!$C$4:$C$462=C57),'[2]ZSS Results'!$AO$4:$AO$462) -> 7.46 | K57: =_xlfn.XLOOKUP(C57,'[3]zss forecast'!$B$3:$B$155,'[3]zss forecast'!$DF$3:$DF$155) -> 6.38
B58: Zone | C58: PLD | D58: Non-coincident | E58: Summer | F58: =_xlfn.XLOOKUP(C58,[1]Sheet1!$A$2:$A$86,[1]Sheet1!$B$2:$B$86) -> 32 | H58: =_xlfn.XLOOKUP(1,('[2]ZSS Results'!$B$4:$B$462="Powercor")*('[2]ZSS Results'!$D$4:$D$462="summer")*('[2]ZSS Results'!$C$4:$C$462=C58),'[2]ZSS Results'!$S$4:$S$462) -> 15.55 | I58: =_xlfn.XLOOKUP(C58,'[3]zss forecast'!$B$3:$B$155,'[3]zss forecast'!$CC$3:$CC$155) -> 15.53 | J58: =_xlfn.XLOOKUP(1,('[2]ZSS Results'!$B$4:$B$462="Powercor")*('[2]ZSS Results'!$D$4:$D$462="summer")*('[2]ZSS Results'!$C$4:$C$462=C58),'[2]ZSS Results'!$AO$4:$AO$462) -> 14.66 | K58: =_xlfn.XLOOKUP(C58,'[3]zss forecast'!$B$3:$B$155,'[3]zss forecast'!$DF$3:$DF$155) -> 14.32
B59: Zone | C59: RVL | D59: Non-coincident | E59: Summer | F59: =_xlfn.XLOOKUP(C59,[1]Sheet1!$A$2:$A$86,[1]Sheet1!$B$2:$B$86) -> 19.5 | H59: =_xlfn.XLOOKUP(1,('[2]ZSS Results'!$B$4:$B$462="Powercor")*('[2]ZSS Results'!$D$4:$D$462="summer")*('[2]ZSS Results'!$C$4:$C$462=C59),'[2]ZSS Results'!$S$4:$S$462) -> 29.38 | I59: =_xlfn.XLOOKUP(C59,'[3]zss forecast'!$B$3:$B$155,'[3]zss forecast'!$CC$3:$CC$155) -> 29.36 | J59: =_xlfn.XLOOKUP(1,('[2]ZSS Results'!$B$4:$B$462="Powercor")*('[2]ZSS Results'!$D$4:$D$462="summer")*('[2]ZSS Results'!$C$4:$C$462=C59),'[2]ZSS Results'!$AO$4:$AO$462) -> 22.75 | K59: =_xlfn.XLOOKUP(C59,'[3]zss forecast'!$B$3:$B$155,'[3]zss forecast'!$DF$3:$DF$155) -> 25.94
B60: Zone | C60: SA | D60: Non-coincident | E60: Summer | F60: =_xlfn.XLOOKUP(C60,[1]Sheet1!$A$2:$A$86,[1]Sheet1!$B$2:$B$86) -> 93 | H60: =_xlfn.XLOOKUP(1,('[2]ZSS Results'!$B$4:$B$462="Powercor")*('[2]ZSS Results'!$D$4:$D$462="summer")*('[2]ZSS Results'!$C$4:$C$462=C60),'[2]ZSS Results'!$S$4:$S$462) -> 103.41 | I60: =_xlfn.XLOOKUP(C60,'[3]zss forecast'!$B$3:$B$155,'[3]zss forecast'!$CC$3:$CC$155) -> 102.63 | J60: =_xlfn.XLOOKUP(1,('[2]ZSS Results'!$B$4:$B$462="Powercor")*('[2]ZSS Results'!$D$4:$D$462="summer")*('[2]ZSS Results'!$C$4:$C$462=C60),'[2]ZSS Results'!$AO$4:$AO$462) -> 87.81 | K60: =_xlfn.XLOOKUP(C60,'[3]zss forecast'!$B$3:$B$155,'[3]zss forecast'!$DF$3:$DF$155) -> 94.03
B61: Zone | C61: SHL | D61: Non-coincident | E61: Summer | F61: =_xlfn.XLOOKUP(C61,[1]Sheet1!$A$2:$A$86,[1]Sheet1!$B$2:$B$86) -> 40.5 | H61: =_xlfn.XLOOKUP(1,('[2]ZSS Results'!$B$4:$B$462="Powercor")*('[2]ZSS Results'!$D$4:$D$462="summer")*('[2]ZSS Results'!$C$4:$C$462=C61),'[2]ZSS Results'!$S$4:$S$462) -> 38.97 | I61: =_xlfn.XLOOKUP(C61,'[3]zss forecast'!$B$3:$B$155,'[3]zss forecast'!$CC$3:$CC$155) -> 38.92 | J61: =_xlfn.XLOOKUP(1,('[2]ZSS Results'!$B$4:$B$462="Powercor")*('[2]ZSS Results'!$D$4:$D$462="summer")*('[2]ZSS Results'!$C$4:$C$462=C61),'[2]ZSS Results'!$AO$4:$AO$462) -> 36.39 | K61: =_xlfn.XLOOKUP(C61,'[3]zss forecast'!$B$3:$B$155,'[3]zss forecast'!$DF$3:$DF$155) -> 35.88
B62: Zone | C62: SHN | D62: Non-coincident | E62: Summer | F62: =_xlfn.XLOOKUP(C62,[1]Sheet1!$A$2:$A$86,[1]Sheet1!$B$2:$B$86) -> 66 | H62: =_xlfn.XLOOKUP(1,('[2]ZSS Results'!$B$4:$B$462="Powercor")*('[2]ZSS Results'!$D$4:$D$462="summer")*('[2]ZSS Results'!$C$4:$C$462=C62),'[2]ZSS Results'!$S$4:$S$462) -> 40.46 | I62: =_xlfn.XLOOKUP(C62,'[3]zss forecast'!$B$3:$B$155,'[3]zss forecast'!$CC$3:$CC$155) -> 40.45 | J62: =_xlfn.XLOOKUP(1,('[2]ZSS Results'!$B$4:$B$462="Powercor")*('[2]ZSS Results'!$D$4:$D$462="summer")*('[2]ZSS Results'!$C$4:$C$462=C62),'[2]ZSS Results'!$AO$4:$AO$462) -> 34.74 | K62: =_xlfn.XLOOKUP(C62,'[3]zss forecast'!$B$3:$B$155,'[3]zss forecast'!$DF$3:$DF$155) -> 36.43
B63: Zone | C63: SHP | D63: Non-coincident | E63: Summer | F63: =_xlfn.XLOOKUP(C63,[1]Sheet1!$A$2:$A$86,[1]Sheet1!$B$2:$B$86) -> 66 | H63: =_xlfn.XLOOKUP(1,('[2]ZSS Results'!$B$4:$B$462="Powercor")*('[2]ZSS Results'!$D$4:$D$462="summer")*('[2]ZSS Results'!$C$4:$C$462=C63),'[2]ZSS Results'!$S$4:$S$462) -> 34.46 | I63: =_xlfn.XLOOKUP(C63,'[3]zss forecast'!$B$3:$B$155,'[3]zss forecast'!$CC$3:$CC$155) -> 34.17 | J63: =_xlfn.XLOOKUP(1,('[2]ZSS Results'!$B$4:$B$462="Powercor")*('[2]ZSS Results'!$D$4:$D$462="summer")*('[2]ZSS Results'!$C$4:$C$462=C63),'[2]ZSS Results'!$AO$4:$AO$462) -> 24.08 | K63: =_xlfn.XLOOKUP(C63,'[3]zss forecast'!$B$3:$B$155,'[3]zss forecast'!$DF$3:$DF$155) -> 24.16
B64: Zone | C64: SSE | D64: Non-coincident | E64: Summer | F64: =_xlfn.XLOOKUP(C64,[1]Sheet1!$A$2:$A$86,[1]Sheet1!$B$2:$B$86) -> 99 | H64: =_xlfn.XLOOKUP(1,('[2]ZSS Results'!$B$4:$B$462="Powercor")*('[2]ZSS Results'!$D$4:$D$462="summer")*('[2]ZSS Results'!$C$4:$C$462=C64),'[2]ZSS Results'!$S$4:$S$462) -> 78.62 | I64: =_xlfn.XLOOKUP(C64,'[3]zss forecast'!$B$3:$B$155,'[3]zss forecast'!$CC$3:$CC$155) -> 77.32 | J64: =_xlfn.XLOOKUP(1,('[2]ZSS Results'!$B$4:$B$462="Powercor")*('[2]ZSS Results'!$D$4:$D$462="summer")*('[2]ZSS Results'!$C$4:$C$462=C64),'[2]ZSS Results'!$AO$4:$AO$462) -> 69.14 | K64: =_xlfn.XLOOKUP(C64,'[3]zss forecast'!$B$3:$B$155,'[3]zss forecast'!$DF$3:$DF$155) -> 70.96
B65: Zone | C65: STL | D65: Non-coincident | E65: Summer | F65: =_xlfn.XLOOKUP(C65,[1]Sheet1!$A$2:$A$86,[1]Sheet1!$B$2:$B$86) -> 27 | H65: =_xlfn.XLOOKUP(1,('[2]ZSS Results'!$B$4:$B$462="Powercor")*('[2]ZSS Results'!$D$4:$D$462="summer")*('[2]ZSS Results'!$C$4:$C$462=C65),'[2]ZSS Results'!$S$4:$S$462) -> 19.05 | I65: =_xlfn.XLOOKUP(C65,'[3]zss forecast'!$B$3:$B$155,'[3]zss forecast'!$CC$3:$CC$155) -> 18.62 | J65: =_xlfn.XLOOKUP(1,('[2]ZSS Results'!$B$4:$B$462="Powercor")*('[2]ZSS Results'!$D$4:$D$462="summer")*('[2]ZSS Results'!$C$4:$C$462=C65),'[2]ZSS Results'!$AO$4:$AO$462) -> 18.22 | K65: =_xlfn.XLOOKUP(C65,'[3]zss forecast'!$B$3:$B$155,'[3]zss forecast'!$DF$3:$DF$155) -> 17.34
B66: Zone | C66: STN | D66: Non-coincident | E66: Summer | F66: =_xlfn.XLOOKUP(C66,[1]Sheet1!$A$2:$A$86,[1]Sheet1!$B$2:$B$86) -> 79 | H66: =_xlfn.XLOOKUP(1,('[2]ZSS Results'!$B$4:$B$462="Powercor")*('[2]ZSS Results'!$D$4:$D$462="summer")*('[2]ZSS Results'!$C$4:$C$462=C66),'[2]ZSS Results'!$S$4:$S$462) -> 60.31 | I66: =_xlfn.XLOOKUP(C66,'[3]zss forecast'!$B$3:$B$155,'[3]zss forecast'!$CC$3:$CC$155) -> 58.83 | J66: =_xlfn.XLOOKUP(1,('[2]ZSS Results'!$B$4:$B$462="Powercor")*('[2]ZSS Results'!$D$4:$D$462="summer")*('[2]ZSS Results'!$C$4:$C$462=C66),'[2]ZSS Results'!$AO$4:$AO$462) -> 54.73 | K66: =_xlfn.XLOOKUP(C66,'[3]zss forecast'!$B$3:$B$155,'[3]zss forecast'!$DF$3:$DF$155) -> 55.09
B67: Zone | C67: SU | D67: Non-coincident | E67: Summer | F67: =_xlfn.XLOOKUP(C67,[1]Sheet1!$A$2:$A$86,[1]Sheet1!$B$2:$B$86) -> 99 | H67: =_xlfn.XLOOKUP(1,('[2]ZSS Results'!$B$4:$B$462="Powercor")*('[2]ZSS Results'!$D$4:$D$462="summer")*('[2]ZSS Results'!$C$4:$C$462=C67),'[2]ZSS Results'!$S$4:$S$462) -> 109.86 | I67: =_xlfn.XLOOKUP(C67,'[3]zss forecast'!$B$3:$B$155,'[3]zss forecast'!$CC$3:$CC$155) -> 109.23 | J67: =_xlfn.XLOOKUP(1,('[2]ZSS Results'!$B$4:$B$462="Powercor")*('[2]ZSS Results'!$D$4:$D$462="summer")*('[2]ZSS Results'!$C$4:$C$462=C67),'[2]ZSS Results'!$AO$4:$AO$462) -> 89.89 | K67: =_xlfn.XLOOKUP(C67,'[3]zss forecast'!$B$3:$B$155,'[3]zss forecast'!$DF$3:$DF$155) -> 98.86
B68: Zone | C68: TNA | D68: Non-coincident | E68: Summer | F68: =_xlfn.XLOOKUP(C68,[1]Sheet1!$A$2:$A$86,[1]Sheet1!$B$2:$B$86) -> 99 | H68: =_xlfn.XLOOKUP(1,('[2]ZSS Results'!$B$4:$B$462="Powercor")*('[2]ZSS Results'!$D$4:$D$462="summer")*('[2]ZSS Results'!$C$4:$C$462=C68),'[2]ZSS Results'!$S$4:$S$462) -> 146.33 | I68: =_xlfn.XLOOKUP(C68,'[3]zss forecast'!$B$3:$B$155,'[3]zss forecast'!$CC$3:$CC$155) -> 146.16 | J68: =_xlfn.XLOOKUP(1,('[2]ZSS Results'!$B$4:$B$462="Powercor")*('[2]ZSS Results'!$D$4:$D$462="summer")*('[2]ZSS Results'!$C$4:$C$462=C68),'[2]ZSS Results'!$AO$4:$AO$462) -> 136.15 | K68: =_xlfn.XLOOKUP(C68,'[3]zss forecast'!$B$3:$B$155,'[3]zss forecast'!$DF$3:$DF$155) -> 121.05
B69: Zone | C69: TQY | D69: Non-coincident | E69: Summer | F69: =_xlfn.XLOOKUP(C69,[1]Sheet1!$A$2:$A$86,[1]Sheet1!$B$2:$B$86) -> 66 | H69: =_xlfn.XLOOKUP(1,('[2]ZSS Results'!$B$4:$B$462="Powercor")*('[2]ZSS Results'!$D$4:$D$462="summer")*('[2]ZSS Results'!$C$4:$C$462=C69),'[2]ZSS Results'!$S$4:$S$462) -> 44.82 | I69: =_xlfn.XLOOKUP(C69,'[3]zss forecast'!$B$3:$B$155,'[3]zss forecast'!$CC$3:$CC$155) -> 44.8 | J69: =_xlfn.XLOOKUP(1,('[2]ZSS Results'!$B$4:$B$462="Powercor")*('[2]ZSS Results'!$D$4:$D$462="summer")*('[2]ZSS Results'!$C$4:$C$462=C69),'[2]ZSS Results'!$AO$4:$AO$462) -> 36.21 | K69: =_xlfn.XLOOKUP(C69,'[3]zss forecast'!$B$3:$B$155,'[3]zss forecast'!$DF$3:$DF$155) -> 39.45
B70: Zone | C70: TRG | D70: Non-coincident | E70: Summer | F70: =_xlfn.XLOOKUP(C70,[1]Sheet1!$A$2:$A$86,[1]Sheet1!$B$2:$B$86) -> 46.5 | H70: =_xlfn.XLOOKUP(1,('[2]ZSS Results'!$B$4:$B$462="Powercor")*('[2]ZSS Results'!$D$4:$D$462="summer")*('[2]ZSS Results'!$C$4:$C$462=C70),'[2]ZSS Results'!$S$4:$S$462) -> 24.85 | I70: =_xlfn.XLOOKUP(C70,'[3]zss forecast'!$B$3:$B$155,'[3]zss forecast'!$CC$3:$CC$155) -> 24.79 | J70: =_xlfn.XLOOKUP(1,('[2]ZSS Results'!$B$4:$B$462="Powercor")*('[2]ZSS Results'!$D$4:$D$462="summer")*('[2]ZSS Results'!$C$4:$C$462=C70),'[2]ZSS Results'!$AO$4:$AO$462) -> 18.04 | K70: =_xlfn.XLOOKUP(C70,'[3]zss forecast'!$B$3:$B$155,'[3]zss forecast'!$DF$3:$DF$155) -> 18.75
B71: Zone | C71: WBE | D71: Non-coincident | E71: Summer | F71: =_xlfn.XLOOKUP(C71,[1]Sheet1!$A$2:$A$86,[1]Sheet1!$B$2:$B$86) -> 99 | H71: =_xlfn.XLOOKUP(1,('[2]ZSS Results'!$B$4:$B$462="Powercor")*('[2]ZSS Results'!$D$4:$D$462="summer")*('[2]ZSS Results'!$C$4:$C$462=C71),'[2]ZSS Results'!$S$4:$S$462) -> 133.92 | I71: =_xlfn.XLOOKUP(C71,'[3]zss forecast'!$B$3:$B$155,'[3]zss forecast'!$CC$3:$CC$155) -> 133.92 | J71: =_xlfn.XLOOKUP(1,('[2]ZSS Results'!$B$4:$B$462="Powercor")*('[2]ZSS Results'!$D$4:$D$462="summer")*('[2]ZSS Results'!$C$4:$C$462=C71),'[2]ZSS Results'!$AO$4:$AO$462) -> 120.98 | K71: =_xlfn.XLOOKUP(C71,'[3]zss forecast'!$B$3:$B$155,'[3]zss forecast'!$DF$3:$DF$155) -> 118.11
B72: Zone | C72: WBL | D72: Non-coincident | E72: Summer | F72: =_xlfn.XLOOKUP(C72,[1]Sheet1!$A$2:$A$86,[1]Sheet1!$B$2:$B$86) -> 79.5 | H72: =_xlfn.XLOOKUP(1,('[2]ZSS Results'!$B$4:$B$462="Powercor")*('[2]ZSS Results'!$D$4:$D$462="summer")*('[2]ZSS Results'!$C$4:$C$462=C72),'[2]ZSS Results'!$S$4:$S$462) -> 54.9 | I72: =_xlfn.XLOOKUP(C72,'[3]zss forecast'!$B$3:$B$155,'[3]zss forecast'!$CC$3:$CC$155) -> 54.42 | J72: =_xlfn.XLOOKUP(1,('[2]ZSS Results'!$B$4:$B$462="Powercor")*('[2]ZSS Results'!$D$4:$D$462="summer")*('[2]ZSS Results'!$C$4:$C$462=C72),'[2]ZSS Results'!$AO$4:$AO$462) -> 49.6 | K72: =_xlfn.XLOOKUP(C72,'[3]zss forecast'!$B$3:$B$155,'[3]zss forecast'!$DF$3:$DF$155) -> 49.26
B73: Zone | C73: WIN | D73: Non-coincident | E73: Summer | F73: =_xlfn.XLOOKUP(C73,[1]Sheet1!$A$2:$A$86,[1]Sheet1!$B$2:$B$86) -> 20.5 | H73: =_xlfn.XLOOKUP(1,('[2]ZSS Results'!$B$4:$B$462="Powercor")*('[2]ZSS Results'!$D$4:$D$462="summer")*('[2]ZSS Results'!$C$4:$C$462=C73),'[2]ZSS Results'!$S$4:$S$462) -> 10.36 | I73: =_xlfn.XLOOKUP(C73,'[3]zss forecast'!$B$3:$B$155,'[3]zss forecast'!$CC$3:$CC$155) -> 9.67 | J73: =_xlfn.XLOOKUP(1,('[2]ZSS Results'!$B$4:$B$462="Powercor")*('[2]ZSS Results'!$D$4:$D$462="summer")*('[2]ZSS Results'!$C$4:$C$462=C73),'[2]ZSS Results'!$AO$4:$AO$462) -> 9.3 | K73: =_xlfn.XLOOKUP(C73,'[3]zss forecast'!$B$3:$B$155,'[3]zss forecast'!$DF$3:$DF$155) -> 8.84
B74: Zone | C74: WMN | D74: Non-coincident | E74: Summer | F74: =_xlfn.XLOOKUP(C74,[1]Sheet1!$A$2:$A$86,[1]Sheet1!$B$2:$B$86) -> 46.5 | H74: =_xlfn.XLOOKUP(1,('[2]ZSS Results'!$B$4:$B$462="Powercor")*('[2]ZSS Results'!$D$4:$D$462="summer")*('[2]ZSS Results'!$C$4:$C$462=C74),'[2]ZSS Results'!$S$4:$S$462) -> 29.01 | I74: =_xlfn.XLOOKUP(C74,'[3]zss forecast'!$B$3:$B$155,'[3]zss forecast'!$CC$3:$CC$155) -> 28.59 | J74: =_xlfn.XLOOKUP(1,('[2]ZSS Results'!$B$4:$B$462="Powercor")*('[2]ZSS Results'!$D$4:$D$462="summer")*('[2]ZSS Results'!$C$4:$C$462=C74),'[2]ZSS Results'!$AO$4:$AO$462) -> 24.3 | K74: =_xlfn.XLOOKUP(C74,'[3]zss forecast'!$B$3:$B$155,'[3]zss forecast'!$DF$3:$DF$155) -> 24.95
B75: Zone | C75: WND | D75: Non-coincident | E75: Summer | F75: =_xlfn.XLOOKUP(C75,[1]Sheet1!$A$2:$A$86,[1]Sheet1!$B$2:$B$86) -> 66 | H75: =_xlfn.XLOOKUP(1,('[2]ZSS Results'!$B$4:$B$462="Powercor")*('[2]ZSS Results'!$D$4:$D$462="summer")*('[2]ZSS Results'!$C$4:$C$462=C75),'[2]ZSS Results'!$S$4:$S$462) -> 27.78 | I75: =_xlfn.XLOOKUP(C75,'[3]zss forecast'!$B$3:$B$155,'[3]zss forecast'!$CC$3:$CC$155) -> 27.62 | J75: =_xlfn.XLOOKUP(1,('[2]ZSS Results'!$B$4:$B$462="Powercor")*('[2]ZSS Results'!$D$4:$D$462="summer")*('[2]ZSS Results'!$C$4:$C$462=C75),'[2]ZSS Results'!$AO$4:$AO$462) -> 21.97 | K75: =_xlfn.XLOOKUP(C75,'[3]zss forecast'!$B$3:$B$155,'[3]zss forecast'!$DF$3:$DF$155) -> 23.95
B76: Zone | C76: WPD | D76: Non-coincident | E76: Summer | F76: =_xlfn.XLOOKUP(C76,[1]Sheet1!$A$2:$A$86,[1]Sheet1!$B$2:$B$86) -> 79.5 | H76: =_xlfn.XLOOKUP(1,('[2]ZSS Results'!$B$4:$B$462="Powercor")*('[2]ZSS Results'!$D$4:$D$462="summer")*('[2]ZSS Results'!$C$4:$C$462=C76),'[2]ZSS Results'!$S$4:$S$462) -> 73.13 | I76: =_xlfn.XLOOKUP(C76,'[3]zss forecast'!$B$3:$B$155,'[3]zss forecast'!$CC$3:$CC$155) -> 73.1 | J76: =_xlfn.XLOOKUP(1,('[2]ZSS Results'!$B$4:$B$462="Powercor")*('[2]ZSS Results'!$D$4:$D$462="summer")*('[2]ZSS Results'!$C$4:$C$462=C76),'[2]ZSS Results'!$AO$4:$AO$462) -> 56.55 | K76: =_xlfn.XLOOKUP(C76,'[3]zss forecast'!$B$3:$B$155,'[3]zss forecast'!$DF$3:$DF$155) -> 65.77
B77: Zone | C77: AC | D77: Non-coincident | E77: Winter | F77: =_xlfn.XLOOKUP(C77,[1]Sheet1!$A$2:$A$86,[1]Sheet1!$B$2:$B$86) -> 40 | H77: =_xlfn.XLOOKUP(1,('[2]ZSS Results'!$B$4:$B$462="Powercor")*('[2]ZSS Results'!$D$4:$D$462="winter")*('[2]ZSS Results'!$C$4:$C$462=C77),'[2]ZSS Results'!$S$4:$S$462) -> 6.41 | I77: =_xlfn.XLOOKUP(C77,'[3]zss forecast'!$B$3:$B$155,'[3]zss forecast'!$GO$3:$GO$155) -> 5.99 | J77: =_xlfn.XLOOKUP(1,('[2]ZSS Results'!$B$4:$B$462="Powercor")*('[2]ZSS Results'!$D$4:$D$462="winter")*('[2]ZSS Results'!$C$4:$C$462=C77),'[2]ZSS Results'!$AO$4:$AO$462) -> 4.19 | K77: =_xlfn.XLOOKUP(C77,'[3]zss forecast'!$B$3:$B$155,'[3]zss forecast'!$HR$3:$HR$155) -> 4
B78: Zone | C78: AL | D78: Non-coincident | E78: Winter | F78: =_xlfn.XLOOKUP(C78,[1]Sheet1!$A$2:$A$86,[1]Sheet1!$B$2:$B$86) -> 30 | H78: =_xlfn.XLOOKUP(1,('[2]ZSS Results'!$B$4:$B$462="Powercor")*('[2]ZSS Results'!$D$4:$D$462="winter")*('[2]ZSS Results'!$C$4:$C$462=C78),'[2]ZSS Results'!$S$4:$S$462) -> 20.06 | I78: =_xlfn.XLOOKUP(C78,'[3]zss forecast'!$B$3:$B$155,'[3]zss forecast'!$GO$3:$GO$155) -> 19.64 | J78: =_xlfn.XLOOKUP(1,('[2]ZSS Results'!$B$4:$B$462="Powercor")*('[2]ZSS Results'!$D$4:$D$462="winter")*('[2]ZSS Results'!$C$4:$C$462=C78),'[2]ZSS Results'!$AO$4:$AO$462) -> 17.91 | K78: =_xlfn.XLOOKUP(C78,'[3]zss forecast'!$B$3:$B$155,'[3]zss forecast'!$HR$3:$HR$155) -> 18.55
B79: Zone | C79: ART | D79: Non-coincident | E79: Winter | F79: =_xlfn.XLOOKUP(C79,[1]Sheet1!$A$2:$A$86,[1]Sheet1!$B$2:$B$86) -> 20 | H79: =_xlfn.XLOOKUP(1,('[2]ZSS Results'!$B$4:$B$462="Powercor")*('[2]ZSS Results'!$D$4:$D$462="winter")*('[2]ZSS Results'!$C$4:$C$462=C79),'[2]ZSS Results'!$S$4:$S$462) -> 14.71 | I79: =_xlfn.XLOOKUP(C79,'[3]zss forecast'!$B$3:$B$155,'[3]zss forecast'!$GO$3:$GO$155) -> 14.7 | J79: =_xlfn.XLOOKUP(1,('[2]ZSS Results'!$B$4:$B$462="Powercor")*('[2]ZSS Results'!$D$4:$D$462="winter")*('[2]ZSS Results'!$C$4:$C$462=C79),'[2]ZSS Results'!$AO$4:$AO$462) -> 13.79 | K79: =_xlfn.XLOOKUP(C79,'[3]zss forecast'!$B$3:$B$155,'[3]zss forecast'!$HR$3:$HR$155) -> 13.75
B80: Zone | C80: AWT | D80: Non-coincident | E80: Winter | F80: =_xlfn.XLOOKUP(C80,[1]Sheet1!$A$2:$A$86,[1]Sheet1!$B$2:$B$86) -> 66 | H80: =_xlfn.XLOOKUP(1,('[2]ZSS Results'!$B$4:$B$462="Powercor")*('[2]ZSS Results'!$D$4:$D$462="winter")*('[2]ZSS Results'!$C$4:$C$462=C80),'[2]ZSS Results'!$S$4:$S$462) -> 15.3 | I80: =_xlfn.XLOOKUP(C80,'[3]zss forecast'!$B$3:$B$155,'[3]zss forecast'!$GO$3:$GO$155) -> 15.27 | J80: =_xlfn.XLOOKUP(1,('[2]ZSS Results'!$B$4:$B$462="Powercor")*('[2]ZSS Results'!$D$4:$D$462="winter")*('[2]ZSS Results'!$C$4:$C$462=C80),'[2]ZSS Results'!$AO$4:$AO$462) -> 5.31 | K80: =_xlfn.XLOOKUP(C80,'[3]zss forecast'!$B$3:$B$155,'[3]zss forecast'!$HR$3:$HR$155) -> 14.76
B81: Zone | C81: BAE | D81: Non-coincident | E81: Winter | F81: =_xlfn.XLOOKUP(C81,[1]Sheet1!$A$2:$A$86,[1]Sheet1!$B$2:$B$86) -> 33 | H81: =_xlfn.XLOOKUP(1,('[2]ZSS Results'!$B$4:$B$462="Powercor")*('[2]ZSS Results'!$D$4:$D$462="winter")*('[2]ZSS Results'!$C$4:$C$462=C81),'[2]ZSS Results'!$S$4:$S$462) -> 41.03 | I81: =_xlfn.XLOOKUP(C81,'[3]zss forecast'!$B$3:$B$155,'[3]zss forecast'!$GO$3:$GO$155) -> 41.03 | J81: =_xlfn.XLOOKUP(1,('[2]ZSS Results'!$B$4:$B$462="Powercor")*('[2]ZSS Results'!$D$4:$D$462="winter")*('[2]ZSS Results'!$C$4:$C$462=C81),'[2]ZSS Results'!$AO$4:$AO$462) -> 31.06 | K81: =_xlfn.XLOOKUP(C81,'[3]zss forecast'!$B$3:$B$155,'[3]zss forecast'!$HR$3:$HR$155) -> 36.94
B82: Zone | C82: BAN | D82: Non-coincident | E82: Winter | F82: =_xlfn.XLOOKUP(C82,[1]Sheet1!$A$2:$A$86,[1]Sheet1!$B$2:$B$86) -> 120 | H82: =_xlfn.XLOOKUP(1,('[2]ZSS Results'!$B$4:$B$462="Powercor")*('[2]ZSS Results'!$D$4:$D$462="winter")*('[2]ZSS Results'!$C$4:$C$462=C82),'[2]ZSS Results'!$S$4:$S$462) -> 80.33 | I82: =_xlfn.XLOOKUP(C82,'[3]zss forecast'!$B$3:$B$155,'[3]zss forecast'!$GO$3:$GO$155) -> 80.02 | J82: =_xlfn.XLOOKUP(1,('[2]ZSS Results'!$B$4:$B$462="Powercor")*('[2]ZSS Results'!$D$4:$D$462="winter")*('[2]ZSS Results'!$C$4:$C$462=C82),'[2]ZSS Results'!$AO$4:$AO$462) -> 73.94 | K82: =_xlfn.XLOOKUP(C82,'[3]zss forecast'!$B$3:$B$155,'[3]zss forecast'!$HR$3:$HR$155) -> 77.11
B83: Zone | C83: BAS | D83: Non-coincident | E83: Winter | F83: =_xlfn.XLOOKUP(C83,[1]Sheet1!$A$2:$A$86,[1]Sheet1!$B$2:$B$86) -> 99 | H83: =_xlfn.XLOOKUP(1,('[2]ZSS Results'!$B$4:$B$462="Powercor")*('[2]ZSS Results'!$D$4:$D$462="winter")*('[2]ZSS Results'!$C$4:$C$462=C83),'[2]ZSS Results'!$S$4:$S$462) -> 86.58 | I83: =_xlfn.XLOOKUP(C83,'[3]zss forecast'!$B$3:$B$155,'[3]zss forecast'!$GO$3:$GO$155) -> 86.47 | J83: =_xlfn.XLOOKUP(1,('[2]ZSS Results'!$B$4:$B$462="Powercor")*('[2]ZSS Results'!$D$4:$D$462="winter")*('[2]ZSS Results'!$C$4:$C$462=C83),'[2]ZSS Results'!$AO$4:$AO$462) -> 73.13 | K83: =_xlfn.XLOOKUP(C83,'[3]zss forecast'!$B$3:$B$155,'[3]zss forecast'!$HR$3:$HR$155) -> 83.06
B84: Zone | C84: BBD | D84: Non-coincident | E84: Winter | F84: =_xlfn.XLOOKUP(C84,[1]Sheet1!$A$2:$A$86,[1]Sheet1!$B$2:$B$86) -> 66 | H84: =_xlfn.XLOOKUP(1,('[2]ZSS Results'!$B$4:$B$462="Powercor")*('[2]ZSS Results'!$D$4:$D$462="winter")*('[2]ZSS Results'!$C$4:$C$462=C84),'[2]ZSS Results'!$S$4:$S$462) -> 25.48 | I84: =_xlfn.XLOOKUP(C84,'[3]zss forecast'!$B$3:$B$155,'[3]zss forecast'!$GO$3:$GO$155) -> 24.79 | J84: =_xlfn.XLOOKUP(1,('[2]ZSS Results'!$B$4:$B$462="Powercor")*('[2]ZSS Results'!$D$4:$D$462="winter")*('[2]ZSS Results'!$C$4:$C$462=C84),'[2]ZSS Results'!$AO$4:$AO$462) -> 22.3 | K84: =_xlfn.XLOOKUP(C84,'[3]zss forecast'!$B$3:$B$155,'[3]zss forecast'!$HR$3:$HR$155) -> 21.77
B85: Zone | C85: BGO | D85: Non-coincident | E85: Winter | F85: =_xlfn.XLOOKUP(C85,[1]Sheet1!$A$2:$A$86,[1]Sheet1!$B$2:$B$86) -> 66 | H85: =_xlfn.XLOOKUP(1,('[2]ZSS Results'!$B$4:$B$462="Powercor")*('[2]ZSS Results'!$D$4:$D$462="winter")*('[2]ZSS Results'!$C$4:$C$462=C85),'[2]ZSS Results'!$S$4:$S$462) -> 37.67 | I85: =_xlfn.XLOOKUP(C85,'[3]zss forecast'!$B$3:$B$155,'[3]zss forecast'!$GO$3:$GO$155) -> 37.61 | J85: =_xlfn.XLOOKUP(1,('[2]ZSS Results'!$B$4:$B$462="Powercor")*('[2]ZSS Results'!$D$4:$D$462="winter")*('[2]ZSS Results'!$C$4:$C$462=C85),'[2]ZSS Results'!$AO$4:$AO$462) -> 35.17 | K85: =_xlfn.XLOOKUP(C85,'[3]zss forecast'!$B$3:$B$155,'[3]zss forecast'!$HR$3:$HR$155) -> 36.1
B86: Zone | C86: BMH | D86: Non-coincident | E86: Winter | F86: =_xlfn.XLOOKUP(C86,[1]Sheet1!$A$2:$A$86,[1]Sheet1!$B$2:$B$86) -> 27 | H86: =_xlfn.XLOOKUP(1,('[2]ZSS Results'!$B$4:$B$462="Powercor")*('[2]ZSS Results'!$D$4:$D$462="winter")*('[2]ZSS Results'!$C$4:$C$462=C86),'[2]ZSS Results'!$S$4:$S$462) -> 31.11 | I86: =_xlfn.XLOOKUP(C86,'[3]zss forecast'!$B$3:$B$155,'[3]zss forecast'!$GO$3:$GO$155) -> 30.94 | J86: =_xlfn.XLOOKUP(1,('[2]ZSS Results'!$B$4:$B$462="Powercor")*('[2]ZSS Results'!$D$4:$D$462="winter")*('[2]ZSS Results'!$C$4:$C$462=C86),'[2]ZSS Results'!$AO$4:$AO$462) -> 25.96 | K86: =_xlfn.XLOOKUP(C86,'[3]zss forecast'!$B$3:$B$155,'[3]zss forecast'!$HR$3:$HR$155) -> 29.45
B87: Zone | C87: CDN | D87: Non-coincident | E87: Winter | F87: =_xlfn.XLOOKUP(C87,[1]Sheet1!$A$2:$A$86,[1]Sheet1!$B$2:$B$86) -> 20 | H87: =_xlfn.XLOOKUP(1,('[2]ZSS Results'!$B$4:$B$462="Powercor")*('[2]ZSS Results'!$D$4:$D$462="winter")*('[2]ZSS Results'!$C$4:$C$462=C87),'[2]ZSS Results'!$S$4:$S$462) -> 19.32 | I87: =_xlfn.XLOOKUP(C87,'[3]zss forecast'!$B$3:$B$155,'[3]zss forecast'!$GO$3:$GO$155) -> 19.32 | J87: =_xlfn.XLOOKUP(1,('[2]ZSS Results'!$B$4:$B$462="Powercor")*('[2]ZSS Results'!$D$4:$D$462="winter")*('[2]ZSS Results'!$C$4:$C$462=C87),'[2]ZSS Results'!$AO$4:$AO$462) -> 16.56 | K87: =_xlfn.XLOOKUP(C87,'[3]zss forecast'!$B$3:$B$155,'[3]zss forecast'!$HR$3:$HR$155) -> 16.85
B88: Zone | C88: CHA | D88: Non-coincident | E88: Winter | F88: =_xlfn.XLOOKUP(C88,[1]Sheet1!$A$2:$A$86,[1]Sheet1!$B$2:$B$86) -> 27 | H88: =_xlfn.XLOOKUP(1,('[2]ZSS Results'!$B$4:$B$462="Powercor")*('[2]ZSS Results'!$D$4:$D$462="winter")*('[2]ZSS Results'!$C$4:$C$462=C88),'[2]ZSS Results'!$S$4:$S$462) -> 24.32 | I88: =_xlfn.XLOOKUP(C88,'[3]zss forecast'!$B$3:$B$155,'[3]zss forecast'!$GO$3:$GO$155) -> 24.27 | J88: =_xlfn.XLOOKUP(1,('[2]ZSS Results'!$B$4:$B$462="Powercor")*('[2]ZSS Results'!$D$4:$D$462="winter")*('[2]ZSS Results'!$C$4:$C$462=C88),'[2]ZSS Results'!$AO$4:$AO$462) -> 15.05 | K88: =_xlfn.XLOOKUP(C88,'[3]zss forecast'!$B$3:$B$155,'[3]zss forecast'!$HR$3:$HR$155) -> 15
B89: Zone | C89: CHM | D89: Non-coincident | E89: Winter | F89: =_xlfn.XLOOKUP(C89,[1]Sheet1!$A$2:$A$86,[1]Sheet1!$B$2:$B$86) -> 33 | H89: =_xlfn.XLOOKUP(1,('[2]ZSS Results'!$B$4:$B$462="Powercor")*('[2]ZSS Results'!$D$4:$D$462="winter")*('[2]ZSS Results'!$C$4:$C$462=C89),'[2]ZSS Results'!$S$4:$S$462) -> 2.11 | I89: =_xlfn.XLOOKUP(C89,'[3]zss forecast'!$B$3:$B$155,'[3]zss forecast'!$GO$3:$GO$155) -> 2.11 | J89: =_xlfn.XLOOKUP(1,('[2]ZSS Results'!$B$4:$B$462="Powercor")*('[2]ZSS Results'!$D$4:$D$462="winter")*('[2]ZSS Results'!$C$4:$C$462=C89),'[2]ZSS Results'!$AO$4:$AO$462) -> 1.76 | K89: =_xlfn.XLOOKUP(C89,'[3]zss forecast'!$B$3:$B$155,'[3]zss forecast'!$HR$3:$HR$155) -> 1.73
B90: Zone | C90: CLC | D90: Non-coincident | E90: Winter | F90: =_xlfn.XLOOKUP(C90,[1]Sheet1!$A$2:$A$86,[1]Sheet1!$B$2:$B$86) -> 79 | H90: =_xlfn.XLOOKUP(1,('[2]ZSS Results'!$B$4:$B$462="Powercor")*('[2]ZSS Results'!$D$4:$D$462="winter")*('[2]ZSS Results'!$C$4:$C$462=C90),'[2]ZSS Results'!$S$4:$S$462) -> 42.88 | I90: =_xlfn.XLOOKUP(C90,'[3]zss forecast'!$B$3:$B$155,'[3]zss forecast'!$GO$3:$GO$155) -> 42.88 | J90: =_xlfn.XLOOKUP(1,('[2]ZSS Results'!$B$4:$B$462="Powercor")*('[2]ZSS Results'!$D$4:$D$462="winter")*('[2]ZSS Results'!$C$4:$C$462=C90),'[2]ZSS Results'!$AO$4:$AO$462) -> 39.44 | K90: =_xlfn.XLOOKUP(C90,'[3]zss forecast'!$B$3:$B$155,'[3]zss forecast'!$HR$3:$HR$155) -> 40.56
B91: Zone | C91: CME | D91: Non-coincident | E91: Winter | F91: =_xlfn.XLOOKUP(C91,[1]Sheet1!$A$2:$A$86,[1]Sheet1!$B$2:$B$86) -> 40.5 | H91: =_xlfn.XLOOKUP(1,('[2]ZSS Results'!$B$4:$B$462="Powercor")*('[2]ZSS Results'!$D$4:$D$462="winter")*('[2]ZSS Results'!$C$4:$C$462=C91),'[2]ZSS Results'!$S$4:$S$462) -> 36.59 | I91: =_xlfn.XLOOKUP(C91,'[3]zss forecast'!$B$3:$B$155,'[3]zss forecast'!$GO$3:$GO$155) -> 36.58 | J91: =_xlfn.XLOOKUP(1,('[2]ZSS Results'!$B$4:$B$462="Powercor")*('[2]ZSS Results'!$D$4:$D$462="winter")*('[2]ZSS Results'!$C$4:$C$462=C91),'[2]ZSS Results'!$AO$4:$AO$462) -> 29.87 | K91: =_xlfn.XLOOKUP(C91,'[3]zss forecast'!$B$3:$B$155,'[3]zss forecast'!$HR$3:$HR$155) -> 30.5
B92: Zone | C92: CMN | D92: Non-coincident | E92: Winter | F92: =_xlfn.XLOOKUP(C92,[1]Sheet1!$A$2:$A$86,[1]Sheet1!$B$2:$B$86) -> 66 | H92: =_xlfn.XLOOKUP(1,('[2]ZSS Results'!$B$4:$B$462="Powercor")*('[2]ZSS Results'!$D$4:$D$462="winter")*('[2]ZSS Results'!$C$4:$C$462=C92),'[2]ZSS Results'!$S$4:$S$462) -> 30.44 | I92: =_xlfn.XLOOKUP(C92,'[3]zss forecast'!$B$3:$B$155,'[3]zss forecast'!$GO$3:$GO$155) -> 30.4 | J92: =_xlfn.XLOOKUP(1,('[2]ZSS Results'!$B$4:$B$462="Powercor")*('[2]ZSS Results'!$D$4:$D$462="winter")*('[2]ZSS Results'!$C$4:$C$462=C92),'[2]ZSS Results'!$AO$4:$AO$462) -> 27.83 | K92: =_xlfn.XLOOKUP(C92,'[3]zss forecast'!$B$3:$B$155,'[3]zss forecast'!$HR$3:$HR$155) -> 29.27
B93: Zone | C93: COB | D93: Non-coincident | E93: Winter | F93: =_xlfn.XLOOKUP(C93,[1]Sheet1!$A$2:$A$86,[1]Sheet1!$B$2:$B$86) -> 26 | H93: =_xlfn.XLOOKUP(1,('[2]ZSS Results'!$B$4:$B$462="Powercor")*('[2]ZSS Results'!$D$4:$D$462="winter")*('[2]ZSS Results'!$C$4:$C$462=C93),'[2]ZSS Results'!$S$4:$S$462) -> 16.78 | I93: =_xlfn.XLOOKUP(C93,'[3]zss forecast'!$B$3:$B$155,'[3]zss forecast'!$GO$3:$GO$155) -> 16.35 | J93: =_xlfn.XLOOKUP(1,('[2]ZSS Results'!$B$4:$B$462="Powercor")*('[2]ZSS Results'!$D$4:$D$462="winter")*('[2]ZSS Results'!$C$4:$C$462=C93),'[2]ZSS Results'!$AO$4:$AO$462) -> 13.84 | K93: =_xlfn.XLOOKUP(C93,'[3]zss forecast'!$B$3:$B$155,'[3]zss forecast'!$HR$3:$HR$155) -> 13.11
B94: Zone | C94: CRO | D94: Non-coincident | E94: Winter | F94: =_xlfn.XLOOKUP(C94,[1]Sheet1!$A$2:$A$86,[1]Sheet1!$B$2:$B$86) -> 60 | H94: =_xlfn.XLOOKUP(1,('[2]ZSS Results'!$B$4:$B$462="Powercor")*('[2]ZSS Results'!$D$4:$D$462="winter")*('[2]ZSS Results'!$C$4:$C$462=C94),'[2]ZSS Results'!$S$4:$S$462) -> 40.68 | I94: =_xlfn.XLOOKUP(C94,'[3]zss forecast'!$B$3:$B$155,'[3]zss forecast'!$GO$3:$GO$155) -> 39.39 | J94: =_xlfn.XLOOKUP(1,('[2]ZSS Results'!$B$4:$B$462="Powercor")*('[2]ZSS Results'!$D$4:$D$462="winter")*('[2]ZSS Results'!$C$4:$C$462=C94),'[2]ZSS Results'!$AO$4:$AO$462) -> 34.29 | K94: =_xlfn.XLOOKUP(C94,'[3]zss forecast'!$B$3:$B$155,'[3]zss forecast'!$HR$3:$HR$155) -> 34.49
B95: Zone | C95: CTN | D95: Non-coincident | E95: Winter | F95: =_xlfn.XLOOKUP(C95,[1]Sheet1!$A$2:$A$86,[1]Sheet1!$B$2:$B$86) -> 39.5 | H95: =_xlfn.XLOOKUP(1,('[2]ZSS Results'!$B$4:$B$462="Powercor")*('[2]ZSS Results'!$D$4:$D$462="winter")*('[2]ZSS Results'!$C$4:$C$462=C95),'[2]ZSS Results'!$S$4:$S$462) -> 19.74 | I95: =_xlfn.XLOOKUP(C95,'[3]zss forecast'!$B$3:$B$155,'[3]zss forecast'!$GO$3:$GO$155) -> 19.12 | J95: =_xlfn.XLOOKUP(1,('[2]ZSS Results'!$B$4:$B$462="Powercor")*('[2]ZSS Results'!$D$4:$D$462="winter")*('[2]ZSS Results'!$C$4:$C$462=C95),'[2]ZSS Results'!$AO$4:$AO$462) -> 17.36 | K95: =_xlfn.XLOOKUP(C95,'[3]zss forecast'!$B$3:$B$155,'[3]zss forecast'!$HR$3:$HR$155) -> 16.96
B96: Zone | C96: DDL | D96: Non-coincident | E96: Winter | F96: =_xlfn.XLOOKUP(C96,[1]Sheet1!$A$2:$A$86,[1]Sheet1!$B$2:$B$86) -> 66 | H96: =_xlfn.XLOOKUP(1,('[2]ZSS Results'!$B$4:$B$462="Powercor")*('[2]ZSS Results'!$D$4:$D$462="winter")*('[2]ZSS Results'!$C$4:$C$462=C96),'[2]ZSS Results'!$S$4:$S$462) -> 64.55 | I96: =_xlfn.XLOOKUP(C96,'[3]zss forecast'!$B$3:$B$155,'[3]zss forecast'!$GO$3:$GO$155) -> 64.55 | J96: =_xlfn.XLOOKUP(1,('[2]ZSS Results'!$B$4:$B$462="Powercor")*('[2]ZSS Results'!$D$4:$D$462="winter")*('[2]ZSS Results'!$C$4:$C$462=C96),'[2]ZSS Results'!$AO$4:$AO$462) -> 52.71 | K96: =_xlfn.XLOOKUP(C96,'[3]zss forecast'!$B$3:$B$155,'[3]zss forecast'!$HR$3:$HR$155) -> 59.67
B97: Zone | C97: DLF | D97: Non-coincident | E97: Winter | F97: =_xlfn.XLOOKUP(C97,[1]Sheet1!$A$2:$A$86,[1]Sheet1!$B$2:$B$86) -> 66 | H97: =_xlfn.XLOOKUP(1,('[2]ZSS Results'!$B$4:$B$462="Powercor")*('[2]ZSS Results'!$D$4:$D$462="winter")*('[2]ZSS Results'!$C$4:$C$462=C97),'[2]ZSS Results'!$S$4:$S$462) -> 20.86 | I97: =_xlfn.XLOOKUP(C97,'[3]zss forecast'!$B$3:$B$155,'[3]zss forecast'!$GO$3:$GO$155) -> 20.69 | J97: =_xlfn.XLOOKUP(1,('[2]ZSS Results'!$B$4:$B$462="Powercor")*('[2]ZSS Results'!$D$4:$D$462="winter")*('[2]ZSS Results'!$C$4:$C$462=C97),'[2]ZSS Results'!$AO$4:$AO$462) -> 14.08 | K97: =_xlfn.XLOOKUP(C97,'[3]zss forecast'!$B$3:$B$155,'[3]zss forecast'!$HR$3:$HR$155) -> 16.47
B98: Zone | C98: ECA | D98: Non-coincident | E98: Winter | F98: =_xlfn.XLOOKUP(C98,[1]Sheet1!$A$2:$A$86,[1]Sheet1!$B$2:$B$86) -> 40.5 | H98: =_xlfn.XLOOKUP(1,('[2]ZSS Results'!$B$4:$B$462="Powercor")*('[2]ZSS Results'!$D$4:$D$462="winter")*('[2]ZSS Results'!$C$4:$C$462=C98),'[2]ZSS Results'!$S$4:$S$462) -> 37.64 | I98: =_xlfn.XLOOKUP(C98,'[3]zss forecast'!$B$3:$B$155,'[3]zss forecast'!$GO$3:$GO$155) -> 37.58 | J98: =_xlfn.XLOOKUP(1,('[2]ZSS Results'!$B$4:$B$462="Powercor")*('[2]ZSS Results'!$D$4:$D$462="winter")*('[2]ZSS Results'!$C$4:$C$462=C98),'[2]ZSS Results'!$AO$4:$AO$462) -> 28.74 | K98: =_xlfn.XLOOKUP(C98,'[3]zss forecast'!$B$3:$B$155,'[3]zss forecast'!$HR$3:$HR$155) -> 29.52
B99: Zone | C99: EHK | D99: Non-coincident | E99: Winter | F99: =_xlfn.XLOOKUP(C99,[1]Sheet1!$A$2:$A$86,[1]Sheet1!$B$2:$B$86) -> 54 | H99: =_xlfn.XLOOKUP(1,('[2]ZSS Results'!$B$4:$B$462="Powercor")*('[2]ZSS Results'!$D$4:$D$462="winter")*('[2]ZSS Results'!$C$4:$C$462=C99),'[2]ZSS Results'!$S$4:$S$462) -> 51.71 | I99: =_xlfn.XLOOKUP(C99,'[3]zss forecast'!$B$3:$B$155,'[3]zss forecast'!$GO$3:$GO$155) -> 51.54 | J99: =_xlfn.XLOOKUP(1,('[2]ZSS Results'!$B$4:$B$462="Powercor")*('[2]ZSS Results'!$D$4:$D$462="winter")*('[2]ZSS Results'!$C$4:$C$462=C99),'[2]ZSS Results'!$AO$4:$AO$462) -> 46.46 | K99: =_xlfn.XLOOKUP(C99,'[3]zss forecast'!$B$3:$B$155,'[3]zss forecast'!$HR$3:$HR$155) -> 49.73
B100: Zone | C100: FNS | D100: Non-coincident | E100: Winter | F100: =_xlfn.XLOOKUP(C100,[1]Sheet1!$A$2:$A$86,[1]Sheet1!$B$2:$B$86) -> 99 | H100: =_xlfn.XLOOKUP(1,('[2]ZSS Results'!$B$4:$B$462="Powercor")*('[2]ZSS Results'!$D$4:$D$462="winter")*('[2]ZSS Results'!$C$4:$C$462=C100),'[2]ZSS Results'!$S$4:$S$462) -> 49.07 | I100: =_xlfn.XLOOKUP(C100,'[3]zss forecast'!$B$3:$B$155,'[3]zss forecast'!$GO$3:$GO$155) -> 48.85 | J100: =_xlfn.XLOOKUP(1,('[2]ZSS Results'!$B$4:$B$462="Powercor")*('[2]ZSS Results'!$D$4:$D$462="winter")*('[2]ZSS Results'!$C$4:$C$462=C100),'[2]ZSS Results'!$AO$4:$AO$462) -> 40.59 | K100: =_xlfn.XLOOKUP(C100,'[3]zss forecast'!$B$3:$B$155,'[3]zss forecast'!$HR$3:$HR$155) -> 46.23
B101: Zone | C101: GB | D101: Non-coincident | E101: Winter | F101: =_xlfn.XLOOKUP(C101,[1]Sheet1!$A$2:$A$86,[1]Sheet1!$B$2:$B$86) -> 37.5 | H101: =_xlfn.XLOOKUP(1,('[2]ZSS Results'!$B$4:$B$462="Powercor")*('[2]ZSS Results'!$D$4:$D$462="winter")*('[2]ZSS Results'!$C$4:$C$462=C101),'[2]ZSS Results'!$S$4:$S$462) -> 15.86 | I101: =_xlfn.XLOOKUP(C101,'[3]zss forecast'!$B$3:$B$155,'[3]zss forecast'!$GO$3:$GO$155) -> 14.72 | J101: =_xlfn.XLOOKUP(1,('[2]ZSS Results'!$B$4:$B$462="Powercor")*('[2]ZSS Results'!$D$4:$D$462="winter")*('[2]ZSS Results'!$C$4:$C$462=C101),'[2]ZSS Results'!$AO$4:$AO$462) -> 14.06 | K101: =_xlfn.XLOOKUP(C101,'[3]zss forecast'!$B$3:$B$155,'[3]zss forecast'!$HR$3:$HR$155) -> 13.48
B102: Zone | C102: GCY | D102: Non-coincident | E102: Winter | F102: =_xlfn.XLOOKUP(C102,[1]Sheet1!$A$2:$A$86,[1]Sheet1!$B$2:$B$86) -> 66 | H102: =_xlfn.XLOOKUP(1,('[2]ZSS Results'!$B$4:$B$462="Powercor")*('[2]ZSS Results'!$D$4:$D$462="winter")*('[2]ZSS Results'!$C$4:$C$462=C102),'[2]ZSS Results'!$S$4:$S$462) -> 37.21 | I102: =_xlfn.XLOOKUP(C102,'[3]zss forecast'!$B$3:$B$155,'[3]zss forecast'!$GO$3:$GO$155) -> 36.93 | J102: =_xlfn.XLOOKUP(1,('[2]ZSS Results'!$B$4:$B$462="Powercor")*('[2]ZSS Results'!$D$4:$D$462="winter")*('[2]ZSS Results'!$C$4:$C$462=C102),'[2]ZSS Results'!$AO$4:$AO$462) -> 34.7 | K102: =_xlfn.XLOOKUP(C102,'[3]zss forecast'!$B$3:$B$155,'[3]zss forecast'!$HR$3:$HR$155) -> 35.44
B103: Zone | C103: GHP | D103: Non-coincident | E103: Winter | F103: =_xlfn.XLOOKUP(C103,[1]Sheet1!$A$2:$A$86,[1]Sheet1!$B$2:$B$86) -> 66 | H103: =_xlfn.XLOOKUP(1,('[2]ZSS Results'!$B$4:$B$462="Powercor")*('[2]ZSS Results'!$D$4:$D$462="winter")*('[2]ZSS Results'!$C$4:$C$462=C103),'[2]ZSS Results'!$S$4:$S$462) -> 32.98 | I103: =_xlfn.XLOOKUP(C103,'[3]zss forecast'!$B$3:$B$155,'[3]zss forecast'!$GO$3:$GO$155) -> 32.96 | J103: =_xlfn.XLOOKUP(1,('[2]ZSS Results'!$B$4:$B$462="Powercor")*('[2]ZSS Results'!$D$4:$D$462="winter")*('[2]ZSS Results'!$C$4:$C$462=C103),'[2]ZSS Results'!$AO$4:$AO$462) -> 28.1 | K103: =_xlfn.XLOOKUP(C103,'[3]zss forecast'!$B$3:$B$155,'[3]zss forecast'!$HR$3:$HR$155) -> 30.55
B104: Zone | C104: GL | D104: Non-coincident | E104: Winter | F104: =_xlfn.XLOOKUP(C104,[1]Sheet1!$A$2:$A$86,[1]Sheet1!$B$2:$B$86) -> 80 | H104: =_xlfn.XLOOKUP(1,('[2]ZSS Results'!$B$4:$B$462="Powercor")*('[2]ZSS Results'!$D$4:$D$462="winter")*('[2]ZSS Results'!$C$4:$C$462=C104),'[2]ZSS Results'!$S$4:$S$462) -> 42.44 | I104: =_xlfn.XLOOKUP(C104,'[3]zss forecast'!$B$3:$B$155,'[3]zss forecast'!$GO$3:$GO$155) -> 42.4 | J104: =_xlfn.XLOOKUP(1,('[2]ZSS Results'!$B$4:$B$462="Powercor")*('[2]ZSS Results'!$D$4:$D$462="winter")*('[2]ZSS Results'!$C$4:$C$462=C104),'[2]ZSS Results'!$AO$4:$AO$462) -> 37.89 | K104: =_xlfn.XLOOKUP(C104,'[3]zss forecast'!$B$3:$B$155,'[3]zss forecast'!$HR$3:$HR$155) -> 40.09
B105: Zone | C105: GLE | D105: Non-coincident | E105: Winter | F105: =_xlfn.XLOOKUP(C105,[1]Sheet1!$A$2:$A$86,[1]Sheet1!$B$2:$B$86) -> 79.5 | H105: =_xlfn.XLOOKUP(1,('[2]ZSS Results'!$B$4:$B$462="Powercor")*('[2]ZSS Results'!$D$4:$D$462="winter")*('[2]ZSS Results'!$C$4:$C$462=C105),'[2]ZSS Results'!$S$4:$S$462) -> 63.82 | I105: =_xlfn.XLOOKUP(C105,'[3]zss forecast'!$B$3:$B$155,'[3]zss forecast'!$GO$3:$GO$155) -> 63.74 | J105: =_xlfn.XLOOKUP(1,('[2]ZSS Results'!$B$4:$B$462="Powercor")*('[2]ZSS Results'!$D$4:$D$462="winter")*('[2]ZSS Results'!$C$4:$C$462=C105),'[2]ZSS Results'!$AO$4:$AO$462) -> 55.25 | K105: =_xlfn.XLOOKUP(C105,'[3]zss forecast'!$B$3:$B$155,'[3]zss forecast'!$HR$3:$HR$155) -> 58.22
B106: Zone | C106: GSB | D106: Non-coincident | E106: Winter | F106: =_xlfn.XLOOKUP(C106,[1]Sheet1!$A$2:$A$86,[1]Sheet1!$B$2:$B$86) -> 66 | H106: =_xlfn.XLOOKUP(1,('[2]ZSS Results'!$B$4:$B$462="Powercor")*('[2]ZSS Results'!$D$4:$D$462="winter")*('[2]ZSS Results'!$C$4:$C$462=C106),'[2]ZSS Results'!$S$4:$S$462) -> 35.76 | I106: =_xlfn.XLOOKUP(C106,'[3]zss forecast'!$B$3:$B$155,'[3]zss forecast'!$GO$3:$GO$155) -> 35.74 | J106: =_xlfn.XLOOKUP(1,('[2]ZSS Results'!$B$4:$B$462="Powercor")*('[2]ZSS Results'!$D$4:$D$462="winter")*('[2]ZSS Results'!$C$4:$C$462=C106),'[2]ZSS Results'!$AO$4:$AO$462) -> 31.63 | K106: =_xlfn.XLOOKUP(C106,'[3]zss forecast'!$B$3:$B$155,'[3]zss forecast'!$HR$3:$HR$155) -> 34.2
B107: Zone | C107: HSM | D107: Non-coincident | E107: Winter | F107: =_xlfn.XLOOKUP(C107,[1]Sheet1!$A$2:$A$86,[1]Sheet1!$B$2:$B$86) -> 40.5 | H107: =_xlfn.XLOOKUP(1,('[2]ZSS Results'!$B$4:$B$462="Powercor")*('[2]ZSS Results'!$D$4:$D$462="winter")*('[2]ZSS Results'!$C$4:$C$462=C107),'[2]ZSS Results'!$S$4:$S$462) -> 36.38 | I107: =_xlfn.XLOOKUP(C107,'[3]zss forecast'!$B$3:$B$155,'[3]zss forecast'!$GO$3:$GO$155) -> 36.33 | J107: =_xlfn.XLOOKUP(1,('[2]ZSS Results'!$B$4:$B$462="Powercor")*('[2]ZSS Results'!$D$4:$D$462="winter")*('[2]ZSS Results'!$C$4:$C$462=C107),'[2]ZSS Results'!$AO$4:$AO$462) -> 34.43 | K107: =_xlfn.XLOOKUP(C107,'[3]zss forecast'!$B$3:$B$155,'[3]zss forecast'!$HR$3:$HR$155) -> 34.62
B108: Zone | C108: HTN | D108: Non-coincident | E108: Winter | F108: =_xlfn.XLOOKUP(C108,[1]Sheet1!$A$2:$A$86,[1]Sheet1!$B$2:$B$86) -> 39.5 | H108: =_xlfn.XLOOKUP(1,('[2]ZSS Results'!$B$4:$B$462="Powercor")*('[2]ZSS Results'!$D$4:$D$462="winter")*('[2]ZSS Results'!$C$4:$C$462=C108),'[2]ZSS Results'!$S$4:$S$462) -> 24.35 | I108: =_xlfn.XLOOKUP(C108,'[3]zss forecast'!$B$3:$B$155,'[3]zss forecast'!$GO$3:$GO$155) -> 24.35 | J108: =_xlfn.XLOOKUP(1,('[2]ZSS Results'!$B$4:$B$462="Powercor")*('[2]ZSS Results'!$D$4:$D$462="winter")*('[2]ZSS Results'!$C$4:$C$462=C108),'[2]ZSS Results'!$AO$4:$AO$462) -> 23.42 | K108: =_xlfn.XLOOKUP(C108,'[3]zss forecast'!$B$3:$B$155,'[3]zss forecast'!$HR$3:$HR$155) -> 23.66
B109: Zone | C109: KRT | D109: Non-coincident | E109: Winter | F109: =_xlfn.XLOOKUP(C109,[1]Sheet1!$A$2:$A$86,[1]Sheet1!$B$2:$B$86) -> 40.5 | H109: =_xlfn.XLOOKUP(1,('[2]ZSS Results'!$B$4:$B$462="Powercor")*('[2]ZSS Results'!$D$4:$D$462="winter")*('[2]ZSS Results'!$C$4:$C$462=C109),'[2]ZSS Results'!$S$4:$S$462) -> 33.33 | I109: =_xlfn.XLOOKUP(C109,'[3]zss forecast'!$B$3:$B$155,'[3]zss forecast'!$GO$3:$GO$155) -> 33.32 | J109: =_xlfn.XLOOKUP(1,('[2]ZSS Results'!$B$4:$B$462="Powercor")*('[2]ZSS Results'!$D$4:$D$462="winter")*('[2]ZSS Results'!$C$4:$C$462=C109),'[2]ZSS Results'!$AO$4:$AO$462) -> 28.63 | K109: =_xlfn.XLOOKUP(C109,'[3]zss forecast'!$B$3:$B$155,'[3]zss forecast'!$HR$3:$HR$155) -> 29.4
B110: Zone | C110: KYM | D110: Non-coincident | E110: Winter | F110: =_xlfn.XLOOKUP(C110,[1]Sheet1!$A$2:$A$86,[1]Sheet1!$B$2:$B$86) -> 40.5 | H110: =_xlfn.XLOOKUP(1,('[2]ZSS Results'!$B$4:$B$462="Powercor")*('[2]ZSS Results'!$D$4:$D$462="winter")*('[2]ZSS Results'!$C$4:$C$462=C110),'[2]ZSS Results'!$S$4:$S$462) -> 20.84 | I110: =_xlfn.XLOOKUP(C110,'[3]zss forecast'!$B$3:$B$155,'[3]zss forecast'!$GO$3:$GO$155) -> 20.81 | J110: =_xlfn.XLOOKUP(1,('[2]ZSS Results'!$B$4:$B$462="Powercor")*('[2]ZSS Results'!$D$4:$D$462="winter")*('[2]ZSS Results'!$C$4:$C$462=C110),'[2]ZSS Results'!$AO$4:$AO$462) -> 19.25 | K110: =_xlfn.XLOOKUP(C110,'[3]zss forecast'!$B$3:$B$155,'[3]zss forecast'!$HR$3:$HR$155) -> 19.65
B111: Zone | C111: LV | D111: Non-coincident | E111: Winter | F111: =_xlfn.XLOOKUP(C111,[1]Sheet1!$A$2:$A$86,[1]Sheet1!$B$2:$B$86) -> 99 | H111: =_xlfn.XLOOKUP(1,('[2]ZSS Results'!$B$4:$B$462="Powercor")*('[2]ZSS Results'!$D$4:$D$462="winter")*('[2]ZSS Results'!$C$4:$C$462=C111),'[2]ZSS Results'!$S$4:$S$462) -> 103.31 | I111: =_xlfn.XLOOKUP(C111,'[3]zss forecast'!$B$3:$B$155,'[3]zss forecast'!$GO$3:$GO$155) -> 103.21 | J111: =_xlfn.XLOOKUP(1,('[2]ZSS Results'!$B$4:$B$462="Powercor")*('[2]ZSS Results'!$D$4:$D$462="winter")*('[2]ZSS Results'!$C$4:$C$462=C111),'[2]ZSS Results'!$AO$4:$AO$462) -> 82.35 | K111: =_xlfn.XLOOKUP(C111,'[3]zss forecast'!$B$3:$B$155,'[3]zss forecast'!$HR$3:$HR$155) -> 85.68
B112: Zone | C112: LVN | D112: Non-coincident | E112: Winter | F112: =_xlfn.XLOOKUP(C112,[1]Sheet1!$A$2:$A$86,[1]Sheet1!$B$2:$B$86) -> 99 | H112: =_xlfn.XLOOKUP(1,('[2]ZSS Results'!$B$4:$B$462="Powercor")*('[2]ZSS Results'!$D$4:$D$462="winter")*('[2]ZSS Results'!$C$4:$C$462=C112),'[2]ZSS Results'!$S$4:$S$462) -> 102.45 | I112: =_xlfn.XLOOKUP(C112,'[3]zss forecast'!$B$3:$B$155,'[3]zss forecast'!$GO$3:$GO$155) -> 99.94 | J112: =_xlfn.XLOOKUP(1,('[2]ZSS Results'!$B$4:$B$462="Powercor")*('[2]ZSS Results'!$D$4:$D$462="winter")*('[2]ZSS Results'!$C$4:$C$462=C112),'[2]ZSS Results'!$AO$4:$AO$462) -> 77.53 | K112: =_xlfn.XLOOKUP(C112,'[3]zss forecast'!$B$3:$B$155,'[3]zss forecast'!$HR$3:$HR$155) -> 79.21
B113: Zone | C113: LVN11 | D113: Non-coincident | E113: Winter | F113: =_xlfn.XLOOKUP(C113,[1]Sheet1!$A$2:$A$86,[1]Sheet1!$B$2:$B$86) -> 30 | H113: =_xlfn.XLOOKUP(1,('[2]ZSS Results'!$B$4:$B$462="Powercor")*('[2]ZSS Results'!$D$4:$D$462="winter")*('[2]ZSS Results'!$C$4:$C$462=C113),'[2]ZSS Results'!$S$4:$S$462) -> 14.05 | I113: =_xlfn.XLOOKUP(C113,'[3]zss forecast'!$B$3:$B$155,'[3]zss forecast'!$GO$3:$GO$155) -> 13.56 | J113: =_xlfn.XLOOKUP(1,('[2]ZSS Results'!$B$4:$B$462="Powercor")*('[2]ZSS Results'!$D$4:$D$462="winter")*('[2]ZSS Results'!$C$4:$C$462=C113),'[2]ZSS Results'!$AO$4:$AO$462) -> 13.95 | K113: =_xlfn.XLOOKUP(C113,'[3]zss forecast'!$B$3:$B$155,'[3]zss forecast'!$HR$3:$HR$155) -> 13.48
B114: Zone | C114: MBN | D114: Non-coincident | E114: Winter | F114: =_xlfn.XLOOKUP(C114,[1]Sheet1!$A$2:$A$86,[1]Sheet1!$B$2:$B$86) -> 59 | H114: =_xlfn.XLOOKUP(1,('[2]ZSS Results'!$B$4:$B$462="Powercor")*('[2]ZSS Results'!$D$4:$D$462="winter")*('[2]ZSS Results'!$C$4:$C$462=C114),'[2]ZSS Results'!$S$4:$S$462) -> 36.35 | I114: =_xlfn.XLOOKUP(C114,'[3]zss forecast'!$B$3:$B$155,'[3]zss forecast'!$GO$3:$GO$155) -> 36.12 | J114: =_xlfn.XLOOKUP(1,('[2]ZSS Results'!$B$4:$B$462="Powercor")*('[2]ZSS Results'!$D$4:$D$462="winter")*('[2]ZSS Results'!$C$4:$C$462=C114),'[2]ZSS Results'!$AO$4:$AO$462) -> 28.08 | K114: =_xlfn.XLOOKUP(C114,'[3]zss forecast'!$B$3:$B$155,'[3]zss forecast'!$HR$3:$HR$155) -> 29.28
B115: Zone | C115: MDA | D115: Non-coincident | E115: Winter | F115: =_xlfn.XLOOKUP(C115,[1]Sheet1!$A$2:$A$86,[1]Sheet1!$B$2:$B$86) -> 66 | H115: =_xlfn.XLOOKUP(1,('[2]ZSS Results'!$B$4:$B$462="Powercor")*('[2]ZSS Results'!$D$4:$D$462="winter")*('[2]ZSS Results'!$C$4:$C$462=C115),'[2]ZSS Results'!$S$4:$S$462) -> 44.18 | I115: =_xlfn.XLOOKUP(C115,'[3]zss forecast'!$B$3:$B$155,'[3]zss forecast'!$GO$3:$GO$155) -> 43.67 | J115: =_xlfn.XLOOKUP(1,('[2]ZSS Results'!$B$4:$B$462="Powercor")*('[2]ZSS Results'!$D$4:$D$462="winter")*('[2]ZSS Results'!$C$4:$C$462=C115),'[2]ZSS Results'!$AO$4:$AO$462) -> 41.68 | K115: =_xlfn.XLOOKUP(C115,'[3]zss forecast'!$B$3:$B$155,'[3]zss forecast'!$HR$3:$HR$155) -> 41.83
B116: Zone | C116: MLN | D116: Non-coincident | E116: Winter | F116: =_xlfn.XLOOKUP(C116,[1]Sheet1!$A$2:$A$86,[1]Sheet1!$B$2:$B$86) -> 99 | H116: =_xlfn.XLOOKUP(1,('[2]ZSS Results'!$B$4:$B$462="Powercor")*('[2]ZSS Results'!$D$4:$D$462="winter")*('[2]ZSS Results'!$C$4:$C$462=C116),'[2]ZSS Results'!$S$4:$S$462) -> 108.32 | I116: =_xlfn.XLOOKUP(C116,'[3]zss forecast'!$B$3:$B$155,'[3]zss forecast'!$GO$3:$GO$155) -> 108.29 | J116: =_xlfn.XLOOKUP(1,('[2]ZSS Results'!$B$4:$B$462="Powercor")*('[2]ZSS Results'!$D$4:$D$462="winter")*('[2]ZSS Results'!$C$4:$C$462=C116),'[2]ZSS Results'!$AO$4:$AO$462) -> 79.93 | K116: =_xlfn.XLOOKUP(C116,'[3]zss forecast'!$B$3:$B$155,'[3]zss forecast'!$HR$3:$HR$155) -> 99.68
B117: Zone | C117: MNA | D117: Non-coincident | E117: Winter | F117: =_xlfn.XLOOKUP(C117,[1]Sheet1!$A$2:$A$86,[1]Sheet1!$B$2:$B$86) -> 66 | H117: =_xlfn.XLOOKUP(1,('[2]ZSS Results'!$B$4:$B$462="Powercor")*('[2]ZSS Results'!$D$4:$D$462="winter")*('[2]ZSS Results'!$C$4:$C$462=C117),'[2]ZSS Results'!$S$4:$S$462) -> 34.53 | I117: =_xlfn.XLOOKUP(C117,'[3]zss forecast'!$B$3:$B$155,'[3]zss forecast'!$GO$3:$GO$155) -> 33.96 | J117: =_xlfn.XLOOKUP(1,('[2]ZSS Results'!$B$4:$B$462="Powercor")*('[2]ZSS Results'!$D$4:$D$462="winter")*('[2]ZSS Results'!$C$4:$C$462=C117),'[2]ZSS Results'!$AO$4:$AO$462) -> 31.28 | K117: =_xlfn.XLOOKUP(C117,'[3]zss forecast'!$B$3:$B$155,'[3]zss forecast'!$HR$3:$HR$155) -> 31.94
B118: Zone | C118: MRO | D118: Non-coincident | E118: Winter | F118: =_xlfn.XLOOKUP(C118,[1]Sheet1!$A$2:$A$86,[1]Sheet1!$B$2:$B$86) -> 27 | H118: =_xlfn.XLOOKUP(1,('[2]ZSS Results'!$B$4:$B$462="Powercor")*('[2]ZSS Results'!$D$4:$D$462="winter")*('[2]ZSS Results'!$C$4:$C$462=C118),'[2]ZSS Results'!$S$4:$S$462) -> 20.68 | I118: =_xlfn.XLOOKUP(C118,'[3]zss forecast'!$B$3:$B$155,'[3]zss forecast'!$GO$3:$GO$155) -> 20.67 | J118: =_xlfn.XLOOKUP(1,('[2]ZSS Results'!$B$4:$B$462="Powercor")*('[2]ZSS Results'!$D$4:$D$462="winter")*('[2]ZSS Results'!$C$4:$C$462=C118),'[2]ZSS Results'!$AO$4:$AO$462) -> 18.55 | K118: =_xlfn.XLOOKUP(C118,'[3]zss forecast'!$B$3:$B$155,'[3]zss forecast'!$HR$3:$HR$155) -> 18.76
B119: Zone | C119: MTC | D119: Non-coincident | E119: Winter | F119: =_xlfn.XLOOKUP(C119,[1]Sheet1!$A$2:$A$86,[1]Sheet1!$B$2:$B$86) -> 66 | H119: =_xlfn.XLOOKUP(1,('[2]ZSS Results'!$B$4:$B$462="Powercor")*('[2]ZSS Results'!$D$4:$D$462="winter")*('[2]ZSS Results'!$C$4:$C$462=C119),'[2]ZSS Results'!$S$4:$S$462) -> 92.16 | I119: =_xlfn.XLOOKUP(C119,'[3]zss forecast'!$B$3:$B$155,'[3]zss forecast'!$GO$3:$GO$155) -> 92.16 | J119: =_xlfn.XLOOKUP(1,('[2]ZSS Results'!$B$4:$B$462="Powercor")*('[2]ZSS Results'!$D$4:$D$462="winter")*('[2]ZSS Results'!$C$4:$C$462=C119),'[2]ZSS Results'!$AO$4:$AO$462) -> 63.4 | K119: =_xlfn.XLOOKUP(C119,'[3]zss forecast'!$B$3:$B$155,'[3]zss forecast'!$HR$3:$HR$155) -> 86.17
B120: Zone | C120: NHL | D120: Non-coincident | E120: Winter | F120: =_xlfn.XLOOKUP(C120,[1]Sheet1!$A$2:$A$86,[1]Sheet1!$B$2:$B$86) -> 20 | H120: =_xlfn.XLOOKUP(1,('[2]ZSS Results'!$B$4:$B$462="Powercor")*('[2]ZSS Results'!$D$4:$D$462="winter")*('[2]ZSS Results'!$C$4:$C$462=C120),'[2]ZSS Results'!$S$4:$S$462) -> 16.63 | I120: =_xlfn.XLOOKUP(C120,'[3]zss forecast'!$B$3:$B$155,'[3]zss forecast'!$GO$3:$GO$155) -> 16.63 | J120: =_xlfn.XLOOKUP(1,('[2]ZSS Results'!$B$4:$B$462="Powercor")*('[2]ZSS Results'!$D$4:$D$462="winter")*('[2]ZSS Results'!$C$4:$C$462=C120),'[2]ZSS Results'!$AO$4:$AO$462) -> 13.39 | K120: =_xlfn.XLOOKUP(C120,'[3]zss forecast'!$B$3:$B$155,'[3]zss forecast'!$HR$3:$HR$155) -> 13.19
B121: Zone | C121: NKA | D121: Non-coincident | E121: Winter | F121: =_xlfn.XLOOKUP(C121,[1]Sheet1!$A$2:$A$86,[1]Sheet1!$B$2:$B$86) -> 39.5 | H121: =_xlfn.XLOOKUP(1,('[2]ZSS Results'!$B$4:$B$462="Powercor")*('[2]ZSS Results'!$D$4:$D$462="winter")*('[2]ZSS Results'!$C$4:$C$462=C121),'[2]ZSS Results'!$S$4:$S$462) -> 28.43 | I121: =_xlfn.XLOOKUP(C121,'[3]zss forecast'!$B$3:$B$155,'[3]zss forecast'!$GO$3:$GO$155) -> 28.4 | J121: =_xlfn.XLOOKUP(1,('[2]ZSS Results'!$B$4:$B$462="Powercor")*('[2]ZSS Results'!$D$4:$D$462="winter")*('[2]ZSS Results'!$C$4:$C$462=C121),'[2]ZSS Results'!$AO$4:$AO$462) -> 25.66 | K121: =_xlfn.XLOOKUP(C121,'[3]zss forecast'!$B$3:$B$155,'[3]zss forecast'!$HR$3:$HR$155) -> 26.74
B122: Zone | C122: OYN | D122: Non-coincident | E122: Winter | F122: =_xlfn.XLOOKUP(C122,[1]Sheet1!$A$2:$A$86,[1]Sheet1!$B$2:$B$86) -> 27 | H122: =_xlfn.XLOOKUP(1,('[2]ZSS Results'!$B$4:$B$462="Powercor")*('[2]ZSS Results'!$D$4:$D$462="winter")*('[2]ZSS Results'!$C$4:$C$462=C122),'[2]ZSS Results'!$S$4:$S$462) -> 6.71 | I122: =_xlfn.XLOOKUP(C122,'[3]zss forecast'!$B$3:$B$155,'[3]zss forecast'!$GO$3:$GO$155) -> 5.8 | J122: =_xlfn.XLOOKUP(1,('[2]ZSS Results'!$B$4:$B$462="Powercor")*('[2]ZSS Results'!$D$4:$D$462="winter")*('[2]ZSS Results'!$C$4:$C$462=C122),'[2]ZSS Results'!$AO$4:$AO$462) -> 6.47 | K122: =_xlfn.XLOOKUP(C122,'[3]zss forecast'!$B$3:$B$155,'[3]zss forecast'!$HR$3:$HR$155) -> 5.54
B123: Zone | C123: PLD | D123: Non-coincident | E123: Winter | F123: =_xlfn.XLOOKUP(C123,[1]Sheet1!$A$2:$A$86,[1]Sheet1!$B$2:$B$86) -> 32 | H123: =_xlfn.XLOOKUP(1,('[2]ZSS Results'!$B$4:$B$462="Powercor")*('[2]ZSS Results'!$D$4:$D$462="winter")*('[2]ZSS Results'!$C$4:$C$462=C123),'[2]ZSS Results'!$S$4:$S$462) -> 17.88 | I123: =_xlfn.XLOOKUP(C123,'[3]zss forecast'!$B$3:$B$155,'[3]zss forecast'!$GO$3:$GO$155) -> 17.87 | J123: =_xlfn.XLOOKUP(1,('[2]ZSS Results'!$B$4:$B$462="Powercor")*('[2]ZSS Results'!$D$4:$D$462="winter")*('[2]ZSS Results'!$C$4:$C$462=C123),'[2]ZSS Results'!$AO$4:$AO$462) -> 17.25 | K123: =_xlfn.XLOOKUP(C123,'[3]zss forecast'!$B$3:$B$155,'[3]zss forecast'!$HR$3:$HR$155) -> 17.19
B124: Zone | C124: RVL | D124: Non-coincident | E124: Winter | F124: =_xlfn.XLOOKUP(C124,[1]Sheet1!$A$2:$A$86,[1]Sheet1!$B$2:$B$86) -> 19.5 | H124: =_xlfn.XLOOKUP(1,('[2]ZSS Results'!$B$4:$B$462="Powercor")*('[2]ZSS Results'!$D$4:$D$462="winter")*('[2]ZSS Results'!$C$4:$C$462=C124),'[2]ZSS Results'!$S$4:$S$462) -> 21.56 | I124: =_xlfn.XLOOKUP(C124,'[3]zss forecast'!$B$3:$B$155,'[3]zss forecast'!$GO$3:$GO$155) -> 21.53 | J124: =_xlfn.XLOOKUP(1,('[2]ZSS Results'!$B$4:$B$462="Powercor")*('[2]ZSS Results'!$D$4:$D$462="winter")*('[2]ZSS Results'!$C$4:$C$462=C124),'[2]ZSS Results'!$AO$4:$AO$462) -> 16.4 | K124: =_xlfn.XLOOKUP(C124,'[3]zss forecast'!$B$3:$B$155,'[3]zss forecast'!$HR$3:$HR$155) -> 18.31
B125: Zone | C125: SA | D125: Non-coincident | E125: Winter | F125: =_xlfn.XLOOKUP(C125,[1]Sheet1!$A$2:$A$86,[1]Sheet1!$B$2:$B$86) -> 93 | H125: =_xlfn.XLOOKUP(1,('[2]ZSS Results'!$B$4:$B$462="Powercor")*('[2]ZSS Results'!$D$4:$D$462="winter")*('[2]ZSS Results'!$C$4:$C$462=C125),'[2]ZSS Results'!$S$4:$S$462) -> 78.6 | I125: =_xlfn.XLOOKUP(C125,'[3]zss forecast'!$B$3:$B$155,'[3]zss forecast'!$GO$3:$GO$155) -> 78.32 | J125: =_xlfn.XLOOKUP(1,('[2]ZSS Results'!$B$4:$B$462="Powercor")*('[2]ZSS Results'!$D$4:$D$462="winter")*('[2]ZSS Results'!$C$4:$C$462=C125),'[2]ZSS Results'!$AO$4:$AO$462) -> 69.55 | K125: =_xlfn.XLOOKUP(C125,'[3]zss forecast'!$B$3:$B$155,'[3]zss forecast'!$HR$3:$HR$155) -> 75.31
B126: Zone | C126: SHL | D126: Non-coincident | E126: Winter | F126: =_xlfn.XLOOKUP(C126,[1]Sheet1!$A$2:$A$86,[1]Sheet1!$B$2:$B$86) -> 40.5 | H126: =_xlfn.XLOOKUP(1,('[2]ZSS Results'!$B$4:$B$462="Powercor")*('[2]ZSS Results'!$D$4:$D$462="winter")*('[2]ZSS Results'!$C$4:$C$462=C126),'[2]ZSS Results'!$S$4:$S$462) -> 29.79 | I126: =_xlfn.XLOOKUP(C126,'[3]zss forecast'!$B$3:$B$155,'[3]zss forecast'!$GO$3:$GO$155) -> 29.76 | J126: =_xlfn.XLOOKUP(1,('[2]ZSS Results'!$B$4:$B$462="Powercor")*('[2]ZSS Results'!$D$4:$D$462="winter")*('[2]ZSS Results'!$C$4:$C$462=C126),'[2]ZSS Results'!$AO$4:$AO$462) -> 27.21 | K126: =_xlfn.XLOOKUP(C126,'[3]zss forecast'!$B$3:$B$155,'[3]zss forecast'!$HR$3:$HR$155) -> 26.92
B127: Zone | C127: SHN | D127: Non-coincident | E127: Winter | F127: =_xlfn.XLOOKUP(C127,[1]Sheet1!$A$2:$A$86,[1]Sheet1!$B$2:$B$86) -> 66 | H127: =_xlfn.XLOOKUP(1,('[2]ZSS Results'!$B$4:$B$462="Powercor")*('[2]ZSS Results'!$D$4:$D$462="winter")*('[2]ZSS Results'!$C$4:$C$462=C127),'[2]ZSS Results'!$S$4:$S$462) -> 30.95 | I127: =_xlfn.XLOOKUP(C127,'[3]zss forecast'!$B$3:$B$155,'[3]zss forecast'!$GO$3:$GO$155) -> 30.94 | J127: =_xlfn.XLOOKUP(1,('[2]ZSS Results'!$B$4:$B$462="Powercor")*('[2]ZSS Results'!$D$4:$D$462="winter")*('[2]ZSS Results'!$C$4:$C$462=C127),'[2]ZSS Results'!$AO$4:$AO$462) -> 28.74 | K127: =_xlfn.XLOOKUP(C127,'[3]zss forecast'!$B$3:$B$155,'[3]zss forecast'!$HR$3:$HR$155) -> 29.7
B128: Zone | C128: SHP | D128: Non-coincident | E128: Winter | F128: =_xlfn.XLOOKUP(C128,[1]Sheet1!$A$2:$A$86,[1]Sheet1!$B$2:$B$86) -> 66 | H128: =_xlfn.XLOOKUP(1,('[2]ZSS Results'!$B$4:$B$462="Powercor")*('[2]ZSS Results'!$D$4:$D$462="winter")*('[2]ZSS Results'!$C$4:$C$462=C128),'[2]ZSS Results'!$S$4:$S$462) -> 27.57 | I128: =_xlfn.XLOOKUP(C128,'[3]zss forecast'!$B$3:$B$155,'[3]zss forecast'!$GO$3:$GO$155) -> 27.36 | J128: =_xlfn.XLOOKUP(1,('[2]ZSS Results'!$B$4:$B$462="Powercor")*('[2]ZSS Results'!$D$4:$D$462="winter")*('[2]ZSS Results'!$C$4:$C$462=C128),'[2]ZSS Results'!$AO$4:$AO$462) -> 19.19 | K128: =_xlfn.XLOOKUP(C128,'[3]zss forecast'!$B$3:$B$155,'[3]zss forecast'!$HR$3:$HR$155) -> 19.25
B129: Zone | C129: SSE | D129: Non-coincident | E129: Winter | F129: =_xlfn.XLOOKUP(C129,[1]Sheet1!$A$2:$A$86,[1]Sheet1!$B$2:$B$86) -> 99 | H129: =_xlfn.XLOOKUP(1,('[2]ZSS Results'!$B$4:$B$462="Powercor")*('[2]ZSS Results'!$D$4:$D$462="winter")*('[2]ZSS Results'!$C$4:$C$462=C129),'[2]ZSS Results'!$S$4:$S$462) -> 68.72 | I129: =_xlfn.XLOOKUP(C129,'[3]zss forecast'!$B$3:$B$155,'[3]zss forecast'!$GO$3:$GO$155) -> 67.71 | J129: =_xlfn.XLOOKUP(1,('[2]ZSS Results'!$B$4:$B$462="Powercor")*('[2]ZSS Results'!$D$4:$D$462="winter")*('[2]ZSS Results'!$C$4:$C$462=C129),'[2]ZSS Results'!$AO$4:$AO$462) -> 63.01 | K129: =_xlfn.XLOOKUP(C129,'[3]zss forecast'!$B$3:$B$155,'[3]zss forecast'!$HR$3:$HR$155) -> 65.08
B130: Zone | C130: STL | D130: Non-coincident | E130: Winter | F130: =_xlfn.XLOOKUP(C130,[1]Sheet1!$A$2:$A$86,[1]Sheet1!$B$2:$B$86) -> 27 | H130: =_xlfn.XLOOKUP(1,('[2]ZSS Results'!$B$4:$B$462="Powercor")*('[2]ZSS Results'!$D$4:$D$462="winter")*('[2]ZSS Results'!$C$4:$C$462=C130),'[2]ZSS Results'!$S$4:$S$462) -> 19.06 | I130: =_xlfn.XLOOKUP(C130,'[3]zss forecast'!$B$3:$B$155,'[3]zss forecast'!$GO$3:$GO$155) -> 18.62 | J130: =_xlfn.XLOOKUP(1,('[2]ZSS Results'!$B$4:$B$462="Powercor")*('[2]ZSS Results'!$D$4:$D$462="winter")*('[2]ZSS Results'!$C$4:$C$462=C130),'[2]ZSS Results'!$AO$4:$AO$462) -> 18.11 | K130: =_xlfn.XLOOKUP(C130,'[3]zss forecast'!$B$3:$B$155,'[3]zss forecast'!$HR$3:$HR$155) -> 17.28
B131: Zone | C131: STN | D131: Non-coincident | E131: Winter | F131: =_xlfn.XLOOKUP(C131,[1]Sheet1!$A$2:$A$86,[1]Sheet1!$B$2:$B$86) -> 79 | H131: =_xlfn.XLOOKUP(1,('[2]ZSS Results'!$B$4:$B$462="Powercor")*('[2]ZSS Results'!$D$4:$D$462="winter")*('[2]ZSS Results'!$C$4:$C$462=C131),'[2]ZSS Results'!$S$4:$S$462) -> 46.75 | I131: =_xlfn.XLOOKUP(C131,'[3]zss forecast'!$B$3:$B$155,'[3]zss forecast'!$GO$3:$GO$155) -> 45.84 | J131: =_xlfn.XLOOKUP(1,('[2]ZSS Results'!$B$4:$B$462="Powercor")*('[2]ZSS Results'!$D$4:$D$462="winter")*('[2]ZSS Results'!$C$4:$C$462=C131),'[2]ZSS Results'!$AO$4:$AO$462) -> 42.46 | K131: =_xlfn.XLOOKUP(C131,'[3]zss forecast'!$B$3:$B$155,'[3]zss forecast'!$HR$3:$HR$155) -> 42.81
B132: Zone | C132: SU | D132: Non-coincident | E132: Winter | F132: =_xlfn.XLOOKUP(C132,[1]Sheet1!$A$2:$A$86,[1]Sheet1!$B$2:$B$86) -> 99 | H132: =_xlfn.XLOOKUP(1,('[2]ZSS Results'!$B$4:$B$462="Powercor")*('[2]ZSS Results'!$D$4:$D$462="winter")*('[2]ZSS Results'!$C$4:$C$462=C132),'[2]ZSS Results'!$S$4:$S$462) -> 93.45 | I132: =_xlfn.XLOOKUP(C132,'[3]zss forecast'!$B$3:$B$155,'[3]zss forecast'!$GO$3:$GO$155) -> 93.02 | J132: =_xlfn.XLOOKUP(1,('[2]ZSS Results'!$B$4:$B$462="Powercor")*('[2]ZSS Results'!$D$4:$D$462="winter")*('[2]ZSS Results'!$C$4:$C$462=C132),'[2]ZSS Results'!$AO$4:$AO$462) -> 77.84 | K132: =_xlfn.XLOOKUP(C132,'[3]zss forecast'!$B$3:$B$155,'[3]zss forecast'!$HR$3:$HR$155) -> 85.7
B133: Zone | C133: TNA | D133: Non-coincident | E133: Winter | F133: =_xlfn.XLOOKUP(C133,[1]Sheet1!$A$2:$A$86,[1]Sheet1!$B$2:$B$86) -> 99 | H133: =_xlfn.XLOOKUP(1,('[2]ZSS Results'!$B$4:$B$462="Powercor")*('[2]ZSS Results'!$D$4:$D$462="winter")*('[2]ZSS Results'!$C$4:$C$462=C133),'[2]ZSS Results'!$S$4:$S$462) -> 123.97 | I133: =_xlfn.XLOOKUP(C133,'[3]zss forecast'!$B$3:$B$155,'[3]zss forecast'!$GO$3:$GO$155) -> 123.68 | J133: =_xlfn.XLOOKUP(1,('[2]ZSS Results'!$B$4:$B$462="Powercor")*('[2]ZSS Results'!$D$4:$D$462="winter")*('[2]ZSS Results'!$C$4:$C$462=C133),'[2]ZSS Results'!$AO$4:$AO$462) -> 131.74 | K133: =_xlfn.XLOOKUP(C133,'[3]zss forecast'!$B$3:$B$155,'[3]zss forecast'!$HR$3:$HR$155) -> 103.92
B134: Zone | C134: TQY | D134: Non-coincident | E134: Winter | F134: =_xlfn.XLOOKUP(C134,[1]Sheet1!$A$2:$A$86,[1]Sheet1!$B$2:$B$86) -> 66 | H134: =_xlfn.XLOOKUP(1,('[2]ZSS Results'!$B$4:$B$462="Powercor")*('[2]ZSS Results'!$D$4:$D$462="winter")*('[2]ZSS Results'!$C$4:$C$462=C134),'[2]ZSS Results'!$S$4:$S$462) -> 44.48 | I134: =_xlfn.XLOOKUP(C134,'[3]zss forecast'!$B$3:$B$155,'[3]zss forecast'!$GO$3:$GO$155) -> 44.46 | J134: =_xlfn.XLOOKUP(1,('[2]ZSS Results'!$B$4:$B$462="Powercor")*('[2]ZSS Results'!$D$4:$D$462="winter")*('[2]ZSS Results'!$C$4:$C$462=C134),'[2]ZSS Results'!$AO$4:$AO$462) -> 38.02 | K134: =_xlfn.XLOOKUP(C134,'[3]zss forecast'!$B$3:$B$155,'[3]zss forecast'!$HR$3:$HR$155) -> 41.35
B135: Zone | C135: TRG | D135: Non-coincident | E135: Winter | F135: =_xlfn.XLOOKUP(C135,[1]Sheet1!$A$2:$A$86,[1]Sheet1!$B$2:$B$86) -> 46.5 | H135: =_xlfn.XLOOKUP(1,('[2]ZSS Results'!$B$4:$B$462="Powercor")*('[2]ZSS Results'!$D$4:$D$462="winter")*('[2]ZSS Results'!$C$4:$C$462=C135),'[2]ZSS Results'!$S$4:$S$462) -> 22.22 | I135: =_xlfn.XLOOKUP(C135,'[3]zss forecast'!$B$3:$B$155,'[3]zss forecast'!$GO$3:$GO$155) -> 22.16 | J135: =_xlfn.XLOOKUP(1,('[2]ZSS Results'!$B$4:$B$462="Powercor")*('[2]ZSS Results'!$D$4:$D$462="winter")*('[2]ZSS Results'!$C$4:$C$462=C135),'[2]ZSS Results'!$AO$4:$AO$462) -> 19.59 | K135: =_xlfn.XLOOKUP(C135,'[3]zss forecast'!$B$3:$B$155,'[3]zss forecast'!$HR$3:$HR$155) -> 20.39
B136: Zone | C136: WBE | D136: Non-coincident | E136: Winter | F136: =_xlfn.XLOOKUP(C136,[1]Sheet1!$A$2:$A$86,[1]Sheet1!$B$2:$B$86) -> 99 | H136: =_xlfn.XLOOKUP(1,('[2]ZSS Results'!$B$4:$B$462="Powercor")*('[2]ZSS Results'!$D$4:$D$462="winter")*('[2]ZSS Results'!$C$4:$C$462=C136),'[2]ZSS Results'!$S$4:$S$462) -> 97.51 | I136: =_xlfn.XLOOKUP(C136,'[3]zss forecast'!$B$3:$B$155,'[3]zss forecast'!$GO$3:$GO$155) -> 97.48 | J136: =_xlfn.XLOOKUP(1,('[2]ZSS Results'!$B$4:$B$462="Powercor")*('[2]ZSS Results'!$D$4:$D$462="winter")*('[2]ZSS Results'!$C$4:$C$462=C136),'[2]ZSS Results'!$AO$4:$AO$462) -> 92.09 | K136: =_xlfn.XLOOKUP(C136,'[3]zss forecast'!$B$3:$B$155,'[3]zss forecast'!$HR$3:$HR$155) -> 90.41
B137: Zone | C137: WBL | D137: Non-coincident | E137: Winter | F137: =_xlfn.XLOOKUP(C137,[1]Sheet1!$A$2:$A$86,[1]Sheet1!$B$2:$B$86) -> 79.5 | H137: =_xlfn.XLOOKUP(1,('[2]ZSS Results'!$B$4:$B$462="Powercor")*('[2]ZSS Results'!$D$4:$D$462="winter")*('[2]ZSS Results'!$C$4:$C$462=C137),'[2]ZSS Results'!$S$4:$S$462) -> 54.75 | I137: =_xlfn.XLOOKUP(C137,'[3]zss forecast'!$B$3:$B$155,'[3]zss forecast'!$GO$3:$GO$155) -> 54.27 | J137: =_xlfn.XLOOKUP(1,('[2]ZSS Results'!$B$4:$B$462="Powercor")*('[2]ZSS Results'!$D$4:$D$462="winter")*('[2]ZSS Results'!$C$4:$C$462=C137),'[2]ZSS Results'!$AO$4:$AO$462) -> 47.84 | K137: =_xlfn.XLOOKUP(C137,'[3]zss forecast'!$B$3:$B$155,'[3]zss forecast'!$HR$3:$HR$155) -> 48.74
B138: Zone | C138: WIN | D138: Non-coincident | E138: Winter | F138: =_xlfn.XLOOKUP(C138,[1]Sheet1!$A$2:$A$86,[1]Sheet1!$B$2:$B$86) -> 20.5 | H138: =_xlfn.XLOOKUP(1,('[2]ZSS Results'!$B$4:$B$462="Powercor")*('[2]ZSS Results'!$D$4:$D$462="winter")*('[2]ZSS Results'!$C$4:$C$462=C138),'[2]ZSS Results'!$S$4:$S$462) -> 10.89 | I138: =_xlfn.XLOOKUP(C138,'[3]zss forecast'!$B$3:$B$155,'[3]zss forecast'!$GO$3:$GO$155) -> 10.27 | J138: =_xlfn.XLOOKUP(1,('[2]ZSS Results'!$B$4:$B$462="Powercor")*('[2]ZSS Results'!$D$4:$D$462="winter")*('[2]ZSS Results'!$C$4:$C$462=C138),'[2]ZSS Results'!$AO$4:$AO$462) -> 9.95 | K138: =_xlfn.XLOOKUP(C138,'[3]zss forecast'!$B$3:$B$155,'[3]zss forecast'!$HR$3:$HR$155) -> 9.66
B139: Zone | C139: WMN | D139: Non-coincident | E139: Winter | F139: =_xlfn.XLOOKUP(C139,[1]Sheet1!$A$2:$A$86,[1]Sheet1!$B$2:$B$86) -> 46.5 | H139: =_xlfn.XLOOKUP(1,('[2]ZSS Results'!$B$4:$B$462="Powercor")*('[2]ZSS Results'!$D$4:$D$462="winter")*('[2]ZSS Results'!$C$4:$C$462=C139),'[2]ZSS Results'!$S$4:$S$462) -> 21.77 | I139: =_xlfn.XLOOKUP(C139,'[3]zss forecast'!$B$3:$B$155,'[3]zss forecast'!$GO$3:$GO$155) -> 21.48 | J139: =_xlfn.XLOOKUP(1,('[2]ZSS Results'!$B$4:$B$462="Powercor")*('[2]ZSS Results'!$D$4:$D$462="winter")*('[2]ZSS Results'!$C$4:$C$462=C139),'[2]ZSS Results'!$AO$4:$AO$462) -> 18.09 | K139: =_xlfn.XLOOKUP(C139,'[3]zss forecast'!$B$3:$B$155,'[3]zss forecast'!$HR$3:$HR$155) -> 18.54
B140: Zone | C140: WND | D140: Non-coincident | E140: Winter | F140: =_xlfn.XLOOKUP(C140,[1]Sheet1!$A$2:$A$86,[1]Sheet1!$B$2:$B$86) -> 66 | H140: =_xlfn.XLOOKUP(1,('[2]ZSS Results'!$B$4:$B$462="Powercor")*('[2]ZSS Results'!$D$4:$D$462="winter")*('[2]ZSS Results'!$C$4:$C$462=C140),'[2]ZSS Results'!$S$4:$S$462) -> 30.16 | I140: =_xlfn.XLOOKUP(C140,'[3]zss forecast'!$B$3:$B$155,'[3]zss forecast'!$GO$3:$GO$155) -> 30.03 | J140: =_xlfn.XLOOKUP(1,('[2]ZSS Results'!$B$4:$B$462="Powercor")*('[2]ZSS Results'!$D$4:$D$462="winter")*('[2]ZSS Results'!$C$4:$C$462=C140),'[2]ZSS Results'!$AO$4:$AO$462) -> 25.71 | K140: =_xlfn.XLOOKUP(C140,'[3]zss forecast'!$B$3:$B$155,'[3]zss forecast'!$HR$3:$HR$155) -> 28
B141: Zone | C141: WPD | D141: Non-coincident | E141: Winter | F141: =_xlfn.XLOOKUP(C141,[1]Sheet1!$A$2:$A$86,[1]Sheet1!$B$2:$B$86) -> 79.5 | H141: =_xlfn.XLOOKUP(1,('[2]ZSS Results'!$B$4:$B$462="Powercor")*('[2]ZSS Results'!$D$4:$D$462="winter")*('[2]ZSS Results'!$C$4:$C$462=C141),'[2]ZSS Results'!$S$4:$S$462) -> 58.97 | I141: =_xlfn.XLOOKUP(C141,'[3]zss forecast'!$B$3:$B$155,'[3]zss forecast'!$GO$3:$GO$155) -> 58.97 | J141: =_xlfn.XLOOKUP(1,('[2]ZSS Results'!$B$4:$B$462="Powercor")*('[2]ZSS Results'!$D$4:$D$462="winter")*('[2]ZSS Results'!$C$4:$C$462=C141),'[2]ZSS Results'!$AO$4:$AO$462) -> 48.32 | K141: =_xlfn.XLOOKUP(C141,'[3]zss forecast'!$B$3:$B$155,'[3]zss forecast'!$HR$3:$HR$155) -> 55.98
B142: Zone | C142: AC | D142: Coincident | E142: Summer | F142: =_xlfn.XLOOKUP(C142,[1]Sheet1!$A$2:$A$86,[1]Sheet1!$B$2:$B$86) -> 40 | H142: =_xlfn.XLOOKUP($C142,[4]Sheet1!$A$2:$A$66,[4]Sheet1!$D$2:$D$66)*H12 -> 0.6519652884 | I142: =_xlfn.XLOOKUP($C142,[4]Sheet1!$A$2:$A$66,[4]Sheet1!$D$2:$D$66)*I12 -> 0.6116130679 | J142: =_xlfn.XLOOKUP($C142,[4]Sheet1!$A$2:$A$66,[4]Sheet1!$D$2:$D$66)*J12 -> 0.4604900459 | K142: =_xlfn.XLOOKUP($C142,[4]Sheet1!$A$2:$A$66,[4]Sheet1!$D$2:$D$66)*K12 -> 0.4438744257
B143: Zone | C143: AL | D143: Coincident | E143: Summer | F143: =_xlfn.XLOOKUP(C143,[1]Sheet1!$A$2:$A$86,[1]Sheet1!$B$2:$B$86) -> 30 | H143: =_xlfn.XLOOKUP($C143,[4]Sheet1!$A$2:$A$66,[4]Sheet1!$D$2:$D$66)*H13 -> 19.07312777 | I143: =_xlfn.XLOOKUP($C143,[4]Sheet1!$A$2:$A$66,[4]Sheet1!$D$2:$D$66)*I13 -> 18.57888889 | J143: =_xlfn.XLOOKUP($C143,[4]Sheet1!$A$2:$A$66,[4]Sheet1!$D$2:$D$66)*J13 -> 15.77071342 | K143: =_xlfn.XLOOKUP($C143,[4]Sheet1!$A$2:$A$66,[4]Sheet1!$D$2:$D$66)*K13 -> 16.08522907
B144: Zone | C144: ART | D144: Coincident | E144: Summer | F144: =_xlfn.XLOOKUP(C144,[1]Sheet1!$A$2:$A$86,[1]Sheet1!$B$2:$B$86) -> 20 | H144: =_xlfn.XLOOKUP($C144,[4]Sheet1!$A$2:$A$66,[4]Sheet1!$D$2:$D$66)*H14 -> 10.93970645 | I144: =_xlfn.XLOOKUP($C144,[4]Sheet1!$A$2:$A$66,[4]Sheet1!$D$2:$D$66)*I14 -> 10.93289891 | J144: =_xlfn.XLOOKUP($C144,[4]Sheet1!$A$2:$A$66,[4]Sheet1!$D$2:$D$66)*J14 -> 9.646275068 | K144: =_xlfn.XLOOKUP($C144,[4]Sheet1!$A$2:$A$66,[4]Sheet1!$D$2:$D$66)*K14 -> 9.673505203
B145: Zone | C145: AWT | D145: Coincident | E145: Summer | F145: =_xlfn.XLOOKUP(C145,[1]Sheet1!$A$2:$A$86,[1]Sheet1!$B$2:$B$86) -> 66 | H145: =_xlfn.XLOOKUP($C145,[4]Sheet1!$A$2:$A$66,[4]Sheet1!$D$2:$D$66)*H15 -> 13.05437244 | I145: =_xlfn.XLOOKUP($C145,[4]Sheet1!$A$2:$A$66,[4]Sheet1!$D$2:$D$66)*I15 -> 13.02774898 | J145: =_xlfn.XLOOKUP($C145,[4]Sheet1!$A$2:$A$66,[4]Sheet1!$D$2:$D$66)*J15 -> 3.736159618 | K145: =_xlfn.XLOOKUP($C145,[4]Sheet1!$A$2:$A$66,[4]Sheet1!$D$2:$D$66)*K15 -> 12.67276944
B146: Zone | C146: BAE | D146: Coincident | E146: Summer | F146: =_xlfn.XLOOKUP(C146,[1]Sheet1!$A$2:$A$86,[1]Sheet1!$B$2:$B$86) -> 33 | H146: =_xlfn.XLOOKUP($C146,[4]Sheet1!$A$2:$A$66,[4]Sheet1!$D$2:$D$66)*H16 -> 37.57313784 | I146: =_xlfn.XLOOKUP($C146,[4]Sheet1!$A$2:$A$66,[4]Sheet1!$D$2:$D$66)*I16 -> 37.57313784 | J146: =_xlfn.XLOOKUP($C146,[4]Sheet1!$A$2:$A$66,[4]Sheet1!$D$2:$D$66)*J16 -> 27.56845616 | K146: =_xlfn.XLOOKUP($C146,[4]Sheet1!$A$2:$A$66,[4]Sheet1!$D$2:$D$66)*K16 -> 32.56224599
B147: Zone | C147: BAN | D147: Coincident | E147: Summer | F147: =_xlfn.XLOOKUP(C147,[1]Sheet1!$A$2:$A$86,[1]Sheet1!$B$2:$B$86) -> 120 | H147: =_xlfn.XLOOKUP($C147,[4]Sheet1!$A$2:$A$66,[4]Sheet1!$D$2:$D$66)*H17 -> 80.76565371 | I147: =_xlfn.XLOOKUP($C147,[4]Sheet1!$A$2:$A$66,[4]Sheet1!$D$2:$D$66)*I17 -> 80.44330742 | J147: =_xlfn.XLOOKUP($C147,[4]Sheet1!$A$2:$A$66,[4]Sheet1!$D$2:$D$66)*J17 -> 81.98340636 | K147: =_xlfn.XLOOKUP($C147,[4]Sheet1!$A$2:$A$66,[4]Sheet1!$D$2:$D$66)*K17 -> 67.47782332
B148: Zone | C148: BAS | D148: Coincident | E148: Summer | F148: =_xlfn.XLOOKUP(C148,[1]Sheet1!$A$2:$A$86,[1]Sheet1!$B$2:$B$86) -> 99 | H148: =_xlfn.XLOOKUP($C148,[4]Sheet1!$A$2:$A$66,[4]Sheet1!$D$2:$D$66)*H18 -> 67.16360418 | I148: =_xlfn.XLOOKUP($C148,[4]Sheet1!$A$2:$A$66,[4]Sheet1!$D$2:$D$66)*I18 -> 67.09027257 | J148: =_xlfn.XLOOKUP($C148,[4]Sheet1!$A$2:$A$66,[4]Sheet1!$D$2:$D$66)*J18 -> 66.56880336 | K148: =_xlfn.XLOOKUP($C148,[4]Sheet1!$A$2:$A$66,[4]Sheet1!$D$2:$D$66)*K18 -> 62.8859271
B149: Zone | C149: BBD | D149: Coincident | E149: Summer | F149: =_xlfn.XLOOKUP(C149,[1]Sheet1!$A$2:$A$86,[1]Sheet1!$B$2:$B$86) -> 66 | H149: =_xlfn.XLOOKUP($C149,[4]Sheet1!$A$2:$A$66,[4]Sheet1!$D$2:$D$66)*H19 -> 36.40655855 | I149: =_xlfn.XLOOKUP($C149,[4]Sheet1!$A$2:$A$66,[4]Sheet1!$D$2:$D$66)*I19 -> 35.70141692 | J149: =_xlfn.XLOOKUP($C149,[4]Sheet1!$A$2:$A$66,[4]Sheet1!$D$2:$D$66)*J19 -> 32.04047617 | K149: =_xlfn.XLOOKUP($C149,[4]Sheet1!$A$2:$A$66,[4]Sheet1!$D$2:$D$66)*K19 -> 31.52852404
B150: Zone | C150: BGO | D150: Coincident | E150: Summer | F150: =_xlfn.XLOOKUP(C150,[1]Sheet1!$A$2:$A$86,[1]Sheet1!$B$2:$B$86) -> 66 | H150: =_xlfn.XLOOKUP($C150,[4]Sheet1!$A$2:$A$66,[4]Sheet1!$D$2:$D$66)*H20 -> 38.90117448 | I150: =_xlfn.XLOOKUP($C150,[4]Sheet1!$A$2:$A$66,[4]Sheet1!$D$2:$D$66)*I20 -> 38.72817053 | J150: =_xlfn.XLOOKUP($C150,[4]Sheet1!$A$2:$A$66,[4]Sheet1!$D$2:$D$66)*J20 -> 33.27442688 | K150: =_xlfn.XLOOKUP($C150,[4]Sheet1!$A$2:$A$66,[4]Sheet1!$D$2:$D$66)*K20 -> 34.18887634
B151: Zone | C151: BMH | D151: Coincident | E151: Summer | F151: =_xlfn.XLOOKUP(C151,[1]Sheet1!$A$2:$A$86,[1]Sheet1!$B$2:$B$86) -> 27 | H151: =_xlfn.XLOOKUP($C151,[4]Sheet1!$A$2:$A$66,[4]Sheet1!$D$2:$D$66)*H21 -> 33.5459088 | I151: =_xlfn.XLOOKUP($C151,[4]Sheet1!$A$2:$A$66,[4]Sheet1!$D$2:$D$66)*I21 -> 33.28032557 | J151: =_xlfn.XLOOKUP($C151,[4]Sheet1!$A$2:$A$66,[4]Sheet1!$D$2:$D$66)*J21 -> 27.48328482 | K151: =_xlfn.XLOOKUP($C151,[4]Sheet1!$A$2:$A$66,[4]Sheet1!$D$2:$D$66)*K21 -> 31.15565977
B152: Zone | C152: CDN | D152: Coincident | E152: Summer | F152: =_xlfn.XLOOKUP(C152,[1]Sheet1!$A$2:$A$86,[1]Sheet1!$B$2:$B$86) -> 20 | H152: =_xlfn.XLOOKUP($C152,[4]Sheet1!$A$2:$A$66,[4]Sheet1!$D$2:$D$66)*H22 -> 11.587902 | I152: =_xlfn.XLOOKUP($C152,[4]Sheet1!$A$2:$A$66,[4]Sheet1!$D$2:$D$66)*I22 -> 11.587902 | J152: =_xlfn.XLOOKUP($C152,[4]Sheet1!$A$2:$A$66,[4]Sheet1!$D$2:$D$66)*J22 -> 10.36174908 | K152: =_xlfn.XLOOKUP($C152,[4]Sheet1!$A$2:$A$66,[4]Sheet1!$D$2:$D$66)*K22 -> 10.54340137
B153: Zone | C153: CHA | D153: Coincident | E153: Summer | F153: =_xlfn.XLOOKUP(C153,[1]Sheet1!$A$2:$A$86,[1]Sheet1!$B$2:$B$86) -> 27 | H153: =_xlfn.XLOOKUP($C153,[4]Sheet1!$A$2:$A$66,[4]Sheet1!$D$2:$D$66)*H23 -> 24.08539852 | I153: =_xlfn.XLOOKUP($C153,[4]Sheet1!$A$2:$A$66,[4]Sheet1!$D$2:$D$66)*I23 -> 24.03189522 | J153: =_xlfn.XLOOKUP($C153,[4]Sheet1!$A$2:$A$66,[4]Sheet1!$D$2:$D$66)*J23 -> 16.48793108 | K153: =_xlfn.XLOOKUP($C153,[4]Sheet1!$A$2:$A$66,[4]Sheet1!$D$2:$D$66)*K23 -> 16.30066956
B154: Zone | C154: CHM | D154: Coincident | E154: Summer | F154: =_xlfn.XLOOKUP(C154,[1]Sheet1!$A$2:$A$86,[1]Sheet1!$B$2:$B$86) -> 33 | H154: =_xlfn.XLOOKUP($C154,[4]Sheet1!$A$2:$A$66,[4]Sheet1!$D$2:$D$66)*H24 -> 2.108929465 | I154: =_xlfn.XLOOKUP($C154,[4]Sheet1!$A$2:$A$66,[4]Sheet1!$D$2:$D$66)*I24 -> 2.09929965 | J154: =_xlfn.XLOOKUP($C154,[4]Sheet1!$A$2:$A$66,[4]Sheet1!$D$2:$D$66)*J24 -> 2.031890945 | K154: =_xlfn.XLOOKUP($C154,[4]Sheet1!$A$2:$A$66,[4]Sheet1!$D$2:$D$66)*K24 -> 2.003001501
B155: Zone | C155: CLC | D155: Coincident | E155: Summer | F155: =_xlfn.XLOOKUP(C155,[1]Sheet1!$A$2:$A$86,[1]Sheet1!$B$2:$B$86) -> 79 | H155: =_xlfn.XLOOKUP($C155,[4]Sheet1!$A$2:$A$66,[4]Sheet1!$D$2:$D$66)*H25 -> 41.32109559 | I155: =_xlfn.XLOOKUP($C155,[4]Sheet1!$A$2:$A$66,[4]Sheet1!$D$2:$D$66)*I25 -> 41.32109559 | J155: =_xlfn.XLOOKUP($C155,[4]Sheet1!$A$2:$A$66,[4]Sheet1!$D$2:$D$66)*J25 -> 36.33422146 | K155: =_xlfn.XLOOKUP($C155,[4]Sheet1!$A$2:$A$66,[4]Sheet1!$D$2:$D$66)*K25 -> 38.17290706
B156: Zone | C156: CME | D156: Coincident | E156: Summer | F156: =_xlfn.XLOOKUP(C156,[1]Sheet1!$A$2:$A$86,[1]Sheet1!$B$2:$B$86) -> 40.5 | H156: =_xlfn.XLOOKUP($C156,[4]Sheet1!$A$2:$A$66,[4]Sheet1!$D$2:$D$66)*H26 -> 37.82230755 | I156: =_xlfn.XLOOKUP($C156,[4]Sheet1!$A$2:$A$66,[4]Sheet1!$D$2:$D$66)*I26 -> 37.82230755 | J156: =_xlfn.XLOOKUP($C156,[4]Sheet1!$A$2:$A$66,[4]Sheet1!$D$2:$D$66)*J26 -> 30.03928749 | K156: =_xlfn.XLOOKUP($C156,[4]Sheet1!$A$2:$A$66,[4]Sheet1!$D$2:$D$66)*K26 -> 30.64824833
B157: Zone | C157: CMN | D157: Coincident | E157: Summer | F157: =_xlfn.XLOOKUP(C157,[1]Sheet1!$A$2:$A$86,[1]Sheet1!$B$2:$B$86) -> 66 | H157: =_xlfn.XLOOKUP($C157,[4]Sheet1!$A$2:$A$66,[4]Sheet1!$D$2:$D$66)*H27 -> 24.27624844 | I157: =_xlfn.XLOOKUP($C157,[4]Sheet1!$A$2:$A$66,[4]Sheet1!$D$2:$D$66)*I27 -> 24.21762785 | J157: =_xlfn.XLOOKUP($C157,[4]Sheet1!$A$2:$A$66,[4]Sheet1!$D$2:$D$66)*J27 -> 20.07022169 | K157: =_xlfn.XLOOKUP($C157,[4]Sheet1!$A$2:$A$66,[4]Sheet1!$D$2:$D$66)*K27 -> 20.92022013
B158: Zone | C158: COB | D158: Coincident | E158: Summer | F158: =_xlfn.XLOOKUP(C158,[1]Sheet1!$A$2:$A$86,[1]Sheet1!$B$2:$B$86) -> 26 | H158: =_xlfn.XLOOKUP($C158,[4]Sheet1!$A$2:$A$66,[4]Sheet1!$D$2:$D$66)*H28 -> 8.041640607 | I158: =_xlfn.XLOOKUP($C158,[4]Sheet1!$A$2:$A$66,[4]Sheet1!$D$2:$D$66)*I28 -> 7.83358372 | J158: =_xlfn.XLOOKUP($C158,[4]Sheet1!$A$2:$A$66,[4]Sheet1!$D$2:$D$66)*J28 -> 6.822330479 | K158: =_xlfn.XLOOKUP($C158,[4]Sheet1!$A$2:$A$66,[4]Sheet1!$D$2:$D$66)*K28 -> 6.469117624
B159: Zone | C159: CRO | D159: Coincident | E159: Summer | F159: =_xlfn.XLOOKUP(C159,[1]Sheet1!$A$2:$A$86,[1]Sheet1!$B$2:$B$86) -> 60 | H159: =_xlfn.XLOOKUP($C159,[4]Sheet1!$A$2:$A$66,[4]Sheet1!$D$2:$D$66)*H29 -> 22.78897745 | I159: =_xlfn.XLOOKUP($C159,[4]Sheet1!$A$2:$A$66,[4]Sheet1!$D$2:$D$66)*I29 -> 22.07134786 | J159: =_xlfn.XLOOKUP($C159,[4]Sheet1!$A$2:$A$66,[4]Sheet1!$D$2:$D$66)*J29 -> 19.09346759 | K159: =_xlfn.XLOOKUP($C159,[4]Sheet1!$A$2:$A$66,[4]Sheet1!$D$2:$D$66)*K29 -> 19.33079392
B160: Zone | C160: CTN | D160: Coincident | E160: Summer | F160: =_xlfn.XLOOKUP(C160,[1]Sheet1!$A$2:$A$86,[1]Sheet1!$B$2:$B$86) -> 39.5 | H160: =_xlfn.XLOOKUP($C160,[4]Sheet1!$A$2:$A$66,[4]Sheet1!$D$2:$D$66)*H30 -> 13.27699088 | I160: =_xlfn.XLOOKUP($C160,[4]Sheet1!$A$2:$A$66,[4]Sheet1!$D$2:$D$66)*I30 -> 12.85823607 | J160: =_xlfn.XLOOKUP($C160,[4]Sheet1!$A$2:$A$66,[4]Sheet1!$D$2:$D$66)*J30 -> 12.08230803 | K160: =_xlfn.XLOOKUP($C160,[4]Sheet1!$A$2:$A$66,[4]Sheet1!$D$2:$D$66)*K30 -> 11.79903271
B161: Zone | C161: DDL | D161: Coincident | E161: Summer | F161: =_xlfn.XLOOKUP(C161,[1]Sheet1!$A$2:$A$86,[1]Sheet1!$B$2:$B$86) -> 66 | H161: =_xlfn.XLOOKUP($C161,[4]Sheet1!$A$2:$A$66,[4]Sheet1!$D$2:$D$66)*H31 -> 82.96090559 | I161: =_xlfn.XLOOKUP($C161,[4]Sheet1!$A$2:$A$66,[4]Sheet1!$D$2:$D$66)*I31 -> 82.9009916 | J161: =_xlfn.XLOOKUP($C161,[4]Sheet1!$A$2:$A$66,[4]Sheet1!$D$2:$D$66)*J31 -> 67.2834114 | K161: =_xlfn.XLOOKUP($C161,[4]Sheet1!$A$2:$A$66,[4]Sheet1!$D$2:$D$66)*K31 -> 75.87108338
B162: Zone | C162: DLF | D162: Coincident | E162: Summer | F162: =_xlfn.XLOOKUP(C162,[1]Sheet1!$A$2:$A$86,[1]Sheet1!$B$2:$B$86) -> 66 | H162: =_xlfn.XLOOKUP($C162,[4]Sheet1!$A$2:$A$66,[4]Sheet1!$D$2:$D$66)*H32 -> 17.61265802 | I162: =_xlfn.XLOOKUP($C162,[4]Sheet1!$A$2:$A$66,[4]Sheet1!$D$2:$D$66)*I32 -> 17.43630141 | J162: =_xlfn.XLOOKUP($C162,[4]Sheet1!$A$2:$A$66,[4]Sheet1!$D$2:$D$66)*J32 -> 13.45677615 | K162: =_xlfn.XLOOKUP($C162,[4]Sheet1!$A$2:$A$66,[4]Sheet1!$D$2:$D$66)*K32 -> 15.75707977
B163: Zone | C163: ECA | D163: Coincident | E163: Summer | F163: =_xlfn.XLOOKUP(C163,[1]Sheet1!$A$2:$A$86,[1]Sheet1!$B$2:$B$86) -> 40.5 | H163: =_xlfn.XLOOKUP($C163,[4]Sheet1!$A$2:$A$66,[4]Sheet1!$D$2:$D$66)*H33 -> 32.67987331 | I163: =_xlfn.XLOOKUP($C163,[4]Sheet1!$A$2:$A$66,[4]Sheet1!$D$2:$D$66)*I33 -> 32.60337548 | J163: =_xlfn.XLOOKUP($C163,[4]Sheet1!$A$2:$A$66,[4]Sheet1!$D$2:$D$66)*J33 -> 28.40364457 | K163: =_xlfn.XLOOKUP($C163,[4]Sheet1!$A$2:$A$66,[4]Sheet1!$D$2:$D$66)*K33 -> 29.13802374
B164: Zone | C164: EHK | D164: Coincident | E164: Summer | F164: =_xlfn.XLOOKUP(C164,[1]Sheet1!$A$2:$A$86,[1]Sheet1!$B$2:$B$86) -> 54 | H164: =_xlfn.XLOOKUP($C164,[4]Sheet1!$A$2:$A$66,[4]Sheet1!$D$2:$D$66)*H34 -> 49.16779179 | I164: =_xlfn.XLOOKUP($C164,[4]Sheet1!$A$2:$A$66,[4]Sheet1!$D$2:$D$66)*I34 -> 48.95691047 | J164: =_xlfn.XLOOKUP($C164,[4]Sheet1!$A$2:$A$66,[4]Sheet1!$D$2:$D$66)*J34 -> 42.54936254 | K164: =_xlfn.XLOOKUP($C164,[4]Sheet1!$A$2:$A$66,[4]Sheet1!$D$2:$D$66)*K34 -> 45.33137386
B165: Zone | C165: FNS | D165: Coincident | E165: Summer | F165: =_xlfn.XLOOKUP(C165,[1]Sheet1!$A$2:$A$86,[1]Sheet1!$B$2:$B$86) -> 99 | H165: =_xlfn.XLOOKUP($C165,[4]Sheet1!$A$2:$A$66,[4]Sheet1!$D$2:$D$66)*H35 -> 46.55232465 | I165: =_xlfn.XLOOKUP($C165,[4]Sheet1!$A$2:$A$66,[4]Sheet1!$D$2:$D$66)*I35 -> 46.29645745 | J165: =_xlfn.XLOOKUP($C165,[4]Sheet1!$A$2:$A$66,[4]Sheet1!$D$2:$D$66)*J35 -> 35.56554184 | K165: =_xlfn.XLOOKUP($C165,[4]Sheet1!$A$2:$A$66,[4]Sheet1!$D$2:$D$66)*K35 -> 39.96180567
B166: Zone | C166: GB | D166: Coincident | E166: Summer | F166: =_xlfn.XLOOKUP(C166,[1]Sheet1!$A$2:$A$86,[1]Sheet1!$B$2:$B$86) -> 37.5 | H166: =_xlfn.XLOOKUP($C166,[4]Sheet1!$A$2:$A$66,[4]Sheet1!$D$2:$D$66)*H36 -> 10.98837728 | I166: =_xlfn.XLOOKUP($C166,[4]Sheet1!$A$2:$A$66,[4]Sheet1!$D$2:$D$66)*I36 -> 10.17036795 | J166: =_xlfn.XLOOKUP($C166,[4]Sheet1!$A$2:$A$66,[4]Sheet1!$D$2:$D$66)*J36 -> 9.828993976 | K166: =_xlfn.XLOOKUP($C166,[4]Sheet1!$A$2:$A$66,[4]Sheet1!$D$2:$D$66)*K36 -> 9.275066399
B167: Zone | C167: GCY | D167: Coincident | E167: Summer | F167: =_xlfn.XLOOKUP(C167,[1]Sheet1!$A$2:$A$86,[1]Sheet1!$B$2:$B$86) -> 66 | H167: =_xlfn.XLOOKUP($C167,[4]Sheet1!$A$2:$A$66,[4]Sheet1!$D$2:$D$66)*H37 -> 43.41726436 | I167: =_xlfn.XLOOKUP($C167,[4]Sheet1!$A$2:$A$66,[4]Sheet1!$D$2:$D$66)*I37 -> 42.8009057 | J167: =_xlfn.XLOOKUP($C167,[4]Sheet1!$A$2:$A$66,[4]Sheet1!$D$2:$D$66)*J37 -> 36.72537037 | K167: =_xlfn.XLOOKUP($C167,[4]Sheet1!$A$2:$A$66,[4]Sheet1!$D$2:$D$66)*K37 -> 36.98952408
B168: Zone | C168: GHP | D168: Coincident | E168: Summer | F168: =_xlfn.XLOOKUP(C168,[1]Sheet1!$A$2:$A$86,[1]Sheet1!$B$2:$B$86) -> 66 | H168: =_xlfn.XLOOKUP($C168,[4]Sheet1!$A$2:$A$66,[4]Sheet1!$D$2:$D$66)*H38 -> 36.50322027 | I168: =_xlfn.XLOOKUP($C168,[4]Sheet1!$A$2:$A$66,[4]Sheet1!$D$2:$D$66)*I38 -> 36.44964411 | J168: =_xlfn.XLOOKUP($C168,[4]Sheet1!$A$2:$A$66,[4]Sheet1!$D$2:$D$66)*J38 -> 29.958 | K168: =_xlfn.XLOOKUP($C168,[4]Sheet1!$A$2:$A$66,[4]Sheet1!$D$2:$D$66)*K38 -> 32.39571505
B169: Zone | C169: GL | D169: Coincident | E169: Summer | F169: =_xlfn.XLOOKUP(C169,[1]Sheet1!$A$2:$A$86,[1]Sheet1!$B$2:$B$86) -> 80 | H169: =_xlfn.XLOOKUP($C169,[4]Sheet1!$A$2:$A$66,[4]Sheet1!$D$2:$D$66)*H39 -> 42.45122157 | I169: =_xlfn.XLOOKUP($C169,[4]Sheet1!$A$2:$A$66,[4]Sheet1!$D$2:$D$66)*I39 -> 42.38027739 | J169: =_xlfn.XLOOKUP($C169,[4]Sheet1!$A$2:$A$66,[4]Sheet1!$D$2:$D$66)*J39 -> 36.90870779 | K169: =_xlfn.XLOOKUP($C169,[4]Sheet1!$A$2:$A$66,[4]Sheet1!$D$2:$D$66)*K39 -> 39.16118539
B170: Zone | C170: GLE | D170: Coincident | E170: Summer | F170: =_xlfn.XLOOKUP(C170,[1]Sheet1!$A$2:$A$86,[1]Sheet1!$B$2:$B$86) -> 79.5 | H170: =_xlfn.XLOOKUP($C170,[4]Sheet1!$A$2:$A$66,[4]Sheet1!$D$2:$D$66)*H40 -> 64.86179423 | I170: =_xlfn.XLOOKUP($C170,[4]Sheet1!$A$2:$A$66,[4]Sheet1!$D$2:$D$66)*I40 -> 64.74128496 | J170: =_xlfn.XLOOKUP($C170,[4]Sheet1!$A$2:$A$66,[4]Sheet1!$D$2:$D$66)*J40 -> 56.07388785 | K170: =_xlfn.XLOOKUP($C170,[4]Sheet1!$A$2:$A$66,[4]Sheet1!$D$2:$D$66)*K40 -> 59.0309998
B171: Zone | C171: GSB | D171: Coincident | E171: Summer | F171: =_xlfn.XLOOKUP(C171,[1]Sheet1!$A$2:$A$86,[1]Sheet1!$B$2:$B$86) -> 66 | H171: =_xlfn.XLOOKUP($C171,[4]Sheet1!$A$2:$A$66,[4]Sheet1!$D$2:$D$66)*H41 -> 27.86298207 | I171: =_xlfn.XLOOKUP($C171,[4]Sheet1!$A$2:$A$66,[4]Sheet1!$D$2:$D$66)*I41 -> 27.84713733 | J171: =_xlfn.XLOOKUP($C171,[4]Sheet1!$A$2:$A$66,[4]Sheet1!$D$2:$D$66)*J41 -> 23.23631687 | K171: =_xlfn.XLOOKUP($C171,[4]Sheet1!$A$2:$A$66,[4]Sheet1!$D$2:$D$66)*K41 -> 25.19314273
B172: Zone | C172: HSM | D172: Coincident | E172: Summer | F172: =_xlfn.XLOOKUP(C172,[1]Sheet1!$A$2:$A$86,[1]Sheet1!$B$2:$B$86) -> 40.5 | H172: =_xlfn.XLOOKUP($C172,[4]Sheet1!$A$2:$A$66,[4]Sheet1!$D$2:$D$66)*H42 -> 39.16286766 | I172: =_xlfn.XLOOKUP($C172,[4]Sheet1!$A$2:$A$66,[4]Sheet1!$D$2:$D$66)*I42 -> 39.00843278 | J172: =_xlfn.XLOOKUP($C172,[4]Sheet1!$A$2:$A$66,[4]Sheet1!$D$2:$D$66)*J42 -> 37.04620142 | K172: =_xlfn.XLOOKUP($C172,[4]Sheet1!$A$2:$A$66,[4]Sheet1!$D$2:$D$66)*K42 -> 37.06437022
B173: Zone | C173: HTN | D173: Coincident | E173: Summer | F173: =_xlfn.XLOOKUP(C173,[1]Sheet1!$A$2:$A$86,[1]Sheet1!$B$2:$B$86) -> 39.5 | H173: =_xlfn.XLOOKUP($C173,[4]Sheet1!$A$2:$A$66,[4]Sheet1!$D$2:$D$66)*H43 -> 25.05329787 | I173: =_xlfn.XLOOKUP($C173,[4]Sheet1!$A$2:$A$66,[4]Sheet1!$D$2:$D$66)*I43 -> 25.05329787 | J173: =_xlfn.XLOOKUP($C173,[4]Sheet1!$A$2:$A$66,[4]Sheet1!$D$2:$D$66)*J43 -> 22.36355422 | K173: =_xlfn.XLOOKUP($C173,[4]Sheet1!$A$2:$A$66,[4]Sheet1!$D$2:$D$66)*K43 -> 22.30957943
B174: Zone | C174: KRT | D174: Coincident | E174: Summer | F174: =_xlfn.XLOOKUP(C174,[1]Sheet1!$A$2:$A$86,[1]Sheet1!$B$2:$B$86) -> 40.5 | H174: =_xlfn.XLOOKUP($C174,[4]Sheet1!$A$2:$A$66,[4]Sheet1!$D$2:$D$66)*H44 -> 27.75875262 | I174: =_xlfn.XLOOKUP($C174,[4]Sheet1!$A$2:$A$66,[4]Sheet1!$D$2:$D$66)*I44 -> 27.75147831 | J174: =_xlfn.XLOOKUP($C174,[4]Sheet1!$A$2:$A$66,[4]Sheet1!$D$2:$D$66)*J44 -> 21.24824853 | K174: =_xlfn.XLOOKUP($C174,[4]Sheet1!$A$2:$A$66,[4]Sheet1!$D$2:$D$66)*K44 -> 21.29916867
B175: Zone | C175: KYM | D175: Coincident | E175: Summer | F175: =_xlfn.XLOOKUP(C175,[1]Sheet1!$A$2:$A$86,[1]Sheet1!$B$2:$B$86) -> 40.5 | H175: =_xlfn.XLOOKUP($C175,[4]Sheet1!$A$2:$A$66,[4]Sheet1!$D$2:$D$66)*H45 -> 22.23760894 | I175: =_xlfn.XLOOKUP($C175,[4]Sheet1!$A$2:$A$66,[4]Sheet1!$D$2:$D$66)*I45 -> 22.14479109 | J175: =_xlfn.XLOOKUP($C175,[4]Sheet1!$A$2:$A$66,[4]Sheet1!$D$2:$D$66)*J45 -> 20.31937345 | K175: =_xlfn.XLOOKUP($C175,[4]Sheet1!$A$2:$A$66,[4]Sheet1!$D$2:$D$66)*K45 -> 20.54368325
B176: Zone | C176: LV | D176: Coincident | E176: Summer | F176: =_xlfn.XLOOKUP(C176,[1]Sheet1!$A$2:$A$86,[1]Sheet1!$B$2:$B$86) -> 99 | H176: =_xlfn.XLOOKUP($C176,[4]Sheet1!$A$2:$A$66,[4]Sheet1!$D$2:$D$66)*H46 -> 116.6565022 | I176: =_xlfn.XLOOKUP($C176,[4]Sheet1!$A$2:$A$66,[4]Sheet1!$D$2:$D$66)*I46 -> 116.3796432 | J176: =_xlfn.XLOOKUP($C176,[4]Sheet1!$A$2:$A$66,[4]Sheet1!$D$2:$D$66)*J46 -> 101.9730893 | K176: =_xlfn.XLOOKUP($C176,[4]Sheet1!$A$2:$A$66,[4]Sheet1!$D$2:$D$66)*K46 -> 105.1866308
B177: Zone | C177: LVN | D177: Coincident | E177: Summer | F177: =_xlfn.XLOOKUP(C177,[1]Sheet1!$A$2:$A$86,[1]Sheet1!$B$2:$B$86) -> 99 | H177: =_xlfn.XLOOKUP($C177,[4]Sheet1!$A$2:$A$66,[4]Sheet1!$D$2:$D$66)*H47 -> 67.57767888 | I177: =_xlfn.XLOOKUP($C177,[4]Sheet1!$A$2:$A$66,[4]Sheet1!$D$2:$D$66)*I47 -> 65.95956181 | J177: =_xlfn.XLOOKUP($C177,[4]Sheet1!$A$2:$A$66,[4]Sheet1!$D$2:$D$66)*J47 -> 53.68884066 | K177: =_xlfn.XLOOKUP($C177,[4]Sheet1!$A$2:$A$66,[4]Sheet1!$D$2:$D$66)*K47 -> 54.45531717
B178: Zone | C178: LVN11 | D178: Coincident | E178: Summer | F178: =_xlfn.XLOOKUP(C178,[1]Sheet1!$A$2:$A$86,[1]Sheet1!$B$2:$B$86) -> 30 | H178: =_xlfn.XLOOKUP($C178,[4]Sheet1!$A$2:$A$66,[4]Sheet1!$D$2:$D$66)*H48 -> 9.145836549 | I178: =_xlfn.XLOOKUP($C178,[4]Sheet1!$A$2:$A$66,[4]Sheet1!$D$2:$D$66)*I48 -> 8.826871431 | J178: =_xlfn.XLOOKUP($C178,[4]Sheet1!$A$2:$A$66,[4]Sheet1!$D$2:$D$66)*J48 -> 9.080741627 | K178: =_xlfn.XLOOKUP($C178,[4]Sheet1!$A$2:$A$66,[4]Sheet1!$D$2:$D$66)*K48 -> 8.774795493
B179: Zone | C179: MBN | D179: Coincident | E179: Summer | F179: =_xlfn.XLOOKUP(C179,[1]Sheet1!$A$2:$A$86,[1]Sheet1!$B$2:$B$86) -> 59 | H179: =_xlfn.XLOOKUP($C179,[4]Sheet1!$A$2:$A$66,[4]Sheet1!$D$2:$D$66)*H49 -> 46.72591223 | I179: =_xlfn.XLOOKUP($C179,[4]Sheet1!$A$2:$A$66,[4]Sheet1!$D$2:$D$66)*I49 -> 45.96321124 | J179: =_xlfn.XLOOKUP($C179,[4]Sheet1!$A$2:$A$66,[4]Sheet1!$D$2:$D$66)*J49 -> 40.32257646 | K179: =_xlfn.XLOOKUP($C179,[4]Sheet1!$A$2:$A$66,[4]Sheet1!$D$2:$D$66)*K49 -> 41.61330121
B180: Zone | C180: MDA | D180: Coincident | E180: Summer | F180: =_xlfn.XLOOKUP(C180,[1]Sheet1!$A$2:$A$86,[1]Sheet1!$B$2:$B$86) -> 66 | H180: =_xlfn.XLOOKUP($C180,[4]Sheet1!$A$2:$A$66,[4]Sheet1!$D$2:$D$66)*H50 -> 43.95304852 | I180: =_xlfn.XLOOKUP($C180,[4]Sheet1!$A$2:$A$66,[4]Sheet1!$D$2:$D$66)*I50 -> 43.08036196 | J180: =_xlfn.XLOOKUP($C180,[4]Sheet1!$A$2:$A$66,[4]Sheet1!$D$2:$D$66)*J50 -> 38.77763777 | K180: =_xlfn.XLOOKUP($C180,[4]Sheet1!$A$2:$A$66,[4]Sheet1!$D$2:$D$66)*K50 -> 38.55756898
B181: Zone | C181: MLN | D181: Coincident | E181: Summer | F181: =_xlfn.XLOOKUP(C181,[1]Sheet1!$A$2:$A$86,[1]Sheet1!$B$2:$B$86) -> 99 | H181: =_xlfn.XLOOKUP($C181,[4]Sheet1!$A$2:$A$66,[4]Sheet1!$D$2:$D$66)*H51 -> 120.0855816 | I181: =_xlfn.XLOOKUP($C181,[4]Sheet1!$A$2:$A$66,[4]Sheet1!$D$2:$D$66)*I51 -> 119.9679083 | J181: =_xlfn.XLOOKUP($C181,[4]Sheet1!$A$2:$A$66,[4]Sheet1!$D$2:$D$66)*J51 -> 89.12069863 | K181: =_xlfn.XLOOKUP($C181,[4]Sheet1!$A$2:$A$66,[4]Sheet1!$D$2:$D$66)*K51 -> 108.4947636
B182: Zone | C182: MNA | D182: Coincident | E182: Summer | F182: =_xlfn.XLOOKUP(C182,[1]Sheet1!$A$2:$A$86,[1]Sheet1!$B$2:$B$86) -> 66 | H182: =_xlfn.XLOOKUP($C182,[4]Sheet1!$A$2:$A$66,[4]Sheet1!$D$2:$D$66)*H52 -> 40.25492664 | I182: =_xlfn.XLOOKUP($C182,[4]Sheet1!$A$2:$A$66,[4]Sheet1!$D$2:$D$66)*I52 -> 39.00960181 | J182: =_xlfn.XLOOKUP($C182,[4]Sheet1!$A$2:$A$66,[4]Sheet1!$D$2:$D$66)*J52 -> 34.82150304 | K182: =_xlfn.XLOOKUP($C182,[4]Sheet1!$A$2:$A$66,[4]Sheet1!$D$2:$D$66)*K52 -> 35.09119122
B183: Zone | C183: MRO | D183: Coincident | E183: Summer | F183: =_xlfn.XLOOKUP(C183,[1]Sheet1!$A$2:$A$86,[1]Sheet1!$B$2:$B$86) -> 27 | H183: =_xlfn.XLOOKUP($C183,[4]Sheet1!$A$2:$A$66,[4]Sheet1!$D$2:$D$66)*H53 -> 21.39191659 | I183: =_xlfn.XLOOKUP($C183,[4]Sheet1!$A$2:$A$66,[4]Sheet1!$D$2:$D$66)*I53 -> 21.36491796 | J183: =_xlfn.XLOOKUP($C183,[4]Sheet1!$A$2:$A$66,[4]Sheet1!$D$2:$D$66)*J53 -> 19.40301732 | K183: =_xlfn.XLOOKUP($C183,[4]Sheet1!$A$2:$A$66,[4]Sheet1!$D$2:$D$66)*K53 -> 19.70900182
B184: Zone | C184: MTC | D184: Coincident | E184: Summer | F184: =_xlfn.XLOOKUP(C184,[1]Sheet1!$A$2:$A$86,[1]Sheet1!$B$2:$B$86) -> 66 | H184: =_xlfn.XLOOKUP($C184,[4]Sheet1!$A$2:$A$66,[4]Sheet1!$D$2:$D$66)*H54 -> 88.86366511 | I184: =_xlfn.XLOOKUP($C184,[4]Sheet1!$A$2:$A$66,[4]Sheet1!$D$2:$D$66)*I54 -> 88.86366511 | J184: =_xlfn.XLOOKUP($C184,[4]Sheet1!$A$2:$A$66,[4]Sheet1!$D$2:$D$66)*J54 -> 0 | K184: =_xlfn.XLOOKUP($C184,[4]Sheet1!$A$2:$A$66,[4]Sheet1!$D$2:$D$66)*K54 -> 81.0317282
B185: Zone | C185: NHL | D185: Coincident | E185: Summer | F185: =_xlfn.XLOOKUP(C185,[1]Sheet1!$A$2:$A$86,[1]Sheet1!$B$2:$B$86) -> 20 | H185: =_xlfn.XLOOKUP($C185,[4]Sheet1!$A$2:$A$66,[4]Sheet1!$D$2:$D$66)*H55 -> 13.95767565 | I185: =_xlfn.XLOOKUP($C185,[4]Sheet1!$A$2:$A$66,[4]Sheet1!$D$2:$D$66)*I55 -> 13.95767565 | J185: =_xlfn.XLOOKUP($C185,[4]Sheet1!$A$2:$A$66,[4]Sheet1!$D$2:$D$66)*J55 -> 11.49355331 | K185: =_xlfn.XLOOKUP($C185,[4]Sheet1!$A$2:$A$66,[4]Sheet1!$D$2:$D$66)*K55 -> 11.30597306
B186: Zone | C186: NKA | D186: Coincident | E186: Summer | F186: =_xlfn.XLOOKUP(C186,[1]Sheet1!$A$2:$A$86,[1]Sheet1!$B$2:$B$86) -> 39.5 | H186: =_xlfn.XLOOKUP($C186,[4]Sheet1!$A$2:$A$66,[4]Sheet1!$D$2:$D$66)*H56 -> 32.66402723 | I186: =_xlfn.XLOOKUP($C186,[4]Sheet1!$A$2:$A$66,[4]Sheet1!$D$2:$D$66)*I56 -> 32.65467059 | J186: =_xlfn.XLOOKUP($C186,[4]Sheet1!$A$2:$A$66,[4]Sheet1!$D$2:$D$66)*J56 -> 27.5178757 | K186: =_xlfn.XLOOKUP($C186,[4]Sheet1!$A$2:$A$66,[4]Sheet1!$D$2:$D$66)*K56 -> 29.47341328
B187: Zone | C187: OYN | D187: Coincident | E187: Summer | F187: =_xlfn.XLOOKUP(C187,[1]Sheet1!$A$2:$A$86,[1]Sheet1!$B$2:$B$86) -> 27 | H187: =_xlfn.XLOOKUP($C187,[4]Sheet1!$A$2:$A$66,[4]Sheet1!$D$2:$D$66)*H57 -> 6.908265598 | I187: =_xlfn.XLOOKUP($C187,[4]Sheet1!$A$2:$A$66,[4]Sheet1!$D$2:$D$66)*I57 -> 6.009122782 | J187: =_xlfn.XLOOKUP($C187,[4]Sheet1!$A$2:$A$66,[4]Sheet1!$D$2:$D$66)*J57 -> 6.641193475 | K187: =_xlfn.XLOOKUP($C187,[4]Sheet1!$A$2:$A$66,[4]Sheet1!$D$2:$D$66)*K57 -> 5.679733829
B188: Zone | C188: PLD | D188: Coincident | E188: Summer | F188: =_xlfn.XLOOKUP(C188,[1]Sheet1!$A$2:$A$86,[1]Sheet1!$B$2:$B$86) -> 32 | H188: =_xlfn.XLOOKUP($C188,[4]Sheet1!$A$2:$A$66,[4]Sheet1!$D$2:$D$66)*H58 -> 12.66390711 | I188: =_xlfn.XLOOKUP($C188,[4]Sheet1!$A$2:$A$66,[4]Sheet1!$D$2:$D$66)*I58 -> 12.64761913 | J188: =_xlfn.XLOOKUP($C188,[4]Sheet1!$A$2:$A$66,[4]Sheet1!$D$2:$D$66)*J58 -> 11.93909185 | K188: =_xlfn.XLOOKUP($C188,[4]Sheet1!$A$2:$A$66,[4]Sheet1!$D$2:$D$66)*K58 -> 11.66219613
B189: Zone | C189: RVL | D189: Coincident | E189: Summer | F189: =_xlfn.XLOOKUP(C189,[1]Sheet1!$A$2:$A$86,[1]Sheet1!$B$2:$B$86) -> 19.5 | H189: =_xlfn.XLOOKUP($C189,[4]Sheet1!$A$2:$A$66,[4]Sheet1!$D$2:$D$66)*H59 -> 24.90443938 | I189: =_xlfn.XLOOKUP($C189,[4]Sheet1!$A$2:$A$66,[4]Sheet1!$D$2:$D$66)*I59 -> 24.88748605 | J189: =_xlfn.XLOOKUP($C189,[4]Sheet1!$A$2:$A$66,[4]Sheet1!$D$2:$D$66)*J59 -> 19.28441103 | K189: =_xlfn.XLOOKUP($C189,[4]Sheet1!$A$2:$A$66,[4]Sheet1!$D$2:$D$66)*K59 -> 21.9884669
B190: Zone | C190: SA | D190: Coincident | E190: Summer | F190: =_xlfn.XLOOKUP(C190,[1]Sheet1!$A$2:$A$86,[1]Sheet1!$B$2:$B$86) -> 93 | H190: =_xlfn.XLOOKUP($C190,[4]Sheet1!$A$2:$A$66,[4]Sheet1!$D$2:$D$66)*H60 -> 95.43825182 | I190: =_xlfn.XLOOKUP($C190,[4]Sheet1!$A$2:$A$66,[4]Sheet1!$D$2:$D$66)*I60 -> 94.71838105 | J190: =_xlfn.XLOOKUP($C190,[4]Sheet1!$A$2:$A$66,[4]Sheet1!$D$2:$D$66)*J60 -> 81.0408364 | K190: =_xlfn.XLOOKUP($C190,[4]Sheet1!$A$2:$A$66,[4]Sheet1!$D$2:$D$66)*K60 -> 86.78134434
B191: Zone | C191: SHL | D191: Coincident | E191: Summer | F191: =_xlfn.XLOOKUP(C191,[1]Sheet1!$A$2:$A$86,[1]Sheet1!$B$2:$B$86) -> 40.5 | H191: =_xlfn.XLOOKUP($C191,[4]Sheet1!$A$2:$A$66,[4]Sheet1!$D$2:$D$66)*H61 -> 36.63469807 | I191: =_xlfn.XLOOKUP($C191,[4]Sheet1!$A$2:$A$66,[4]Sheet1!$D$2:$D$66)*I61 -> 36.58769435 | J191: =_xlfn.XLOOKUP($C191,[4]Sheet1!$A$2:$A$66,[4]Sheet1!$D$2:$D$66)*J61 -> 34.2093062 | K191: =_xlfn.XLOOKUP($C191,[4]Sheet1!$A$2:$A$66,[4]Sheet1!$D$2:$D$66)*K61 -> 33.72986827
B192: Zone | C192: SHN | D192: Coincident | E192: Summer | F192: =_xlfn.XLOOKUP(C192,[1]Sheet1!$A$2:$A$86,[1]Sheet1!$B$2:$B$86) -> 66 | H192: =_xlfn.XLOOKUP($C192,[4]Sheet1!$A$2:$A$66,[4]Sheet1!$D$2:$D$66)*H62 -> 32.67503732 | I192: =_xlfn.XLOOKUP($C192,[4]Sheet1!$A$2:$A$66,[4]Sheet1!$D$2:$D$66)*I62 -> 32.66696144 | J192: =_xlfn.XLOOKUP($C192,[4]Sheet1!$A$2:$A$66,[4]Sheet1!$D$2:$D$66)*J62 -> 28.05563017 | K192: =_xlfn.XLOOKUP($C192,[4]Sheet1!$A$2:$A$66,[4]Sheet1!$D$2:$D$66)*K62 -> 29.42045501
B193: Zone | C193: SHP | D193: Coincident | E193: Summer | F193: =_xlfn.XLOOKUP(C193,[1]Sheet1!$A$2:$A$86,[1]Sheet1!$B$2:$B$86) -> 66 | H193: =_xlfn.XLOOKUP($C193,[4]Sheet1!$A$2:$A$66,[4]Sheet1!$D$2:$D$66)*H63 -> 33.98614877 | I193: =_xlfn.XLOOKUP($C193,[4]Sheet1!$A$2:$A$66,[4]Sheet1!$D$2:$D$66)*I63 -> 33.70013649 | J193: =_xlfn.XLOOKUP($C193,[4]Sheet1!$A$2:$A$66,[4]Sheet1!$D$2:$D$66)*J63 -> 23.74888167 | K193: =_xlfn.XLOOKUP($C193,[4]Sheet1!$A$2:$A$66,[4]Sheet1!$D$2:$D$66)*K63 -> 23.82778161
B194: Zone | C194: SSE | D194: Coincident | E194: Summer | F194: =_xlfn.XLOOKUP(C194,[1]Sheet1!$A$2:$A$86,[1]Sheet1!$B$2:$B$86) -> 99 | H194: =_xlfn.XLOOKUP($C194,[4]Sheet1!$A$2:$A$66,[4]Sheet1!$D$2:$D$66)*H64 -> 60.60426443 | I194: =_xlfn.XLOOKUP($C194,[4]Sheet1!$A$2:$A$66,[4]Sheet1!$D$2:$D$66)*I64 -> 59.60215881 | J194: =_xlfn.XLOOKUP($C194,[4]Sheet1!$A$2:$A$66,[4]Sheet1!$D$2:$D$66)*J64 -> 53.29660192 | K194: =_xlfn.XLOOKUP($C194,[4]Sheet1!$A$2:$A$66,[4]Sheet1!$D$2:$D$66)*K64 -> 54.69954978
B195: Zone | C195: STL | D195: Coincident | E195: Summer | F195: =_xlfn.XLOOKUP(C195,[1]Sheet1!$A$2:$A$86,[1]Sheet1!$B$2:$B$86) -> 27 | H195: =_xlfn.XLOOKUP($C195,[4]Sheet1!$A$2:$A$66,[4]Sheet1!$D$2:$D$66)*H65 -> 18.20828822 | I195: =_xlfn.XLOOKUP($C195,[4]Sheet1!$A$2:$A$66,[4]Sheet1!$D$2:$D$66)*I65 -> 17.79728749 | J195: =_xlfn.XLOOKUP($C195,[4]Sheet1!$A$2:$A$66,[4]Sheet1!$D$2:$D$66)*J65 -> 17.41496123 | K195: =_xlfn.XLOOKUP($C195,[4]Sheet1!$A$2:$A$66,[4]Sheet1!$D$2:$D$66)*K65 -> 16.57384345
B196: Zone | C196: STN | D196: Coincident | E196: Summer | F196: =_xlfn.XLOOKUP(C196,[1]Sheet1!$A$2:$A$86,[1]Sheet1!$B$2:$B$86) -> 79 | H196: =_xlfn.XLOOKUP($C196,[4]Sheet1!$A$2:$A$66,[4]Sheet1!$D$2:$D$66)*H66 -> 47.33154477 | I196: =_xlfn.XLOOKUP($C196,[4]Sheet1!$A$2:$A$66,[4]Sheet1!$D$2:$D$66)*I66 -> 46.17003447 | J196: =_xlfn.XLOOKUP($C196,[4]Sheet1!$A$2:$A$66,[4]Sheet1!$D$2:$D$66)*J66 -> 42.95233702 | K196: =_xlfn.XLOOKUP($C196,[4]Sheet1!$A$2:$A$66,[4]Sheet1!$D$2:$D$66)*K66 -> 43.23486655
B197: Zone | C197: SU | D197: Coincident | E197: Summer | F197: =_xlfn.XLOOKUP(C197,[1]Sheet1!$A$2:$A$86,[1]Sheet1!$B$2:$B$86) -> 99 | H197: =_xlfn.XLOOKUP($C197,[4]Sheet1!$A$2:$A$66,[4]Sheet1!$D$2:$D$66)*H67 -> 90.26832494 | I197: =_xlfn.XLOOKUP($C197,[4]Sheet1!$A$2:$A$66,[4]Sheet1!$D$2:$D$66)*I67 -> 89.75067479 | J197: =_xlfn.XLOOKUP($C197,[4]Sheet1!$A$2:$A$66,[4]Sheet1!$D$2:$D$66)*J67 -> 73.85963707 | K197: =_xlfn.XLOOKUP($C197,[4]Sheet1!$A$2:$A$66,[4]Sheet1!$D$2:$D$66)*K67 -> 81.22998911
B198: Zone | C198: TNA | D198: Coincident | E198: Summer | F198: =_xlfn.XLOOKUP(C198,[1]Sheet1!$A$2:$A$86,[1]Sheet1!$B$2:$B$86) -> 99 | H198: =_xlfn.XLOOKUP($C198,[4]Sheet1!$A$2:$A$66,[4]Sheet1!$D$2:$D$66)*H68 -> 124.0310961 | I198: =_xlfn.XLOOKUP($C198,[4]Sheet1!$A$2:$A$66,[4]Sheet1!$D$2:$D$66)*I68 -> 123.887002 | J198: =_xlfn.XLOOKUP($C198,[4]Sheet1!$A$2:$A$66,[4]Sheet1!$D$2:$D$66)*J68 -> 115.4024037 | K198: =_xlfn.XLOOKUP($C198,[4]Sheet1!$A$2:$A$66,[4]Sheet1!$D$2:$D$66)*K68 -> 102.6034592
B199: Zone | C199: TQY | D199: Coincident | E199: Summer | F199: =_xlfn.XLOOKUP(C199,[1]Sheet1!$A$2:$A$86,[1]Sheet1!$B$2:$B$86) -> 66 | H199: =_xlfn.XLOOKUP($C199,[4]Sheet1!$A$2:$A$66,[4]Sheet1!$D$2:$D$66)*H69 -> 40.56836192 | I199: =_xlfn.XLOOKUP($C199,[4]Sheet1!$A$2:$A$66,[4]Sheet1!$D$2:$D$66)*I69 -> 40.55025912 | J199: =_xlfn.XLOOKUP($C199,[4]Sheet1!$A$2:$A$66,[4]Sheet1!$D$2:$D$66)*J69 -> 32.77510899 | K199: =_xlfn.XLOOKUP($C199,[4]Sheet1!$A$2:$A$66,[4]Sheet1!$D$2:$D$66)*K69 -> 35.70776166
B200: Zone | C200: TRG | D200: Coincident | E200: Summer | F200: =_xlfn.XLOOKUP(C200,[1]Sheet1!$A$2:$A$86,[1]Sheet1!$B$2:$B$86) -> 46.5 | H200: =_xlfn.XLOOKUP($C200,[4]Sheet1!$A$2:$A$66,[4]Sheet1!$D$2:$D$66)*H70 -> 17.00613147 | I200: =_xlfn.XLOOKUP($C200,[4]Sheet1!$A$2:$A$66,[4]Sheet1!$D$2:$D$66)*I70 -> 16.96507039 | J200: =_xlfn.XLOOKUP($C200,[4]Sheet1!$A$2:$A$66,[4]Sheet1!$D$2:$D$66)*J70 -> 12.34569866 | K200: =_xlfn.XLOOKUP($C200,[4]Sheet1!$A$2:$A$66,[4]Sheet1!$D$2:$D$66)*K70 -> 12.83158813
B201: Zone | C201: WBE | D201: Coincident | E201: Summer | F201: =_xlfn.XLOOKUP(C201,[1]Sheet1!$A$2:$A$86,[1]Sheet1!$B$2:$B$86) -> 99 | H201: =_xlfn.XLOOKUP($C201,[4]Sheet1!$A$2:$A$66,[4]Sheet1!$D$2:$D$66)*H71 -> 116.5692874 | I201: =_xlfn.XLOOKUP($C201,[4]Sheet1!$A$2:$A$66,[4]Sheet1!$D$2:$D$66)*I71 -> 116.5692874 | J201: =_xlfn.XLOOKUP($C201,[4]Sheet1!$A$2:$A$66,[4]Sheet1!$D$2:$D$66)*J71 -> 105.3057974 | K201: =_xlfn.XLOOKUP($C201,[4]Sheet1!$A$2:$A$66,[4]Sheet1!$D$2:$D$66)*K71 -> 102.8076354
B202: Zone | C202: WBL | D202: Coincident | E202: Summer | F202: =_xlfn.XLOOKUP(C202,[1]Sheet1!$A$2:$A$86,[1]Sheet1!$B$2:$B$86) -> 79.5 | H202: =_xlfn.XLOOKUP($C202,[4]Sheet1!$A$2:$A$66,[4]Sheet1!$D$2:$D$66)*H72 -> 49.38693188 | I202: =_xlfn.XLOOKUP($C202,[4]Sheet1!$A$2:$A$66,[4]Sheet1!$D$2:$D$66)*I72 -> 48.95513357 | J202: =_xlfn.XLOOKUP($C202,[4]Sheet1!$A$2:$A$66,[4]Sheet1!$D$2:$D$66)*J72 -> 44.61915886 | K202: =_xlfn.XLOOKUP($C202,[4]Sheet1!$A$2:$A$66,[4]Sheet1!$D$2:$D$66)*K72 -> 44.31330172
... 69 more rows

Sheet AER Sheet Heading (hidden)
B1: =INDEX(dms_Worksheet_List,MATCH(dms_Model,dms_Model_List)) -> REGULATORY REPORTING STATEMENT
B2: =INDEX(dms_TradingNameFull_List,MATCH(dms_TradingName,dms_TradingName_List)) -> Powercor Australia
B3: =dms_Header_Span -> 2022-23 to 2030-31
B4: XX
C11: EXPENDITURE
C12: =CONCATENATE("Forecast ($0's, real ",dms_DollarReal,")") -> Forecast ($0's, real June 2026)
C13: =dms_y1 -> 2022-23 | D13: =dms_y2 -> 2023-24 | E13: =dms_y3 -> 2024-25 | F13: =dms_y4 -> 2025-26 | G13: =dms_y5 -> 2026-27 | H13: =dms_y6 -> 2027-28 | I13: =dms_y7 -> 2028-29
C36: =SUM(C15:C35) -> 0 | D36: =SUM(D15:D35) -> 0 | E36: 0 | F36: 0 | G36: 0 | H36: 0 | I36: 0
C37: =SUM(C15:C36) -> 0 | D37: =SUM(D15:D36) -> 0 | E37: 0 | F37: 0 | G37: 0 | H37: 0 | I37: 0
C42: VOLUMES
C43: 0's
C44: =dms_y1 -> 2022-23 | D44: =dms_y2 -> 2023-24 | E44: =dms_y3 -> 2024-25 | F44: =dms_y4 -> 2025-26 | G44: =dms_y5 -> 2026-27 | H44: =dms_y6 -> 2027-28 | I44: =dms_y7 -> 2028-29
C67: =SUM(C46:C66) -> 0 | D67: =SUM(D46:D66) -> 0 | E67: =SUM(E46:E66) -> 0 | F67: =SUM(F46:F66) -> 0 | G67: =SUM(G46:G66) -> 0 | H67: =SUM(H46:H66) -> 0 | I67: =SUM(I46:I66) -> 0
C68: =SUM(C46:C67) -> 0 | D68: =SUM(D46:D67) -> 0 | E68: =SUM(E46:E67) -> 0 | F68: =SUM(F46:F67) -> 0 | G68: =SUM(G46:G67) -> 0 | H68: =SUM(H46:H67) -> 0 | I68: =SUM(I46:I67) -> 0

Sheet AER CF (hidden)
B1: AER CONDITIONAL FORMATTING
B3: CELLS FLAGED "Y" and greyed out will be greyed out in the worksheets.
B4: CONDITIONAL FORMATTING MAP
F5: =INDEX(dms_CF_3.6.1, MATCH(dms_TradingName,dms_CF_TradingName))="Y" | G5: =INDEX(dms_CF_3.6.5, MATCH(dms_TradingName,dms_CF_TradingName))="Y" | H5: =INDEX(dms_CF_3.6.6.1, MATCH(dms_TradingName,dms_CF_TradingName))="Y" | I5: =INDEX(dms_CF_3.6.6.2, MATCH(dms_TradingName,dms_CF_TradingName))="Y" | J5: =INDEX(dms_CF_3.6.6.3, MATCH(dms_TradingName,dms_CF_TradingName))="Y" | K5: =INDEX(dms_CF_3.6.7.1, MATCH(dms_TradingName,dms_CF_TradingName))="Y" | L5: =INDEX(dms_CF_3.6.7.2, MATCH(dms_TradingName,dms_CF_TradingName))="Y" | M5: =INDEX(dms_CF_3.6.7.3, MATCH(dms_TradingName,dms_CF_TradingName))="Y" | N5: =INDEX(dms_CF_3.6.7.4, MATCH(dms_TradingName,dms_CF_TradingName))="Y" | O5: =INDEX(dms_CF_3.6.8, MATCH(dms_TradingName,dms_CF_TradingName))="Y" | P5: =INDEX(dms_CF_4.1, MATCH(dms_TradingName,dms_CF_TradingName))="Y" | Q5: =INDEX(dms_CF_6.8, MATCH(dms_TradingName,dms_CF_TradingName))="Y" | R5: =INDEX(dms_CF_7.12, MATCH(dms_TradingName,dms_CF_TradingName))="Y" | S5: =INDEX(dms_CF_8.1_A, MATCH(dms_TradingName,dms_CF_TradingName))="Y" | T5: =INDEX(dms_CF_8.1_B, MATCH(dms_TradingName,dms_CF_TradingName))="Y" | U5: =INDEX(dms_CF_8.1_Neg, MATCH(dms_TradingName,dms_CF_TradingName))="Y" -> TRUE | V5: =INDEX(dms_CF_4.4.1_Neg, MATCH(dms_TradingName,dms_CF_TradingName))="Y" | Y5: =INDEX(dms_CF_F10, MATCH(dms_TradingName,dms_CF_TradingName))="Y"
B6: dms_CF_TradingName | C6: JurisdictionList | D6: Sector | E6: Segment | F6: dms_CF_3.6.1 | G6: dms_CF_3.6.5 | H6: dms_CF_3.6.6.1 | I6: dms_CF_3.6.6.2 | J6: dms_CF_3.6.6.3 | K6: dms_CF_3.6.7.1 | L6: dms_CF_3.6.7.2 | M6: dms_CF_3.6.7.3 | N6: dms_CF_3.6.7.4 | O6: dms_CF_3.6.8 | P6: dms_CF_4.1 | Q6: dms_CF_6.8 (set from dms_MAIFI_flag) | R6: dms_CF_7.12 | S6: dms_CF_8.1_A (and 8.4) | T6: dms_CF_8.1_B (and 8.4) | U6: dms_CF_8.1_Neg (and 8.4) | V6: dms_CF_4.4.1 | W6: dms_CF_MAIFI_flag (set from dms_MAIFI_flag) | X6: 9.5 TUOS (set from Jurisdiction) | Y6: dms_CF_F10
B7: Amadeus | C7: NT | D7: Gas | E7: Transmission | F7: - | G7: - | H7: - | I7: - | J7: - | K7: - | L7: - | M7: - | N7: - | O7: - | P7: - | Q7: - | R7: - | S7: - | T7: - | U7: - | V7: - | W7: - | X7: - | Y7: -
B8: APA GasNet | C8: Vic | D8: Gas | E8: Transmission | F8: - | G8: - | H8: - | I8: - | J8: - | K8: - | L8: - | M8: - | N8: - | O8: - | P8: - | Q8: - | R8: - | S8: - | T8: - | U8: - | V8: - | W8: - | X8: - | Y8: -
B9: Ausgrid | C9: NSW | D9: Electricity | E9: Distribution | G9: Y | H9: N | I9: N | J9: N | K9: N | L9: N | M9: N | N9: Y | O9: N | P9: N | Q9: =IFERROR(IF(_xlfn.SINGLE(dms_MAIFI_Flag)="Yes","N","Y"),"Y") -> N | R9: Y | S9: N | T9: Y | U9: Y | V9: N | W9: =IFERROR(LEFT(_xlfn.SINGLE(dms_MAIFI_Flag)),"N") -> Y | X9: =IF('AER CF'!$C7="Vic","Y","N") -> N
B10: Ausgrid (Tx Assets) | C10: NSW | D10: Electricity | E10: Distribution | G10: Y | H10: N | I10: N | J10: N | K10: N | L10: N | M10: N | N10: Y | O10: N | P10: N | Q10: N | R10: Y | S10: N | T10: Y | U10: Y | V10: N | W10: Y | X10: =IF('AER CF'!$C8="Vic","Y","N") -> Y
B11: AusNet (D) | C11: Vic | D11: Electricity | E11: Distribution | G11: N | H11: N | K11: N | L11: N | M11: N | N11: N | O11: N | P11: N | Q11: N | R11: N | S11: N | T11: N | U11: Y | V11: N | W11: Y | X11: =IF('AER CF'!$C9="Vic","Y","N") -> N
B12: AusNet (T) | C12: Vic | D12: Electricity | E12: Transmission | G12: N | K12: N | L12: N | M12: N | N12: N | O12: N | P12: Y | Q12: N | R12: N | S12: N | T12: N | U12: Y | V12: N | W12: Y | X12: =IF('AER CF'!$C10="Vic","Y","N") -> N
B13: Australian Distribution Co. | C13: NSW | D13: Electricity | E13: Distribution | F13: N | G13: N | H13: N | I13: N | K13: N | L13: N | M13: N | N13: N | O13: N | P13: N | Q13: N | R13: N | S13: N | T13: N | U13: N | V13: N | W13: Y | X13: =IF('AER CF'!$C13="Vic","Y","N") -> N
B14: Australian Distribution Co. (Vic) | C14: Vic | D14: Electricity | E14: Distribution | F14: N | G14: N | H14: N | I14: N | K14: N | L14: N | M14: N | N14: N | O14: N | P14: N | Q14: N | R14: N | S14: N | T14: N | U14: N | V14: N | W14: Y | X14: =IF('AER CF'!$C14="Vic","Y","N") -> Y
B15: CitiPower | C15: Vic | D15: Electricity | E15: Distribution | G15: N | H15: N | K15: N | L15: N | M15: N | N15: N | O15: N | P15: N | Q15: N | R15: N | S15: N | T15: N | U15: Y | V15: N | W15: Y | X15: =IF('AER CF'!$C15="Vic","Y","N") -> Y
B16: Directlink | C16: Qld | D16: Electricity | E16: Transmission | G16: N | K16: N | L16: N | M16: N | N16: N | O16: N | P16: - | Q16: N | R16: N | S16: N | T16: Y | U16: Y | V16: N | W16: Y | X16: =IF('AER CF'!$C16="Vic","Y","N") -> N
B17: ElectraNet | C17: SA | D17: Electricity | E17: Transmission | G17: N | K17: N | L17: N | M17: N | N17: N | O17: N | P17: - | Q17: N | R17: N | S17: N | T17: Y | U17: Y | V17: N | W17: Y | X17: =IF('AER CF'!$C17="Vic","Y","N") -> N
B18: Endeavour Energy | C18: NSW | D18: Electricity | E18: Distribution | G18: Y | H18: N | I18: Y | J18: Y | K18: N | L18: N | M18: N | N18: Y | O18: N | P18: N | Q18: N | R18: Y | S18: N | T18: Y | U18: Y | V18: Y | W18: Y | X18: =IF('AER CF'!$C18="Vic","Y","N") -> N
B19: Energex | C19: Qld | D19: Electricity | E19: Distribution | G19: Y | H19: N | K19: N | L19: N | M19: N | N19: N | O19: N | P19: N | Q19: N | R19: Y | S19: N | T19: Y | U19: Y | V19: Y | W19: Y | X19: =IF('AER CF'!$C19="Vic","Y","N") -> N
B20: Ergon Energy | C20: Qld | D20: Electricity | E20: Distribution | G20: Y | H20: N | I20: Y | J20: Y | K20: N | L20: N | M20: N | N20: N | O20: N | P20: N | Q20: N | R20: Y | S20: N | T20: Y | U20: Y | V20: N | W20: Y | X20: =IF('AER CF'!$C20="Vic","Y","N") -> N
B21: Essential Energy | C21: NSW | D21: Electricity | E21: Distribution | G21: Y | H21: N | I21: Y | J21: Y | K21: N | L21: N | M21: N | N21: Y | O21: N | P21: N | Q21: N | R21: Y | S21: N | T21: Y | U21: Y | V21: N | W21: Y | X21: =IF('AER CF'!$C21="Vic","Y","N") -> N
B22: Evoenergy Distribution | C22: ACT | D22: Electricity | E22: Distribution | G22: Y | H22: N | I22: Y | J22: Y | K22: Y | L22: Y | M22: N | N22: Y | O22: N | P22: Y | Q22: N | R22: Y | S22: N | T22: Y | U22: Y | V22: N | W22: Y | X22: =IF('AER CF'!$C22="Vic","Y","N") -> N
B23: Evoenergy Distribution (Tx Assets) | C23: ACT | D23: Electricity | E23: Distribution | G23: Y | H23: N | I23: Y | J23: Y | K23: Y | L23: Y | M23: N | N23: Y | O23: N | P23: Y | Q23: N | R23: Y | S23: N | T23: Y | U23: Y | V23: N | W23: Y | X23: =IF('AER CF'!$C23="Vic","Y","N") -> N
B24: Jemena Electricity | C24: Vic | D24: Electricity | E24: Distribution | G24: N | H24: N | K24: N | L24: N | M24: N | N24: N | O24: N | P24: N | Q24: N | R24: N | S24: N | T24: N | U24: Y | V24: N | W24: Y | X24: =IF('AER CF'!$C25="Vic","Y","N") -> Y
B25: JGN | C25: Vic | D25: Gas | E25: Distribution | F25: - | G25: - | H25: - | I25: - | J25: - | K25: - | L25: - | M25: - | N25: - | O25: - | P25: - | Q25: - | R25: - | S25: - | T25: - | U25: - | V25: - | W25: - | X25: - | Y25: -
B26: Murraylink | C26: SA | D26: Electricity | E26: Transmission | G26: N | K26: N | L26: N | M26: N | N26: N | O26: N | P26: - | Q26: =IFERROR(IF(_xlfn.SINGLE(dms_MAIFI_Flag)="Yes","N","Y"),"Y") -> N | R26: N | S26: N | T26: Y | U26: Y | V26: N | W26: =IFERROR(LEFT(_xlfn.SINGLE(dms_MAIFI_Flag)),"N") -> Y | X26: =IF('AER CF'!$C26="Vic","Y","N") -> N
B27: Power and Water | C27: NT | D27: Electricity | E27: Distribution | G27: N | H27: N | K27: N | L27: Y | M27: N | N27: N | O27: N | P27: Y | Q27: =IFERROR(IF(_xlfn.SINGLE(dms_MAIFI_Flag)="Yes","N","Y"),"Y") -> N | R27: Y | S27: Y | T27: Y | U27: Y | V27: N | W27: =IFERROR(LEFT(_xlfn.SINGLE(dms_MAIFI_Flag)),"N") -> Y | X27: =IF('AER CF'!$C27="Vic","Y","N") -> N
B28: Powercor Australia | C28: Vic | D28: Electricity | E28: Distribution | G28: N | H28: N | K28: N | L28: N | M28: N | N28: N | O28: N | P28: N | Q28: =IFERROR(IF(_xlfn.SINGLE(dms_MAIFI_Flag)="Yes","N","Y"),"Y") -> N | R28: N | S28: N | T28: N | U28: Y | V28: N | W28: =IFERROR(LEFT(_xlfn.SINGLE(dms_MAIFI_Flag)),"N") -> Y | X28: =IF('AER CF'!$C28="Vic","Y","N") -> Y
B29: Powerlink | C29: Qld | D29: Electricity | E29: Transmission | G29: N | K29: N | L29: N | M29: N | N29: N | O29: N | P29: - | Q29: =IFERROR(IF(_xlfn.SINGLE(dms_MAIFI_Flag)="Yes","N","Y"),"Y") -> N | R29: N | S29: N | T29: Y | U29: Y | V29: N | W29: =IFERROR(LEFT(_xlfn.SINGLE(dms_MAIFI_Flag)),"N") -> Y | X29: =IF('AER CF'!$C29="Vic","Y","N") -> N
B30: Roma to Brisbane Pipeline | C30: Qld | D30: Gas | E30: Transmission | F30: - | G30: - | H30: - | I30: - | J30: - | K30: - | L30: - | M30: - | N30: - | O30: - | P30: - | Q30: - | R30: - | S30: - | T30: - | U30: - | V30: - | W30: - | X30: - | Y30: -
B31: SA Power Networks | C31: SA | D31: Electricity | E31: Distribution | G31: Y | H31: N | K31: N | L31: N | M31: N | N31: N | O31: N | P31: N | Q31: =IFERROR(IF(_xlfn.SINGLE(dms_MAIFI_Flag)="Yes","N","Y"),"Y") -> N | R31: Y | S31: N | T31: Y | U31: N | V31: N | W31: =IFERROR(LEFT(_xlfn.SINGLE(dms_MAIFI_Flag)),"N") -> Y | X31: =IF('AER CF'!$C31="Vic","Y","N") -> N
B32: TasNetworks (D) | C32: Tas | D32: Electricity | E32: Distribution | G32: Y | H32: N | K32: N | L32: N | M32: N | N32: N | O32: N | P32: N | Q32: =IFERROR(IF(_xlfn.SINGLE(dms_MAIFI_Flag)="Yes","N","Y"),"Y") -> N | R32: Y | S32: N | T32: Y | U32: Y | V32: N | W32: =IFERROR(LEFT(_xlfn.SINGLE(dms_MAIFI_Flag)),"N") -> Y | X32: =IF('AER CF'!$C32="Vic","Y","N") -> N
B33: TasNetworks (T) | C33: Tas | D33: Electricity | E33: Transmission | G33: N | K33: N | L33: N | M33: N | N33: N | O33: N | P33: - | Q33: =IFERROR(IF(_xlfn.SINGLE(dms_MAIFI_Flag)="Yes","N","Y"),"Y") -> N | R33: N | S33: N | T33: Y | U33: Y | V33: N | W33: =IFERROR(LEFT(_xlfn.SINGLE(dms_MAIFI_Flag)),"N") -> Y | X33: =IF('AER CF'!$C33="Vic","Y","N") -> N
B34: TransGrid | C34: NSW | D34: Electricity | E34: Transmission | G34: N | K34: N | L34: N | M34: N | N34: N | O34: N | P34: - | Q34: =IFERROR(IF(_xlfn.SINGLE(dms_MAIFI_Flag)="Yes","N","Y"),"Y") -> N | R34: N | S34: N | T34: Y | U34: Y | V34: N | W34: =IFERROR(LEFT(_xlfn.SINGLE(dms_MAIFI_Flag)),"N") -> Y | X34: =IF('AER CF'!$C34="Vic","Y","N") -> N
B35: United Energy | C35: Vic | D35: Electricity | E35: Distribution | G35: N | H35: N | K35: N | L35: N | M35: N | N35: N | O35: N | P35: N | Q35: =IFERROR(IF(_xlfn.SINGLE(dms_MAIFI_Flag)="Yes","N","Y"),"Y") -> N | R35: N | S35: N | T35: N | U35: Y | V35: N | W35: =IFERROR(LEFT(_xlfn.SINGLE(dms_MAIFI_Flag)),"N") -> Y | X35: =IF('AER CF'!$C35="Vic","Y","N") -> Y
B38: Confidential
B39: Amended
B41: Worksheet 6.2 STPIS reliability
B42: Formula | F42: Applied to:
B44: =INDEX(dms_CBD_flag,MATCH(dms_TradingName,dms_TradingName_List))="NO" | F44: $D$11,$D$17,$D$23,$D$33,$D$39,$D$45,$D$55,$D$61,$D$67,$D$77,$D$83,$D$89
B45: =INDEX(dms_Urban_flag,MATCH(dms_TradingName,dms_TradingName_List))="NO" | F45: $D$12,$D$18,$D$24,$D$56,$D$62,$D$78,$D$68,$D$84
B46: =INDEX(dms_ShortRural_flag,MATCH(dms_TradingName,dms_TradingName_List))="NO" | F46: $D$13,$D$19,$D$25,$D$57,$D$63,$D$69,$D$79,$D$85
B47: =INDEX(dms_LongRural_flag,MATCH(dms_TradingName,dms_TradingName_List))="NO" | F47: $D$14,$D$20,$D$26,$D$58,$D$64,$D$65,$D$70,$D$71,$D$80,$D$86
B48: =INDEX(dms_FeederType_5_flag,MATCH(dms_TradingName,dms_TradingName_List))="NO" | F48: $D$87,$D$81,$D$71,$D$65,$D$59,$D$49,$D$43,$D$37,$D$21,$D$15
B49: =dms_MAIFI_Flag="No" | F49: $D$55:$D$72
B52: Business & other details
B53: =(INDEX(dms_Model_Span,MATCH(dms_Model,dms_Model_List))>1)
B54: =(INDEX(dms_Model_Span,MATCH(dms_Model,dms_Model_List))=1)
B57: STYLES IN USE | C57: dms_H2
B58: TOP HEADER | C58: dms_H1
B59: HEADING ONE | C59: dms_1
B60: HEADING TWO | C60: dms_2
B61: HEADING THREE | C61: dms_3
B62: HEADING FOUR | C62: dms_4
B63: HEADING FIVE | C63: dms_5
B64: 5.111 | C64: dms_NUM
B65: 0.0545 | C65: dms_NUM%
B66: 5.5555 | C66: dms_NUM3d
B67: Text description | C67: dms_Row_Locked
B68: Text description - not locked | C68: dms_Row1
B69: Text description | C69: dms_Row2
B70: Total | C70: dms_T1
B71: Total | C71: dms_T2
B72: EXPENSES | C72: dms_BH
B73: 2019 | C73: dms_BY1
B74: 2019 | C74: dms_BY2
B75: VOLUMES | C75: dms_GH
B76: 2019 | C76: dms_GY1
B77: 2019 | C77: dms_GY2

Sheet AER NRs (hidden)
B1: AER NAMED RANGES
B3: DROP DOWN SELECTORS USED IN WORKBOOKS
B5: COVER SHEET | C5: dms_DataQuality_List | D5: dms_Confid_status_List
C6: -- select -- | D6: -- select --
C7: Actual | D7: Public
C8: Estimate | D8: Confidential
C9: Consolidated
C12: For all files either AER or business needs to be able to specify the type of submission | D12: For PTRM & RFM templates we must provide a choice in case they change their form of control - otherwise it is drawn from the business specific lookup table above.
C13: dms_SourceList | D13: dms_FormControl_Choices
C14: -- select -- | D14: Revenue cap
C15: After appeal | D15: Revenue yield
C16: Draft decision | D16: Tariff cap
C17: Final decision | D17: Weighted average price cap
C18: PTRM update 1
C19: PTRM update 2
C20: PTRM update 3
C21: PTRM update 4
C22: PTRM update 5
C23: PTRM update 6
C24: PTRM update 7
C25: Reallocated
C26: Recast
C27: Regulatory proposal
C28: Reporting
C29: Revised regulatory proposal
K32: This is used to create an image to insert on 6.3 STPIS sheet - not for dropdown lists. | N32: GAS
B33: CA & RESET RINS DNSP | C33: dms_DNSP_020301_SubstationType | D33: dms_DNSP_020301_ProjectType | E33: dms_DNSP_020301_ProjectTrigger | F33: dms_DNSP_020302_ProjectType | G33: dms_DNSP_020302_ProjectTrigger | H33: dms_STPIS_Exclusion_List | I33: dms_Reason_Interruption | J33: dms_Reason_Interruption_Detailed | K33: Reason for interruption | N33: dms_N0205_AssetType
C34: Subtransmission substation | D34: New substation establishment | E34: Demand growth | F34: New line on new route - single circuit | G34: Demand growth | H34: Weather | I34: Animal | J34: Animal impact | K34: Animal | L34: Animal impact | N34: Cast Iron
C35: Zone substation | D35: Substation upgrade - capacity | E35: Voltage issues | F35: New line on new route - dual circuit | G35: Voltage issues | H35: Equipment failure | I35: Asset failure | J35: Animal nesting/burrowing, etc and other | L35: Animal nesting/burrowing, etc and other | N35: PVC
C36: Switching station | D36: Substation upgrade - voltage | E36: Reactive power issue | F36: New line on new route - other | G36: Reactive power issue | H36: Operational error | I36: Other | J36: Other | L36: Other | N36: Polyamide
C37: Other | D37: Other | E37: Fault level issues | F37: Line rebuild over existing route - single circuit | G37: Fault level issues | H37: Vegetation | I37: Overloads | J37: LV | K37: Asset failure | L37: LV | N37: High density polyethylene (80)
E38: Safety | F38: Line rebuild over existing route - dual circuit | G38: Net market benefit | H38: Animals | I38: Planned | J38: Distribution substation | L38: Distribution substation | N38: High density polyethylene (100)
E39: Environment | F39: Reconductor - Single circuit | G39: Safety | H39: Third party impacts | I39: Network business | J39: HV | L39: HV | N39: High density polyethylene (250)
E40: Other | F40: Reconductor - Dual circuit | G40: Environment | H40: Transmission failure | I40: Third party | J40: Zone substation | L40: Zone substation | N40: High density polyethylene (575)
F41: Reconductor - Other | G41: Other | H41: Load shedding | I41: Unknown | J41: Subtransmission | L41: Subtransmission | N41: Medium density polyethylene
F42: Line upgrade - raising/retensoring | H42: Inter-distributor connection failure | I42: Vegetation | J42: insert description of 'other' | K42: Other | L42: insert description of 'other' | N42: Unprotected steel
F43: Line upgrade - voltage upgrade | H43: Other | I43: Weather | J43: Network error | K43: Overloads | N43: Protected steel
F44: Line upgrade - capacity | I44: 2 - STPIS Exclusion (3.3)(a) | J44: Switching and protection error | K44: Planned | N44: Other
F45: String spare circuit | I45: 3 - STPIS Exclusion (3.3)(a) | J45: Fire | K45: Network business | L45: Network error
F46: Other | I46: 4 - STPIS Exclusion (3.3)(a) | J46: Other | L46: Switching and protection error
I47: 5 - STPIS Exclusion (3.3)(a) | J47: Dig-in | K47: Third party | L47: Fire
I48: 6 - STPIS Exclusion (3.3)(a) | J48: Unauthorised access | L48: Other
I49: 7 - STPIS Exclusion (3.3)(a) | J49: Vehicle impact | L49: Dig-in
J50: Unknown | L50: Unauthorised access
J51: Blow-in/Fall-in - NSP responsibility | L51: Vehicle impact
J52: Grow-in - NSP responsibility | K52: Unknown | L52: Unknown
J53: Blow-in/Fall-in - Other responsible party | K53: Vegetation | L53: Blow-in/Fall-in - NSP responsibility
J54: Grow-in - Other responsible party | L54: Grow-in - NSP responsibility
L55: Blow-in/Fall-in - Other responsible party
L56: Grow-in - Other responsible party
K57: Weather
K58: 2 - STPIS Exclusion (3.3)(a)
K59: 3 - STPIS Exclusion (3.3)(a)
K60: 4 - STPIS Exclusion (3.3)(a)
K61: 5 - STPIS Exclusion (3.3)(a)
K62: 6 - STPIS Exclusion (3.3)(a)
K63: 7 - STPIS Exclusion (3.3)(a)
B66: CA & RESET RINS TNSP | C66: dms_TNSP_0203_SubstationType | D66: dms_TNSP_020301_ProjectType | E66: dms_TNSP_020301_ProjectTrigger | F66: dms_TNSP_020302_ProjectType | G66: dms_TNSP_0203_ProjectTrigger
C67: Terminal station | D67: New substation establishment | E67: Demand growth | F67: New line on new route - single circuit | G67: Demand growth
C68: Switching station | D68: Capacity upgrade | E68: Voltage issues | F68: New line on new route - dual circuit | G68: Voltage issues
C69: Transmission substation | D69: Voltage upgrade | E69: Reactive power issue | F69: New line on new route - other | G69: Reactive power issue
C70: Other | D70: Other | E70: Fault level issues | F70: Line rebuild over existing route - single circuit | G70: Fault level issues
E71: Net market benefit | F71: Line rebuild over existing route - dual circuit | G71: Net market benefit
E72: Safety | F72: Reconductor - Single circuit | G72: Safety
E73: Environment | F73: Reconductor - Dual circuit | G73: Environment
E74: Other | F74: Reconductor - Other | G74: Other
F75: Line upgrade - raising/retensoring
F76: Line upgrade - voltage upgrade
F77: Line upgrade - capacity
F78: String spare circuit
F79: Other
B83: NAMED RANGES USED IN ETL PROCESS
M84: GAS ARR & RESET
B85: CA & RESET RINS DNSP ONLY | C85: dms_020303_01_UOM | D85: dms_020501_01_UOM | E85: dms_020501_02_UOM | F85: dms_020501_03_UOM | G85: dms_020501_04_UOM | H85: dms_020701_01_UOM | I85: dms_020701_02_UOM | J85: dms_020701_01_Rows | K85: dms_040102_01_UOM | L85: dms_040102_04_UOM | M85: dms_S140101_UOM | N85: dms_S140201_UOM | O85: dms_E050201_UOM | P85: dms_E050202_UOM
C86: Circuit line length in km | D86: 0's | E86: 0's | F86: 0's | G86: 0's | H86: km | I86: km | J86: Route line length within zone | K86: 0's | L86: days | M86: number | N86: number per km | O86: per metre per connection | P86: metres per connection
C87: Circuit line length in km | D87: 0's | E87: 0's | F87: 0's | G87: 0's | H87: 0's | I87: 0's | J87: Number of maintenance spans | K87: 0's | L87: 0's | M87: number | N87: number | O87: per service per connection | P87: number per connection
C88: Circuit line length in km | D88: MVA added | E88: MVA added | F88: MVA added | G88: MVA added | H88: km | I88: km | J88: Total length of maintenance spans | K88: 0's | L88: $0s | M88: number | N88: number | O88: number per connection | P88: number per connection
C89: Circuit line length in km | D89: 0's | E89: 0's | F89: 0's | G89: 0's | H89: km | I89: km | J89: Length of vegetation corridors | K89: $0s | L89: 0's | M89: km
C90: Number | D90: total spend $0s | E90: total spend $0s | F90: total spend $0s | G90: total spend $0s | H90: 0's | I90: 0's | J90: Average number of trees per maintenance span
C91: Number | D91: net circuit km added | E91: net circuit km added | F91: net circuit km added | G91: net circuit km added | H91: years | I91: years | J91: Average frequency of cutting cycle
C92: Number | D92: total spend $0s | E92: total spend $0s | F92: total spend $0s | G92: total spend $0s
D93: net circuit km added | E93: net circuit km added | F93: net circuit km added | G93: net circuit km added
D94: total spend $0s | E94: total spend $0s | F94: total spend $0s | G94: total spend $0s
D95: 0's | F95: $0s
D96: 0's
D97: 0's
D98: $0s
B101: CA & RESET RINS TNSP ONLY | C101: dms_020701_01_UOM
C102: km
C103: 0's
C104: km
C105: 0's
C106: km
C107: metres
C108: years
B111: CA & RESET RINS DNSP & TNSP | C111: dms_020603_01_UOM
C112: 0's
C113: 0's
C114: 0's
C115: 0's
C116: (per cent)
B119: EB & RESET RINS DNSP ONLY | C119: dms_030601_01_UOM | D119: dms_030601_02_UOM | E119: dms_030701_01_UOM | F119: dms_030702_01_UOM | G119: dms_030703_01_UOM
C120: minutes/customer | D120: minutes/customer | E120: Customer / km | F120: % | G120: km
C121: minutes/customer | D121: minutes/customer | E121: MWh/customer | F121: Number of spans
C122: interruptions/customer | D122: interruptions/customer | E122: kVA / customer | F122: Number of spans
C123: interruptions/customer | D123: interruptions/customer | F123: Number of spans
F124: Number of spans
F125: Years
F126: Years
F127: Trees
F128: Trees
F129: Defects
F130: Defects
F131: Spans
F132: km
F133: Spans
C135: WHEN INSERTING COVER SHEET INTO A TNSP FILE - APPLY THESE NAMED RANGES
B136: EB & RESET RINS TNSP ONLY | C136: dms_030601_01_UOM | E136: dms_030701_01_UOM | F136: dms_030702_01_UOM
C137: % | E137: Number of spans | F137: km
C138: number | E138: Years | F138: %
C139: number | E139: Trees | F139: km
C140: % | E140: Defects | F140: number
C141: number | E141: Number of spans
C142: number | E142: km
C143: % | E143: km
C144: number | E144: Number of spans
C145: number
C146: %
C147: number
C148: %
C149: number
C150: %
C151: number
B153: EB & RESET RINS DNSP & TNSP | C153: dms_EB_RAB_PIT
C154: Beginning of year
C155: End of year
C156: End of year
C157: End of year
C158: End of year
C159: End of year
B161: ARR DNSP ONLY | C161: dms_030605_UOM | D161: dms_03060703_UOM | E161: dms_E020202_UOM | F161: Spare
C162: number | D162: number | E162: Length of mains replaced
C163: number | D163: number | E163: Number of services replaced
C164: number | D164: number
C165: number | D165: number
C166: number | D166: (per cent)
C167: number
C168: number
C169: number
C170: number
C171: number
C172: number
C173: number
C174: (per cent)
C175: (per cent)
B177: RFM | C177: dms_Beg | D177: dms_Mid | E177: dms_End
C178: Beginning of year | D178: Mid year | E178: End of Year
B180: PTRM | C180: dms_PTRM_RAB_PIT | D180: dms_PTRM_TAB_PIT | E180: DMS_Xfactor
C181: Beginning of year | D181: Beginning of year | E181: x factors
C182: End of year | D182: End of year
C183: End of year | D183: End of year
C184: End of year | D184: End of year
C185: End of year
B188: STPIS & MIC NAMED RANGES
B190: These "row descriptions" are the column headings in the various templates but become row descriptions in the ETL process
B192: Table 6.3 sustained interruptions - row descriptions | C192: dms_060301_CustNo_Affected_Row | D192: dms_060301_Avg_Duration_Sustained_Int_Row | E192: dms_060301_Effect_unplanned_SAIDI_Row | F192: dms_060301_Effect_unplanned_SAIFI_Row
C193: Number of customers affected by the interruption | D193: Average duration of sustained customer interruption | E193: Effect on unplanned SAIDI | F193: Effect on unplanned SAIFI
B196: Table 6.1 telephone answering - row descriptions and start date | C196: dms_060101_Rows | D196: dms_060102_Rows | E196: dms_060101_StartDateTxt
C197: Total number of calls (after removing excluded events) | D197: Number of calls answered within 30 seconds (after excluding excluded events) | E197: =dms_060701_StartDateTxt -> 
B200: Table 6.8.1 - row descriptions | C200: dms_060801_01_Rows | D200: dms_060801_02_Rows | E200: dms_060801_03_Rows | F200: dms_060801_04_Rows
C201: Number of interruptions | D201: Duration of interruptions | E201: Total unplanned minutes off supply | F201: Effect on unplanned MAIFI
B204: Table 7.9.4 - market impact component - row descriptions | C204: dms_070904_01_Rows | D204: without exclusions | E204: with exclusions
B207: These headings (Lists) are determined from the INDEX/MATCH function on the NSP selected on the Business & other details sheet
B209: Table 6.7.1 - daily performance data - unplanned - MAIFI -- row descriptions and header named range values | C209: dms_060701_Feeder_Header_Lvl4 | D209: =INDEX(dms_FeederName_1,MATCH(dms_TradingName,dms_TradingName_List)) -> CBD | E209: =INDEX(dms_FeederName_1,MATCH(dms_TradingName,dms_TradingName_List)) -> CBD | F209: =INDEX(dms_FeederName_2,MATCH(dms_TradingName,dms_TradingName_List)) -> Urban | G209: =INDEX(dms_FeederName_2,MATCH(dms_TradingName,dms_TradingName_List)) -> Urban | H209: =INDEX(dms_FeederName_3,MATCH(dms_TradingName,dms_TradingName_List)) -> Short rural | I209: =INDEX(dms_FeederName_3,MATCH(dms_TradingName,dms_TradingName_List)) -> Short rural | J209: =INDEX(dms_FeederName_4,MATCH(dms_TradingName,dms_TradingName_List)) -> Long rural | K209: =INDEX(dms_FeederName_4,MATCH(dms_TradingName,dms_TradingName_List)) -> Long rural | L209: =IF((INDEX(dms_FeederName_5,MATCH(dms_TradingName,dms_TradingName_List))=0),"Network",(INDEX(dms_FeederName_5,MATCH(dms_TradingName,dms_TradingName_List)))) -> Network | M209: =IF((INDEX(dms_FeederName_5,MATCH(dms_TradingName,dms_TradingName_List))=0),"Network",(INDEX(dms_FeederName_5,MATCH(dms_TradingName,dms_TradingName_List)))) -> Network | N209: Network | O209: Network
C211: dms_060701_Rows | D211: All events | E211: After removing excluded events | F211: All events | G211: After removing excluded events | H211: All events | I211: After removing excluded events | J211: All events | K211: After removing excluded events | L211: All events | M211: After removing excluded events | N211: All events | O211: After removing excluded events
D212: the number of column headings changes from 10 to 12 depending on the number of feeder categories for the NSP
C214: dms_0603_FeederList | D214: =INDEX(dms_FeederName_1,MATCH(dms_TradingName,dms_TradingName_List)) -> CBD | E214: =INDEX(dms_FeederName_2,MATCH(dms_TradingName,dms_TradingName_List)) -> Urban | F214: =INDEX(dms_FeederName_3,MATCH(dms_TradingName,dms_TradingName_List)) -> Short rural | G214: =INDEX(dms_FeederName_4,MATCH(dms_TradingName,dms_TradingName_List)) -> Long rural
B217: Use these to add to specific worksheets in existing files | C217: Use these to add to specific worksheets in existing files
B220: ARRs 6.7 STPIS daily performance | C220: dms_060101_Values | D220: dms_060102_Values | E220: dms_060701_Values
C221: dms_LeapYear
B224: ARR's 6.8 STPIS exclusions | C224: dms_060801_Event_Date | D224: dms_060801_OutageID | E224: dms_060801_FeederID | F224: dms_060801_FeederClass | G224: dms_060801_CauseID | H224: dms_060801_01_Values | I224: dms_060801_02_Values | J224: dms_060801_03_Values | K224: dms_060801_Excl_Cat | L224: dms_060801_04_Values
C225: dms_060801_StartCell
B228: CA 6.3 sustained interruptions | C228: dms_060301_Event_Date | D228: dms_060301_Event_Time | E228: dms_060301_AssetID | F228: dms_060301_FeederClass | G228: dms_060301_Reason | H228: dms_060301_DetailedReason | I228: dms_060301_CustNo_Affected_Values | J228: dms_060301_Avg_Duration_Sustained_Int_Values | K228: dms_060301_Effect_unplanned_SAIDI_Values | L228: dms_060301_Effect_unplanned_SAIFI_Values | M228: dms_060301_MED
B232: PTRM input sheet | C232: DMS_50_01_01a | D232: DMS_50_01_01aa | E232: DMS_50_01_01b | F232: DMS_50_01_01bb | G232: DMS_50_01_01c | H232: DMS_50_01_01d | I232: DMS_50_01_01dd

Sheet AER lookups (hidden)
B1: AER LOOKUP TABLES
B3: Template number | C3: 5
Z5: FOR ELECTRICITY BUSINESSES ONLY
Z6: Feeder Types | AD6: TasNetworks (D) | AE6: Feeder Names
Z8: CBD | AA8: Urban | AB8: Short rural | AC8: long rural | AD8: EXTRA
B9: dms_TradingName_List | C9: dms_TradingNameFull_List | D9: dms_ABN_List | E9: dms_UID_List | F9: dms_JurisdictionList | G9: dms_Sector_List | H9: dms_Segment_List | I9: dms_FormControl_List | J9: dms_RPT_List | K9: dms_RPTMonth_List | L9: dms_CRCPlength_List | M9: dms_FRCPlength_List | N9: dms_PRCPlength_List | O9: dms_663_List | P9: dms_Addr1_List | Q9: dms_Addr2_List | R9: dms_Suburb_List | S9: dms_State_List | T9: dms_PostCode_List | U9: dms_PAddr1_List | V9: dms_PAddr2_List | W9: dms_PSuburb_List | X9: dms_PState_List | Y9: dms_PPostCode_List | Z9: dms_CBD_flag | AA9: dms_Urban_flag | AB9: dms_ShortRural_flag | AC9: dms_LongRural_flag | AD9: dms_FeederType_5_flag | AE9: dms_FeederName_1 | AF9: dms_FeederName_2 | AG9: dms_FeederName_3 | AH9: dms_FeederName_4 | AI9: dms_FeederName_5 | AJ9: dms_MAIFI_flag_List | AK9: dms_Public_Lighting_List | AL9: Name
B10: AEMO | C10: Australian Energy Market Operator Ltd | D10: 94072010327 | E10: ETTVIC100 | F10: Vic | G10: Electricity | H10: Transmission | I10: - | J10: Financial | K10: March | L10: 5 | M10: 5 | N10: 5 | O10: x | P10: Level 22 | Q10: 530 Collins Street | R10: MELBOURNE | S10: Vic | T10: 3000 | U10: GPO Box 2008 | W10: MELBOURNE | X10: Vic | Y10: 3001 | Z10: NO | AA10: NO | AB10: NO | AC10: NO | AD10: NO | AE10: CBD | AF10: Urban | AG10: Short rural | AH10: Long rural | AJ10: YES | AK10: NO | AL10: =B10 -> AEMO
B11: Ausgrid | C11: Ausgrid | D11: 67505337385 | E11: EDDNSW100 | F11: NSW | G11: Electricity | H11: Distribution | I11: Revenue cap | J11: Financial | K11: June | L11: 5 | M11: 5 | N11: 5 | O11: 5 | P11: 570 George St | R11: SYDNEY | S11: NSW | T11: 2000 | U11: GPO Box 4009 | W11: SYDNEY | X11: NSW | Y11: 2001 | Z11: YES | AA11: YES | AB11: YES | AC11: YES | AD11: NO | AE11: CBD | AF11: Urban | AG11: Short rural | AH11: Long rural | AJ11: NO | AK11: YES | AL11: Ausgrid
B12: Ausgrid (Tx Assets) | C12: Ausgrid (Tx Assets) | D12: 67505337385 | E12: EDTNSW100 | F12: NSW | G12: Electricity | H12: Distribution | I12: Revenue cap | J12: Financial | K12: June | L12: 5 | M12: 5 | N12: 5 | O12: 5 | P12: 570 George St | R12: SYDNEY | S12: NSW | T12: 2000 | U12: GPO Box 4009 | W12: SYDNEY | X12: NSW | Y12: 2001 | Z12: YES | AA12: YES | AB12: YES | AC12: YES | AD12: NO | AE12: CBD | AF12: Urban | AG12: Short rural | AH12: Long rural | AJ12: NO | AK12: NO | AL12: Ausgrid (Tx Assets)
B13: AusNet (D) | C13: AusNet Electricity Services Pty Ltd | D13: 91064651118 | E13: EDDVIC100 | F13: Vic | G13: Electricity | H13: Distribution | I13: Revenue cap | J13: Financial | K13: June | L13: 5 | M13: 5 | N13: 5 | O13: 2 | P13: Level 32 | Q13: 2 Southbank Boulevard | R13: SOUTHBANK | S13: Vic | T13: 3006 | U13: Locked Bag 14051 | W13: MELBOURNE CITY MAIL CENTRE | X13: Vic | Y13: 8001 | Z13: NO | AA13: YES | AB13: YES | AC13: YES | AD13: NO | AE13: CBD | AF13: Urban | AG13: Short rural | AH13: Long rural | AJ13: YES | AK13: YES | AL13: AusNet (D)
B14: AusNet (T) | C14: AusNet Transmission Group Pty Ltd | D14: 78079798173 | E14: ETTVIC200 | F14: Vic | G14: Electricity | H14: Transmission | I14: Revenue cap | J14: Financial | K14: March | L14: 5 | M14: 5 | N14: 5 | O14: 2 | P14: Level 32 | Q14: 2 Southbank Boulevard | R14: SOUTHBANK | S14: Vic | T14: 3006 | U14: Locked Bag 14051 | W14: MELBOURNE CITY MAIL CENTRE | X14: Vic | Y14: 8001 | Z14: NO | AA14: NO | AB14: NO | AC14: NO | AD14: NO | AE14: CBD | AF14: Urban | AG14: Short rural | AH14: Long rural | AJ14: YES | AK14: NO | AL14: AusNet (T)
B15: Australian Distribution Co. | C15: Australian Distribution Co. | D15: 11222333444 | E15: UID_Test | F15: NSW | G15: Electricity | H15: Distribution | I15: Revenue cap | J15: Financial | K15: June | L15: 5 | M15: 5 | N15: 5 | O15: 2 | P15: 123 Straight Street | R15: SYDNEY | S15: NSW | T15: 2000 | U15: PO Box 123 | W15: SYDNEY | X15: NSW | Y15: 2000 | Z15: YES | AA15: YES | AB15: YES | AC15: YES | AD15: NO | AE15: CBD | AF15: Urban | AG15: Short rural | AH15: Long rural | AJ15: NO | AK15: YES | AL15: Australian Distribution Co.
B16: Australian Distribution Co. (Vic) | C16: Australian Distribution Co. (Victoria) | D16: 11222333444 | E16: UID_Test | F16: Vic | G16: Electricity | H16: Distribution | I16: Revenue cap | J16: Financial | K16: June | L16: 5 | M16: 5 | N16: 5 | O16: 2 | P16: 123 Straight Street | R16: MELBOURNE | S16: Vic | T16: 3000 | U16: PO Box 123 | W16: MELBOURNE | X16: Vic | Y16: 3000 | Z16: NO | AA16: NO | AB16: NO | AC16: NO | AD16: NO | AE16: CBD | AF16: Urban | AG16: Short rural | AH16: Long rural | AJ16: YES | AK16: YES | AL16: Australian Distribution Co. (Vic)
B17: Australian Transmission Co. | C17: Australian Transmission Co. | D17: 11222333444 | E17: UID_Test | F17: NSW | G17: Electricity | H17: Transmission | I17: Revenue cap | J17: Financial | K17: June | L17: 5 | M17: 5 | N17: 5 | O17: 5 | P17: 123 Straight Street | R17: SYDNEY | S17: NSW | T17: 2000 | U17: PO Box 123 | W17: SYDNEY | X17: NSW | Y17: 2000 | Z17: NO | AA17: NO | AB17: NO | AC17: NO | AD17: NO | AE17: CBD | AF17: Urban | AG17: Short rural | AH17: Long rural | AJ17: NO | AK17: NO | AL17: Australian Transmission Co.
B18: Basslink | C18: Basslink Telecoms Pty Ltd | D18: 52090996231 | E18: ETITVC100 | F18: Vic | G18: Electricity | H18: Transmission | I18: Revenue cap | J18: Financial | K18: June | L18: 10 | M18: 5 | N18: 10 | O18: x | AJ18: NO | AK18: NO | AL18: Basslink
B19: CitiPower | C19: CitiPower | D19: 76064651056 | E19: EDDVIC200 | F19: Vic | G19: Electricity | H19: Distribution | I19: Revenue cap | J19: Financial | K19: June | L19: 5 | M19: 5 | N19: 5 | O19: 2 | P19: 40 Market Street | R19: MELBOURNE | S19: Vic | T19: 3000 | U19: Locked Bag 14090 | W19: MELBOURNE | X19: Vic | Y19: 8001 | Z19: YES | AA19: YES | AB19: NO | AC19: NO | AD19: NO | AE19: CBD | AF19: Urban | AG19: Short rural | AH19: Long rural | AJ19: YES | AK19: YES | AL19: CitiPower
B20: Directlink | C20: Directlink | D20: 16779340889 | E20: ETINQL100 | F20: Qld | G20: Electricity | H20: Transmission | I20: Revenue cap | J20: Financial | K20: June | L20: 5 | M20: 5 | N20: 5 | O20: 5 | P20: Level 25 | Q20: 580 George Street | R20: SYDNEY | S20: NSW | T20: 2000 | U20: PO Box R41 | W20: ROYAL EXCHANGE | X20: NSW | Y20: 1225 | Z20: NO | AA20: NO | AB20: NO | AC20: NO | AD20: NO | AE20: CBD | AF20: Urban | AG20: Short rural | AH20: Long rural | AJ20: NO | AK20: NO | AL20: Directlink
B21: ElectraNet | C21: ElectraNet | D21: 41094482416 | E21: ETTSTH100 | F21: SA | G21: Electricity | H21: Transmission | I21: Revenue cap | J21: Financial | K21: June | L21: 5 | M21: 5 | N21: 5 | O21: 5 | P21: 52-55 East Terrace | Q21: Rymill Park | R21: ADELAIDE | S21: SA | T21: 5000 | U21: PO Box 7096 | V21: Hutt Street Post Office | W21: ADELAIDE | X21: SA | Y21: 5000 | Z21: NO | AA21: NO | AB21: NO | AC21: NO | AD21: NO | AE21: CBD | AF21: Urban | AG21: Short rural | AH21: Long rural | AJ21: NO | AK21: NO | AL21: ElectraNet
B22: Endeavour Energy | C22: Endeavour Energy | D22: 11247365823 | E22: EDDNSW200 | F22: NSW | G22: Electricity | H22: Distribution | I22: Revenue cap | J22: Financial | K22: June | L22: 5 | M22: 5 | N22: 5 | O22: 5 | P22: 51 Huntingwood Drive | R22: HUNTINGWOOD | S22: NSW | T22: 2148 | U22: PO Box 811 | W22: SEVEN HILLS | X22: NSW | Y22: 1730 | Z22: NO | AA22: YES | AB22: YES | AC22: YES | AD22: NO | AE22: CBD | AF22: Urban | AG22: Short rural | AH22: Long rural | AJ22: NO | AK22: YES | AL22: Endeavour Energy
B23: Energex | C23: Energex | D23: 40078849055 | E23: EDDQLD100 | F23: Qld | G23: Electricity | H23: Distribution | I23: Revenue cap | J23: Financial | K23: June | L23: 5 | M23: 5 | N23: 5 | O23: 5 | P23: 26 Reddacliff Street | R23: NEWSTEAD | S23: Qld | T23: 4006 | U23: 26 Reddacliff Street | W23: NEWSTEAD | X23: QLD | Y23: 4006 | Z23: YES | AA23: YES | AB23: YES | AC23: NO | AD23: NO | AE23: CBD | AF23: Urban | AG23: Short rural | AH23: Long rural | AJ23: NO | AK23: YES | AL23: Energex
B24: Ergon Energy | C24: Ergon Energy | D24: 50087646062 | E24: EDDQLD200 | F24: Qld | G24: Electricity | H24: Distribution | I24: Revenue cap | J24: Financial | K24: June | L24: 5 | M24: 5 | N24: 5 | O24: 5 | P24: 22 Walker Street | R24: TOWNSVILLE | S24: Qld | T24: 4810 | U24: Po Box 264 | W24: FORTITUDE VALLEY | X24: QLD | Y24: 4006 | Z24: NO | AA24: YES | AB24: YES | AC24: YES | AD24: NO | AE24: CBD | AF24: Urban | AG24: Short rural | AH24: Long rural | AJ24: NO | AK24: YES | AL24: Ergon Energy
B25: Essential Energy | C25: Essential Energy | D25: 37428185226 | E25: EDDNSW300 | F25: NSW | G25: Electricity | H25: Distribution | I25: Revenue cap | J25: Financial | K25: June | L25: 5 | M25: 5 | N25: 5 | O25: 5 | P25: 8 Buller Street | R25: PORT MACQUARIE | S25: NSW | T25: 2444 | U25: PO Box 5730 | W25: PORT MACQUARIE | X25: NSW | Y25: 2444 | Z25: NO | AA25: YES | AB25: YES | AC25: YES | AD25: NO | AE25: CBD | AF25: Urban | AG25: Short rural | AH25: Long rural | AJ25: NO | AK25: YES | AL25: Essential Energy
B26: Evoenergy Distribution | C26: Evoenergy Distribution | D26: 76670568688 | E26: EDDACT100 | F26: ACT | G26: Electricity | H26: Distribution | I26: Revenue cap | J26: Financial | K26: June | L26: 5 | M26: 5 | N26: 5 | O26: 5 | P26: 40 Bunda Street | R26: CANBERRA | S26: ACT | T26: 2600 | U26: GPO BOX 366 | W26: CANBERRA | X26: ACT | Y26: 2601 | Z26: NO | AA26: YES | AB26: YES | AC26: NO | AD26: NO | AE26: CBD | AF26: Urban | AG26: Short rural | AH26: Long rural | AJ26: NO | AK26: NO | AL26: Evoenergy Distribution
B27: Evoenergy Distribution (Tx Assets) | C27: Evoenergy Distribution (Tx Assets) | D27: 76670568688 | E27: EDTACT100 | F27: ACT | G27: Electricity | H27: Distribution | I27: Revenue cap | J27: Financial | K27: June | L27: 5 | M27: 5 | N27: 5 | O27: 5 | P27: 40 Bunda Street | R27: CANBERRA | S27: ACT | T27: 2600 | U27: GPO BOX 366 | W27: CANBERRA | X27: ACT | Y27: 2601 | Z27: NO | AA27: YES | AB27: YES | AC27: NO | AD27: NO | AE27: CBD | AF27: Urban | AG27: Short rural | AH27: Long rural | AJ27: NO | AK27: NO | AL27: Evoenergy Distribution (Tx Assets)
B28: Jemena Electricity | C28: Jemena Electricity | D28: 82064651083 | E28: EDDVIC300 | F28: Vic | G28: Electricity | H28: Distribution | I28: Revenue cap | J28: Financial | K28: June | L28: 5 | M28: 5 | N28: 5 | O28: 2 | P28: Level 16 | Q28: 567 Collins Street | R28: MELBOURNE | S28: Vic | T28: 3000 | U28: PO Box 16182 | W28: MELBOURNE | X28: Vic | Y28: 8001 | Z28: NO | AA28: YES | AB28: YES | AC28: NO | AD28: NO | AE28: CBD | AF28: Urban | AG28: Short rural | AH28: Long rural | AJ28: YES | AK28: YES | AL28: Jemena Electricity
B29: Murraylink | C29: Murraylink | D29: 79181207909 | E29: ETINSA100 | F29: SA | G29: Electricity | H29: Transmission | I29: Revenue cap | J29: Financial | K29: June | L29: 5 | M29: 5 | N29: 5 | O29: 5 | P29: Level 19 | Q29: 580 George Street | R29: SYDNEY | S29: NSW | T29: 2000 | U29: PO Box R41 | W29: ROYAL EXCHANGE | X29: NSW | Y29: 1225 | Z29: NO | AA29: NO | AB29: NO | AC29: NO | AD29: NO | AE29: CBD | AF29: Urban | AG29: Short rural | AH29: Long rural | AJ29: NO | AK29: NO | AL29: Murraylink
B30: Power and Water | C30: Power and Water Corporation | D30: 15947352360 | E30: EDDNTY100 | F30: NT | G30: Electricity | H30: Distribution | I30: Revenue cap | J30: Financial | K30: June | L30: 5 | M30: 5 | N30: 5 | O30: x | P30: GPO Box 1921 | R30: DARWIN | S30: NT | T30: 801 | U30: GPO Box 1921 | W30: DARWIN | X30: NT | Y30: 801 | Z30: YES | AA30: YES | AB30: YES | AC30: YES | AD30: NO | AE30: CBD | AF30: Urban | AG30: Short rural | AH30: Long rural | AJ30: NO | AK30: NO | AL30: Power and Water
B31: Powercor Australia | C31: Powercor Australia | D31: 89064651109 | E31: EDDVIC400 | F31: Vic | G31: Electricity | H31: Distribution | I31: Revenue cap | J31: Financial | K31: June | L31: 5 | M31: 5 | N31: 5 | O31: 2 | P31: 40 Market Street | R31: MELBOURNE | S31: Vic | T31: 3000 | U31: Locked bag 14090 | W31: MELBOURNE | X31: Vic | Y31: 8001 | Z31: NO | AA31: YES | AB31: YES | AC31: YES | AD31: NO | AE31: CBD | AF31: Urban | AG31: Short rural | AH31: Long rural | AJ31: YES | AK31: YES | AL31: Powercor Australia
B32: Powerlink | C32: Queensland Electricity Transmission Corporation Limited trading as Powerlink Queensland | D32: 82078849233 | E32: ETTQLD100 | F32: Qld | G32: Electricity | H32: Transmission | I32: Revenue cap | J32: Financial | K32: June | L32: 5 | M32: 5 | N32: 5 | O32: 5 | P32: 33 Harold St | R32: VIRGINIA | S32: Qld | T32: 4014 | U32: PO Box 1193 | W32: VIRGINIA | X32: QLD | Y32: 4014 | Z32: NO | AA32: NO | AB32: NO | AC32: NO | AD32: NO | AE32: CBD | AF32: Urban | AG32: Short rural | AH32: Long rural | AJ32: NO | AK32: NO | AL32: Powerlink
B33: SA Power Networks | C33: SA Power Networks | D33: 13332330749 | E33: EDDSTH100 | F33: SA | G33: Electricity | H33: Distribution | I33: Revenue cap | J33: Financial | K33: June | L33: 5 | M33: 5 | N33: 5 | O33: 5 | P33: 1 Anzac Highway | R33: KESWICK | S33: SA | T33: 5035 | U33: GPO Box 77 | W33: ADELAIDE | X33: SA | Y33: 5000 | Z33: YES | AA33: YES | AB33: YES | AC33: YES | AD33: NO | AE33: CBD | AF33: Urban | AG33: Short rural | AH33: Long rural | AJ33: NO | AK33: YES | AL33: SA Power Networks
B34: TasNetworks (D) | C34: TasNetworks (D) | D34: 24167357299 | E34: EDDTAS100 | F34: Tas | G34: Electricity | H34: Distribution | I34: Revenue cap | J34: Financial | K34: June | L34: 5 | M34: 5 | N34: 5 | O34: 5 | P34: 1-7 Maria Street | R34: LENAH VALLEY | S34: Tas | T34: 7008 | U34: PO Box 606 | W34: MOONAH | X34: Tas | Y34: 7009 | Z34: YES | AA34: YES | AB34: YES | AC34: YES | AD34: YES | AE34: Critical Infrastructure | AF34: Urban | AG34: High density commercial | AH34: High density rural | AI34: Low density rural | AJ34: NO | AK34: YES | AL34: TasNetworks (D)
B35: TasNetworks (T) | C35: TasNetworks (T) | D35: 24167357299 | E35: ETTTAS100 | F35: Tas | G35: Electricity | H35: Transmission | I35: Revenue cap | J35: Financial | K35: June | L35: 5 | M35: 5 | N35: 5 | O35: 5 | P35: 1-7 Maria Street | R35: LENAH VALLEY | S35: Tas | T35: 7008 | U35: PO Box 606 | W35: MOONAH | X35: Tas | Y35: 7009 | Z35: NO | AA35: NO | AB35: NO | AC35: NO | AD35: NO | AE35: CBD | AF35: Urban | AG35: Short rural | AH35: Long rural | AJ35: NO | AK35: NO | AL35: TasNetworks (T)
B36: TransGrid | C36: NSW Electricity Networks Operations Pty Ltd trading as TransGrid | D36: 70 250 995 390 | E36: ETTNSW100 | F36: NSW | G36: Electricity | H36: Transmission | I36: Revenue cap | J36: Financial | K36: June | L36: 5 | M36: 5 | N36: 4 | O36: 5 | P36: 180 Thomas Street | R36: SYDNEY | S36: NSW | T36: 2000 | U36: PO Box A1000 | W36: SYDNEY SOUTH | X36: NSW | Y36: 1235 | Z36: NO | AA36: NO | AB36: NO | AC36: NO | AD36: NO | AE36: CBD | AF36: Urban | AG36: Short rural | AH36: Long rural | AJ36: NO | AK36: NO | AL36: TransGrid
B37: United Energy | C37: United Energy | D37: 70064651029 | E37: EDDVIC500 | F37: Vic | G37: Electricity | H37: Distribution | I37: Revenue cap | J37: Financial | K37: June | L37: 5 | M37: 5 | N37: 5 | O37: 2 | P37: 43-45 Centreway | R37: MOUNT WAVERLEY | S37: Vic | T37: 3149 | U37: PO Box 449 | W37: MOUNT WAVERLEY | X37: Vic | Y37: 3170 | Z37: NO | AA37: YES | AB37: YES | AC37: NO | AD37: NO | AE37: CBD | AF37: Urban | AG37: Short rural | AH37: Long rural | AJ37: YES | AK37: YES | AL37: United Energy
B40: The Reg Year Ending (dms_RYE) must be set to the last year of the regulatory period. For forecast data is is usually (FRCP_y5) for actual it is a single year (CRY). For historical actual data the RYE will need to be set manually in the business details sheet by setting the dms_Multiyear_flag to 1 and putting the correct value in 'dms_Specified_FinalYear. See cells C67:C68
B41: dms_Model_List | C41: dms_Model_Name_Format1 | D41: dms_Worksheet_List | E41: dms_Model_Span_List
B42: ARR | C42: Annual Reporting | D42: =IF(dms_MultiYear_ResponseFlag="yes","NEW HISTORICAL ANNUAL REPORTING","ANNUAL REPORTING") -> ANNUAL REPORTING | E42: 1
B43: CA | C43: Category Analysis | D43: =IF(dms_MultiYear_ResponseFlag="yes","NEW HISTORICAL CATEGORY ANALYSIS","CATEGORY ANALYSIS") -> CATEGORY ANALYSIS | E43: 1
B44: CESS | C44: Capitlal Expenditure | D44: CAPITLAL EXPENDITURE SHARING SCHEMING | E44: 5
B45: CPI | C45: CPI | D45: CPI | E45: 5
B46: EB | C46: Economic Benchmarking | D46: =IF(dms_MultiYear_ResponseFlag="yes","NEW HISTORICAL ECONOMIC BENCHMARKING","ECONOMIC BENCHMARKING") -> ECONOMIC BENCHMARKING | E46: 1
B47: EBSS | C47: Efficiency Benefit Sharing Scheme | D47: EFFICIENCY BENEFIT SHARING SCHEME | E47: 5
B48: Pricing | C48: Pricing Proposal | D48: PRICING PROPOSAL | E48: 5
B49: Profitability | C49: Profitability | D49: PROFITABILITY | E49: 5
B50: PTRM | C50: Post Tax Revenue Model | D50: POST TAX REVENUE MODEL | E50: 5
B51: Reset | C51: Regulatory Reporting (Reset) | D51: REGULATORY REPORTING STATEMENT | E51: 5
B52: Reset_outputs | C52: Reset Outputs | D52: AER RESET DECISION OUTPUTS | E52: 5
B53: RFM | C53: Roll Forward Model | D53: ROLL FORWARD MODEL | E53: 5
B54: WACC | C54: Weighted Average Cost of Capital | D54: WEIGHTED AVERAGE COST OF CAPITAL | E54: 1
B58: Financial | C58: Calendar | E58: PREVIOUS | G58: CURRENT | I58: FORTHCOMING
B59: 1987-88 | C59: 1988 | D59: PRCP_y1 | E59: =INDEX(INDIRECT(dms_RPT),dms_PRCP_start_row) -> 2016-17 | F59: CRCP_y1 | G59: =INDEX(INDIRECT(dms_RPT),dms_CRCP_start_row) -> 2021-22 | H59: =FRCP_y1 -> 2026-27 | I59: =INDEX(INDIRECT(dms_RPT),dms_FRCP_start_row) -> 2026-27
B60: 1988-89 | C60: 1989 | D60: PRCP_y2 | E60: =INDEX(INDIRECT(dms_RPT),dms_PRCP_start_row+1) -> 2017-18 | F60: CRCP_y2 | G60: =INDEX(INDIRECT(dms_RPT),dms_CRCP_start_row+1) -> 2022-23 | H60: FRCP_y2 | I60: =INDEX(INDIRECT(dms_RPT),dms_FRCP_start_row+1) -> 2027-28
B61: 1989-90 | C61: 1990 | D61: PRCP_y3 | E61: =INDEX(INDIRECT(dms_RPT),dms_PRCP_start_row+2) -> 2018-19 | F61: CRCP_y3 | G61: =INDEX(INDIRECT(dms_RPT),dms_CRCP_start_row+2) -> 2023-24 | H61: FRCP_y3 | I61: =INDEX(INDIRECT(dms_RPT),dms_FRCP_start_row+2) -> 2028-29
B62: 1990-91 | C62: 1991 | D62: PRCP_y4 | E62: =INDEX(INDIRECT(dms_RPT),dms_PRCP_start_row+3) -> 2019-20 | F62: CRCP_y4 | G62: =INDEX(INDIRECT(dms_RPT),dms_CRCP_start_row+3) -> 2024-25 | H62: FRCP_y4 | I62: =INDEX(INDIRECT(dms_RPT),dms_FRCP_start_row+3) -> 2029-30
B63: 1991-92 | C63: 1992 | D63: PRCP_y5 | E63: =INDEX(INDIRECT(dms_RPT),dms_PRCP_start_row+4) -> 2020-21 | F63: CRCP_y5 | G63: =INDEX(INDIRECT(dms_RPT),dms_CRCP_start_row+4) -> 2025-26 | H63: FRCP_y5 | I63: =INDEX(INDIRECT(dms_RPT),dms_FRCP_start_row+4) -> 2030-31
B64: 1992-93 | C64: 1993 | D64: PRCP_y6 | E64: =INDEX(INDIRECT(dms_RPT),dms_PRCP_start_row+5) -> 2021-22 | F64: CRCP_y6 | G64: =INDEX(INDIRECT(dms_RPT),dms_CRCP_start_row+5) -> 2026-27 | H64: FRCP_y6 | I64: =INDEX(INDIRECT(dms_RPT),dms_FRCP_start_row+5) -> 2031-32
B65: 1993-94 | C65: 1994 | D65: PRCP_y7 | E65: =INDEX(INDIRECT(dms_RPT),dms_PRCP_start_row+6) -> 2022-23 | F65: CRCP_y7 | G65: =INDEX(INDIRECT(dms_RPT),dms_CRCP_start_row+6) -> 2027-28 | H65: FRCP_y7 | I65: =INDEX(INDIRECT(dms_RPT),dms_FRCP_start_row+6) -> 2032-33
B66: 1994-95 | C66: 1995 | D66: PRCP_y8 | E66: =INDEX(INDIRECT(dms_RPT),dms_PRCP_start_row+7) -> 2023-24 | F66: CRCP_y8 | G66: =INDEX(INDIRECT(dms_RPT),dms_CRCP_start_row+7) -> 2028-29 | H66: FRCP_y8 | I66: =INDEX(INDIRECT(dms_RPT),dms_FRCP_start_row+7) -> 2033-34
B67: 1995-96 | C67: 1996 | D67: PRCP_y9 | E67: =INDEX(INDIRECT(dms_RPT),dms_PRCP_start_row+8) -> 2024-25 | F67: CRCP_y9 | G67: =INDEX(INDIRECT(dms_RPT),dms_CRCP_start_row+8) -> 2029-30 | H67: FRCP_y9 | I67: =INDEX(INDIRECT(dms_RPT),dms_FRCP_start_row+8) -> 2034-35
B68: 1996-97 | C68: 1997 | D68: PRCP_y10 | E68: =INDEX(INDIRECT(dms_RPT),dms_PRCP_start_row+9) -> 2025-26 | F68: CRCP_y10 | G68: =INDEX(INDIRECT(dms_RPT),dms_CRCP_start_row+9) -> 2030-31 | H68: FRCP_y10 | I68: =INDEX(INDIRECT(dms_RPT),dms_FRCP_start_row+9) -> 2035-36
B69: 1997-98 | C69: 1998 | D69: PRCP_y11 | E69: =INDEX(INDIRECT(dms_RPT),dms_PRCP_start_row+10) -> 2026-27 | F69: CRCP_y11 | G69: =INDEX(INDIRECT(dms_RPT),dms_CRCP_start_row+10) -> 2031-32 | H69: FRCP_y11 | I69: =INDEX(INDIRECT(dms_RPT),dms_FRCP_start_row+10) -> 2036-37
B70: 1998-99 | C70: 1999 | D70: PRCP_y12 | E70: =INDEX(INDIRECT(dms_RPT),dms_PRCP_start_row+11) -> 2027-28 | F70: CRCP_y12 | G70: =INDEX(INDIRECT(dms_RPT),dms_CRCP_start_row+11) -> 2032-33 | H70: FRCP_y12 | I70: =INDEX(INDIRECT(dms_RPT),dms_FRCP_start_row+11) -> 2037-38
B71: 1999-00 | C71: 2000 | D71: PRCP_y13 | E71: =INDEX(INDIRECT(dms_RPT),dms_PRCP_start_row+12) -> 2028-29 | F71: CRCP_y13 | G71: =INDEX(INDIRECT(dms_RPT),dms_CRCP_start_row+12) -> 2033-34 | H71: FRCP_y13 | I71: =INDEX(INDIRECT(dms_RPT),dms_FRCP_start_row+12) -> 2038-39
B72: 2000-01 | C72: 2001 | D72: PRCP_y14 | E72: =INDEX(INDIRECT(dms_RPT),dms_PRCP_start_row+13) -> 2029-30 | F72: CRCP_y14 | G72: =INDEX(INDIRECT(dms_RPT),dms_CRCP_start_row+13) -> 2034-35 | H72: FRCP_y14 | I72: =INDEX(INDIRECT(dms_RPT),dms_FRCP_start_row+13) -> 2039-40
B73: 2001-02 | C73: 2002 | D73: PRCP_y15 | E73: =INDEX(INDIRECT(dms_RPT),dms_PRCP_start_row+14) -> 2030-31 | F73: CRCP_y15 | G73: =INDEX(INDIRECT(dms_RPT),dms_CRCP_start_row+14) -> 2035-36 | H73: FRCP_y15 | I73: =INDEX(INDIRECT(dms_RPT),dms_FRCP_start_row+14) -> 2040-41
B74: 2002-03 | C74: 2003 | D74: PRCP_y16 | E74: =INDEX(INDIRECT(dms_RPT),dms_PRCP_start_row+15) -> 2031-32 | F74: CRCP_y16 | G74: =INDEX(INDIRECT(dms_RPT),dms_CRCP_start_row+15) -> 2036-37 | H74: FRCP_y16 | I74: =INDEX(INDIRECT(dms_RPT),dms_FRCP_start_row+15) -> 2041-42
B75: 2003-04 | C75: 2004 | D75: PRCP_y17 | E75: =INDEX(INDIRECT(dms_RPT),dms_PRCP_start_row+16) -> 2032-33 | F75: CRCP_y17 | G75: =INDEX(INDIRECT(dms_RPT),dms_CRCP_start_row+16) -> 2037-38 | H75: FRCP_y17 | I75: =INDEX(INDIRECT(dms_RPT),dms_FRCP_start_row+16) -> 2042-43
B76: 2004-05 | C76: 2005 | D76: PRCP_y18 | E76: =INDEX(INDIRECT(dms_RPT),dms_PRCP_start_row+17) -> 2033-34 | F76: CRCP_y18 | G76: =INDEX(INDIRECT(dms_RPT),dms_CRCP_start_row+17) -> 2038-39 | H76: FRCP_y18 | I76: =INDEX(INDIRECT(dms_RPT),dms_FRCP_start_row+17) -> 2043-44
B77: 2005-06 | C77: 2006 | D77: PRCP_y19 | E77: =INDEX(INDIRECT(dms_RPT),dms_PRCP_start_row+18) -> 2034-35 | F77: CRCP_y19 | G77: =INDEX(INDIRECT(dms_RPT),dms_CRCP_start_row+18) -> 2039-40 | H77: FRCP_y19 | I77: =INDEX(INDIRECT(dms_RPT),dms_FRCP_start_row+18) -> 2044-45
B78: 2006-07 | C78: 2007 | D78: PRCP_y20 | E78: =INDEX(INDIRECT(dms_RPT),dms_PRCP_start_row+19) -> 2035-36 | F78: CRCP_y20 | G78: =INDEX(INDIRECT(dms_RPT),dms_CRCP_start_row+19) -> 2040-41 | H78: FRCP_y20 | I78: =INDEX(INDIRECT(dms_RPT),dms_FRCP_start_row+19) -> 2045-46
B79: 2007-08 | C79: 2008 | D79: PRCP_y21 | E79: =INDEX(INDIRECT(dms_RPT),dms_PRCP_start_row+20) -> 2036-37 | F79: CRCP_y21 | G79: =INDEX(INDIRECT(dms_RPT),dms_CRCP_start_row+20) -> 2041-42 | H79: FRCP_y21 | I79: =INDEX(INDIRECT(dms_RPT),dms_FRCP_start_row+20) -> 2046-47
B80: 2008-09 | C80: 2009 | D80: PRCP_y22 | E80: =INDEX(INDIRECT(dms_RPT),dms_PRCP_start_row+21) -> 2037-38 | F80: CRCP_y22 | G80: =INDEX(INDIRECT(dms_RPT),dms_CRCP_start_row+21) -> 2042-43 | H80: FRCP_y22 | I80: =INDEX(INDIRECT(dms_RPT),dms_FRCP_start_row+21) -> 2047-48
B81: 2009-10 | C81: 2010 | D81: PRCP_y23 | E81: =INDEX(INDIRECT(dms_RPT),dms_PRCP_start_row+22) -> 2038-39 | F81: CRCP_y23 | G81: =INDEX(INDIRECT(dms_RPT),dms_CRCP_start_row+22) -> 2043-44 | H81: FRCP_y23 | I81: =INDEX(INDIRECT(dms_RPT),dms_FRCP_start_row+22) -> 2048-49
B82: 2010-11 | C82: 2011 | D82: PRCP_y24 | E82: =INDEX(INDIRECT(dms_RPT),dms_PRCP_start_row+23) -> 2039-40 | F82: CRCP_y24 | G82: =INDEX(INDIRECT(dms_RPT),dms_CRCP_start_row+23) -> 2044-45 | H82: FRCP_y24 | I82: =INDEX(INDIRECT(dms_RPT),dms_FRCP_start_row+23) -> 2049-50
B83: 2011-12 | C83: 2012 | D83: PRCP_y25 | E83: =INDEX(INDIRECT(dms_RPT),dms_PRCP_start_row+24) -> 2040-41 | F83: CRCP_y25 | G83: =INDEX(INDIRECT(dms_RPT),dms_CRCP_start_row+24) -> 2045-46 | H83: FRCP_y25 | I83: =INDEX(INDIRECT(dms_RPT),dms_FRCP_start_row+24) -> 2050-51
B84: 2012-13 | C84: 2013
B85: 2013-14 | C85: 2014
B86: 2014-15 | C86: 2015
B87: 2015-16 | C87: 2016
B88: 2016-17 | C88: 2017
B89: 2017-18 | C89: 2018
B90: 2018-19 | C90: 2019
B91: 2019-20 | C91: 2020
B92: 2020-21 | C92: 2021
B93: 2021-22 | C93: 2022 | E93: CRY - FRY
B94: 2022-23 | C94: 2023 | D94: dms_y1 | E94: =IFERROR(INDEX(INDIRECT(dms_RPT),dms_CRY_start_row),0) -> 2022-23
B95: 2023-24 | C95: 2024 | D95: dms_y2 | E95: =IFERROR(INDEX(INDIRECT(dms_RPT),dms_CRY_start_row+1),0) -> 2023-24
B96: 2024-25 | C96: 2025 | D96: dms_y3 | E96: =IFERROR(INDEX(INDIRECT(dms_RPT),dms_CRY_start_row+2),0) -> 2024-25
B97: 2025-26 | C97: 2026 | D97: dms_y4 | E97: =IFERROR(INDEX(INDIRECT(dms_RPT),dms_CRY_start_row+3),0) -> 2025-26
B98: 2026-27 | C98: 2027 | D98: dms_y5 | E98: =IFERROR(INDEX(INDIRECT(dms_RPT),dms_CRY_start_row+4),0) -> 2026-27
B99: 2027-28 | C99: 2028 | D99: dms_y6 | E99: =IFERROR(INDEX(INDIRECT(dms_RPT),dms_CRY_start_row+5),0) -> 2027-28
B100: 2028-29 | C100: 2029 | D100: dms_y7 | E100: =IFERROR(INDEX(INDIRECT(dms_RPT),dms_CRY_start_row+6),0) -> 2028-29
B101: 2029-30 | C101: 2030 | D101: dms_y8 | E101: =IFERROR(INDEX(INDIRECT(dms_RPT),dms_CRY_start_row+7),0) -> 2029-30
B102: 2030-31 | C102: 2031 | D102: dms_y9 | E102: =IFERROR(INDEX(INDIRECT(dms_RPT),dms_CRY_start_row+8),0) -> 2030-31
B103: 2031-32 | C103: 2032 | D103: dms_y10 | E103: =IFERROR(INDEX(INDIRECT(dms_RPT),dms_CRY_start_row+9),0) -> 2031-32
B104: 2032-33 | C104: 2033 | D104: dms_y11 | E104: =IFERROR(INDEX(INDIRECT(dms_RPT),dms_CRY_start_row+10),0) -> 2032-33
B105: 2033-34 | C105: 2034 | D105: dms_y12 | E105: =IFERROR(INDEX(INDIRECT(dms_RPT),dms_CRY_start_row+11),0) -> 2033-34
B106: 2034-35 | C106: 2035 | D106: dms_y13 | E106: =IFERROR(INDEX(INDIRECT(dms_RPT),dms_CRY_start_row+12),0) -> 2034-35
B107: 2035-36 | C107: 2036 | D107: dms_y14 | E107: =IFERROR(INDEX(INDIRECT(dms_RPT),dms_CRY_start_row+13),0) -> 2035-36
B108: 2036-37 | C108: 2037 | D108: dms_y15 | E108: =IFERROR(INDEX(INDIRECT(dms_RPT),dms_CRY_start_row+14),0) -> 2036-37
B109: 2037-38 | C109: 2038 | D109: dms_y16 | E109: =IFERROR(INDEX(INDIRECT(dms_RPT),dms_CRY_start_row+15),0) -> 2037-38
B110: 2038-39 | C110: 2039 | D110: dms_y17 | E110: =IFERROR(INDEX(INDIRECT(dms_RPT),dms_CRY_start_row+16),0) -> 2038-39
B111: 2039-40 | C111: 2040 | D111: dms_y18 | E111: =IFERROR(INDEX(INDIRECT(dms_RPT),dms_CRY_start_row+17),0) -> 2039-40
B112: 2040-41 | C112: 2041 | D112: dms_y19 | E112: =IFERROR(INDEX(INDIRECT(dms_RPT),dms_CRY_start_row+18),0) -> 2040-41
B113: 2041-42 | C113: 2042 | D113: dms_y20 | E113: =IFERROR(INDEX(INDIRECT(dms_RPT),dms_CRY_start_row+19),0) -> 2041-42
B114: 2042-43 | C114: 2043 | D114: dms_y21 | E114: =IFERROR(INDEX(INDIRECT(dms_RPT),dms_CRY_start_row+20),0) -> 2042-43
B115: 2043-44 | C115: 2044 | D115: dms_y22 | E115: =IFERROR(INDEX(INDIRECT(dms_RPT),dms_CRY_start_row+21),0) -> 2043-44
B116: 2044-45 | C116: 2045 | D116: dms_y23 | E116: =IFERROR(INDEX(INDIRECT(dms_RPT),dms_CRY_start_row+22),0) -> 2044-45
B117: 2045-46 | C117: 2046 | D117: dms_y24 | E117: =IFERROR(INDEX(INDIRECT(dms_RPT),dms_CRY_start_row+23),0) -> 2045-46
B118: 2046-47 | C118: 2047 | D118: dms_y25 | E118: =IFERROR(INDEX(INDIRECT(dms_RPT),dms_CRY_start_row+24),0) -> 2046-47
B119: 2047-48 | C119: 2048 | D119: dms_y26 | E119: =IFERROR(INDEX(INDIRECT(dms_RPT),dms_CRY_start_row+25),0) -> 2047-48
B120: 2048-49 | C120: 2049
B121: 2049-50 | C121: 2050
B122: 2050-51 | C122: 2051

Sheet AER ETL (hidden)
B1: AER ETL INFORMATION
B3: USES NAMED RANGES FLAG | C3: yes | D3: dms_Defined_Names_Used
B5: IF THIS IS AN ABC RIN - make sure the the named range CRY is applied and the named range dms_dollar_nom_UOM is applied
B6: IF THIS IS A RESET RIN - make sure the named ranges CRY and dms_dollar_nom_UOM are NOT present in the workbook
B7: FOR ABC RINS THAT SPAN MULTIPLE YEARS - make sure MultiYear Flag is set and final year entered as required
B9: Full trading name | C9: =INDEX(dms_TradingNameFull_List,MATCH(dms_TradingName,dms_TradingName_List)) -> Powercor Australia | E9: dms_TradingNameFull
B10: Trading name | C10: =dms_TradingName -> Powercor Australia
B11: Unique ID | C11: =INDEX(dms_UID_List,MATCH(dms_TradingName,dms_TradingName_List)) -> EDDVIC400
A12: Selected here | B12: Model / RIN | C12: Reset | D12: dms_Model
A13: Read from Business & other details | B13: Source | C13: Regulatory proposal | D13: dms_Source | E13: =IF(dms_Model="Reset", "Make sure you have set Reg Proposal as source","") -> Make sure you have set Reg Proposal as source
B14: Data quality | C14: Consolidated | D14: For DB purposes this is always Consoldiated
B15: Data status | C15: Public | D15: For DB purposes this is always Public
B16: Amendment reason | C16: =dms_Amendment_Text -> . | F16: dms_AmendmentReason
B17: Submission date | C17: =dms_Typed_Submission_Date -> 31/01/25 | D17: dms_SubmissionDate
A19: Redundant | B19: EBSS - First application of scheme in forthcoming period? | C19: No
A20: Pre-populated from lookup table | B20: Data ingestion data quality | C20: Consolidated | D20: dms_DataQuality | E20: Always Consolidated
B21: Sector | C21: =INDEX(dms_Sector_List,MATCH(dms_TradingName,dms_TradingName_List)) -> Electricity | D21: dms_Sector | E21: =INDEX(dms_Sector_List,MATCH(dms_TradingName,dms_TradingName_List))
B22: Segment | C22: =INDEX(dms_Segment_List,MATCH(dms_TradingName,dms_TradingName_List)) -> Distribution | D22: dms_Segment | E22: =INDEX(dms_Segment_List,MATCH(dms_TradingName,dms_TradingName_List))
B23: Regulatory Year Ending | C23: =IF(dms_MultiYear_Flag=1,LEFT(dms_Specified_FinalYear,2)&RIGHT(dms_Specified_FinalYear,2),dms_RYE_result) -> 2031 | D23: dms_RYE | E23: =IF(dms_MultiYear_Flag=1,LEFT(dms_Specified_FinalYear,2)&RIGHT(dms_Specified_FinalYear,2),dms_RYE_result)
B24: Reporting Period Type | C24: Financial | D24: dms_RPT | E24: =INDEX(dms_RPT_List,MATCH(dms_TradingName,dms_TradingName_List))
B25: EB/CA Unit of Measure for Monetary Values | C25: $0s | D25: dms_dollar_nom_UOM | E25: =IF(dms_SingleYearModel="yes","This is set to an historical template (EB, CA or ARR), apply UOM Named Range to cell !","This is not an historical template, make sure UOM Named Range is not applied") -> This is not an historical template, make sure UOM Named Range is not applied | J25: =IFERROR(dms_dollar_nom_UOM, "NR not applied") -> NR not applied
B26: Security Classification | C26: Public | D26: dms_Classification | E26: Always Public
B27: Jurisdiction | C27: =INDEX(dms_JurisdictionList,MATCH(dms_TradingName,dms_TradingName_List)) -> Vic | D27: dms_Jurisdiction | E27: =INDEX(dms_JurisdictionList,MATCH(dms_TradingName,dms_TradingName_List))
A28: Relevant for PTRM, RFMs and Reset RINS | B28: $ REAL REFERENCES
B29: Does the named range CRY exist in this file? | C29: =IFERROR(CRY,"NO") -> 2022-23
B30: CRY-1 (last full calendar year before CRY) | C30: =IFERROR(IF(dms_RPT="calendar",CRY-1,LEFT(CRY,4)),"CRY not present") -> 2022 | D30: dms_Cal_Year_B4_CRY | E30: '=IF(dms_RPT="financial",VALUE(LEFT(dms_SingleYear_FinalYear_Result,4)),VALUE(LEFT(dms_SingleYear_FinalYear_Result,4)-1))
B31: Dollar $ real month | C31: =INDEX(dms_RPTMonth_List,MATCH(dms_TradingName,dms_TradingName_List)) -> June | D31: dms_RPTMonth | E31: =INDEX(dms_RPTMonth_List,MATCH(dms_TradingName,dms_TradingName_List))
B32: Dollar $ real (the last month before the FRCP_y1) | C32: =IF(dms_Model="RFM",dms_DollarReal_Prev, IF(dms_SingleYearModel="yes",CONCATENATE(dms_RPTMonth)&" "&VALUE((LEFT(dms_CRY_start_year,2)&RIGHT(dms_CRY_start_year,2))),CONCATENATE(dms_RPTMonth)&" "&dms_DollarReal_year)) -> June 2026 | D32: dms_DollarReal | E32: =IF(dms_Model="RFM",dms_DollarReal_Prev, IF(dms_SingleYearModel="yes",CONCATENATE(dms_RPTMonth)&" "&VALUE((LEFT(dms_CRY_start_year,2)&RIGHT(dms_CRY_start_year,2))),CONCATENATE(dms_RPTMonth)&" "&dms_DollarReal_year))
B33: Dollar $ real previous year (PRCP_y5) | C33: =CONCATENATE(dms_RPTMonth)&" "&dms_Previous_DollarReal_year -> June 2021 | D33: dms_DollarReal_Prev | E33: =IF(SUM(dms_SingleYear_Model)>0,CONCATENATE(dms_RPTMonth)&" "&VALUE(((LEFT(CRY,2))&RIGHT(CRY,2))-1),CONCATENATE(dms_RPTMonth)&" "&VALUE(((LEFT(dms_CRCP_FirstYear_Result,2)&RIGHT(dms_CRCP_FirstYear_Result,2))))-1)
B34: PTRM/ RFMs
B35: Form of control | C35: =INDEX(dms_FormControl_List,MATCH(dms_TradingName,dms_TradingName_List)) -> Revenue cap | D35: dms_FormControl | E35: =INDEX(dms_FormControl_List,MATCH(dms_TradingName,dms_TradingName_List))
A36: All potential values for Regulatory Years or RYEs as calculated | B36: This block works out the various RYE's for ALL RIN types and MODELS
B37: dms_start_year | C37: =FRCP_y1 -> 2026-27 | D37: =FRCP_y1 | E37: FRCP_y1 from cover sheet
B38: dms_CRY_start_year | C38: =IFERROR(CRY,CRCP_y4) -> 2022-23 | D38: =IFERROR(CRY,CRCP_y4)
B39: dms_CRY_start_row | C39: =IFERROR(MATCH(dms_CRY_start_year,INDIRECT(dms_RPT),0),0) -> 36 | D39: =IFERROR(MATCH(dms_CRY_start_year,INDIRECT(dms_RPT),0),0)
B40: dms_FRCP_start_row | C40: =MATCH(dms_start_year,INDIRECT(dms_RPT),0) -> 40 | D40: =MATCH(dms_start_year,INDIRECT(dms_RPT),0) | E40: Uses FRCP_y1 as a start reference
B41: dms_CRCP_start_row | C41: =dms_FRCP_start_row-dms_CRCPlength_Num -> 35 | D41: =dms_FRCP_start_row-dms_CRCPlength_Num | E41: Uses the value in dms_CRCPlength_Num
B42: dms_PRCP_start_row | C42: =dms_FRCP_start_row-dms_CRCPlength_Num-dms_PRCPlength_Num -> 30 | D42: =dms_FRCP_start_row-dms_CRCPlength_Num-dms_PRCPlength_Num | E42: Uses the value in dms_CRCPlength_Num and dms_PRCPlength_Num
B43: dms_RYE_start_row | C43: =dms_FRCP_start_row+(dms_FRCPlength_Num-1) -> 44 | D43: =dms_FRCP_start_row+(dms_FRCPlength_Num-1) | E43: Uses the value in dms_FRCPlength_Num-1
B44: FRCP_start_year | C44: =INDEX(INDIRECT(dms_RPT),dms_FRCP_start_row) -> 2026-27 | D44: =INDEX(INDIRECT(dms_RPT),dms_FRCP_start_row) | E44: Converts the FRCP start row to display the year
B45: CRCP_start_year | C45: =INDEX(INDIRECT(dms_RPT),dms_CRCP_start_row) -> 2021-22 | D45: =INDEX(INDIRECT(dms_RPT),dms_CRCP_start_row) | E45: Converts the CRCP start row to display the year
B46: PRCP_start_year | C46: =INDEX(INDIRECT(dms_RPT),dms_PRCP_start_row) -> 2016-17 | D46: =INDEX(INDIRECT(dms_RPT),dms_PRCP_start_row) | E46: Converts the PRCP start row to display the year
B47: FRCP_final_year | C47: =INDEX(INDIRECT(dms_RPT),dms_FRCP_start_row+dms_FRCPlength_Num-1) -> 2030-31 | D47: =INDEX(INDIRECT(dms_RPT),dms_FRCP_start_row+dms_FRCPlength_Num-1) | E47: Finds the FRCP final year
B48: CRCP_final_year | C48: =INDEX(INDIRECT(dms_RPT),dms_CRCP_start_row+dms_CRCPlength_Num-1) -> 2025-26 | D48: =INDEX(INDIRECT(dms_RPT),dms_CRCP_start_row+dms_CRCPlength_Num-1) | E48: Finds the CRCP final year
B49: PRCP_final_year | C49: =INDEX(INDIRECT(dms_RPT),dms_PRCP_start_row+dms_FRCPlength_Num-1) -> 2020-21 | D49: =INDEX(INDIRECT(dms_RPT),dms_PRCP_start_row+dms_FRCPlength_Num-1) | E49: Finds the PRCP final year
B50: dms_Reset_final_year | C50: =INDEX(INDIRECT(dms_RPT),dms_RYE_start_row) -> 2030-31 | D50: =INDEX(INDIRECT(dms_RPT),dms_RYE_start_row) | E50: For Resets and PTRM/RFMs (same as FRCP_final_year)
B51: dms_SpecifiedYear_final_year | C51: =FRY -> 2028-29 | D51: =FRY | E51: FRY from cover sheet
B52: dms_DollarReal_year | C52: =LEFT(CRCP_final_year,2)&RIGHT(CRCP_final_year,2) -> 2026 | D52: =LEFT(CRCP_final_year,2)&RIGHT(CRCP_final_year,2) | E52: Uses the value in CRCP_final_year
B53: dms_Previous_DollarReal_year | C53: =LEFT(PRCP_final_year,2)&RIGHT(PRCP_final_year,2) -> 2021 | D53: =LEFT(PRCP_final_year,2)&RIGHT(PRCP_final_year,2) | E53: Uses the value in PRCP_final_year
B54: dms_CRY_RYE | C54: =IFERROR(LEFT(CRY,2)&RIGHT(CRY,2),0) -> 2023 | D54: =IFERROR(LEFT(CRY,2)&RIGHT(CRY,2),0) | E54: For ABC single year RINS
B55: dms_Reset_RYE | C55: =IF(dms_Model_Span>1,IF(dms_Model="RFM",(LEFT(dms_DollarReal_year,2)&RIGHT(dms_DollarReal_year,2)),(LEFT(dms_Reset_final_year,2)&RIGHT(dms_Reset_final_year,2))),0) -> 2031 | D55: =IF(dms_Model_Span>1,IF(dms_Model="RFM",(LEFT(dms_DollarReal_year,2)&RIGHT(dms_DollarReal_year,2)),(LEFT(dms_Reset_final_year,2)&RIGHT(dms_Reset_final_year,2))),0) | E55: If model span > 1 then uses dms_Reset_RYE otherwise it's a multi year ABC and uses dms_Specified_RYE
B56: dms_Specified_RYE | C56: =IF(dms_MultiYear_ResponseFlag="Yes",(LEFT(dms_Specified_FinalYear,2)&RIGHT(dms_Specified_FinalYear,2)),0) -> 0 | D56: =IF(dms_MultiYear_ResponseFlag="Yes",(LEFT(dms_Specified_FinalYear,2)&RIGHT(dms_Specified_FinalYear,2)),0) | E56: If multi year ABC - uses dms_Specified_FinalYear
B57: dms_Model_Span | C57: =INDEX(dms_Model_Span_List,MATCH(dms_Model,dms_Model_List)) -> 5 | D57: =INDEX(dms_Model_Span_List,MATCH(dms_Model,dms_Model_List)) | E57: A result of 5 is used to signify that it is more than 1 year span
B58: dms_RYE_result | C58: =IF(dms_MultiYear_ResponseFlag="yes",dms_Specified_RYE,(IF(dms_Model_Span>1,dms_Reset_RYE,dms_CRY_RYE))) -> 2031 | D58: =IF(dms_MultiYear_ResponseFlag="yes",dms_Specified_RYE,(IF(dms_Model_Span>1,dms_Reset_RYE,dms_CRY_RYE))) | E58: Nested IF - feeds into dms_RYE
B59: dms_Reset_Span | C59: =IF(dms_Reset_RYE>0,CONCATENATE(FRCP_y1," to ",FRCP_final_year),0) -> 2026-27 to 2030-31 | D59: =IF(dms_Reset_RYE>0,CONCATENATE(FRCP_y1," to ",FRCP_final_year),0) | E59: Reset span of years as text
B60: dms_SpecifiedYear_Span | C60: =IF(dms_Specified_RYE>0,CONCATENATE(CRY," to ",dms_Specified_FinalYear),0) -> 0 | D60: =IF(dms_Specified_RYE>0,CONCATENATE(CRY," to ",dms_Specified_FinalYear),0) | E60: Multi year ABC span of years as text
B61: dms_Header_Span | C61: =IF(dms_MultiYear_Flag=1,dms_SpecifiedYear_Span,IF(dms_Model_Span>1,dms_y1&" to "&FRCP_final_year,CRY)) -> 2022-23 to 2030-31 | D61: =IF(dms_MultiYear_Flag=1,dms_SpecifiedYear_Span,IF(dms_Model_Span>1,dms_Reset_Span,CRY)) | E61: NESTED IF - for Sheet Headers
B62: ABC RINS THAT SPAN MULTIPLE YEARS
B63: This is a multi year ABC RIN? | C63: No
C64: =IF(dms_MultiYear_ResponseFlag="No",0,1) -> 0 | D64: dms_MultiYear_Flag | E64: This is set from the answer provided above
C65: =IF(dms_MultiYear_Flag=1,FRY,"not a Multiple year submission") -> not a Multiple year submission | D65: dms_Specified_FinalYear | E65: The result here is returned to dms_CRCP_FinalYear_Result if response to Q in C73 is "yes" and dms_MultiYear_Flag is set to 1
B66: Start year for 5.2 in Multi year ABC RINS | C66: =IFERROR(IF(dms_MultiYear_Flag=1,FRY,CRY),"not an ABC") -> 2022-23 | D66: dms_0502_Inst_Year | E66: =IF(dms_MultiYear_Flag=1,FRY,CRY) | G66: For single year RINS this is CRY - multi year RINS need to start a the end of the span of years (ie. FRY)
B67: WHAT IS THE RYE?
B68: Reg Period Lengths
B69: PRCP length in years | C69: =INDEX(dms_PRCPlength_List,MATCH(dms_TradingName,dms_TradingName_List)) -> 5 | D69: dms_PRCPlength_Num | E69: =INDEX(dms_PRCPlength_List,MATCH(dms_TradingName,dms_TradingName_List))
B70: CRCP length in years | C70: =INDEX(dms_CRCPlength_List,MATCH(dms_TradingName,dms_TradingName_List)) -> 5 | D70: dms_CRCPlength_Num | E70: =INDEX(dms_CRCPlength_List,MATCH(dms_TradingName,dms_TradingName_List))
B71: FRCP length in years | C71: =INDEX(dms_FRCPlength_List,MATCH(dms_TradingName,dms_TradingName_List)) -> 5 | D71: dms_FRCPlength_Num | E71: =INDEX(dms_FRCPlength_List,MATCH(dms_TradingName,dms_TradingName_List))
B72: Single year RIN?
B73: Single Year ABC RIN ? | C73: =IF(dms_Model="EB",1,0) -> 0 | D73: dms_EB
C74: =IF(dms_Model="CA",1,0) -> 0 | D74: dms_CA | E74: =dms_SingleYear_Model
C75: =IF(dms_Model="ARR",1,0) -> 0 | D75: dms_ARR
B76: Is this a single Year ABC RIN? | C76: =IF(SUM(dms_SingleYear_Model)=1,"yes","no") -> no | D76: dms_SingleYearModel | E76: =IF(SUM(dms_SingleYear_Model)=1,"yes","no")
B77: Single Year Final Year Result | C77: =IF(AND(dms_SingleYearModel="yes",dms_MultiYear_Flag=0),CRY,0) -> 0 | D77: dms_SingleYear_FinalYear_Result | E77: =IFERROR(IF(SUM(dms_SingleYear_Model)<>0,(INDIRECT(dms_SingleYear_FinalYear_Ref)),"not a single year RIN"),"CRY not present")
B78: Multi year RIN?
B80: Multi Year Reset/Model? | C80: =IF(dms_Model_Span>1,"yes","no") -> yes
B81: Final year result for Reset/Model | C81: =IF(dms_Model_Span>1,dms_Reset_final_year,0) -> 2030-31 | D81: dms_MultiYear_FinalYear_Result | E81: dms_CRCP_FinalYear_Result
B83: Multi Year ABC RIN? | C83: =IF(dms_MultiYear_Flag=1,"yes","no") -> no | D83: dms_MultiYear_ABC_RIN
B84: Final year result for ABC multi year | C84: =IF(dms_MultiYear_Flag=1,C51,0) -> 0
B86: EB RINS
B87: Calendar Year for table 3.6 data | C87: =IFERROR(IF(dms_Segment="Transmission",dms_Cal_Year_B4_CRY,CRY),"CRY not present") -> 2022-23 | D87: dms_0306_Year | E87: =IF(dms_Segment="Transmission",dms_Cal_Year_B4_CRY,CRY)
B88: CA RINS
B89: Find how many rows in tables 6.3 sustained interruptions? | E89: dms_060301_MaxRows only returns a valid value when cover sheet is attached to a CA file
C90: =IF(dms_Model<>"CA","not a CA","Is a CA") -> not a CA | E90: =IF(dms_Model<>"CA","not a CA","Is a CA")
B91: dms_060301_Avg_Duration_Sustained_Int_Values present? | C91: =IFERROR(IF(INDEX(dms_060301_Avg_Duration_Sustained_Int_Values,1,1)<>"","yes","no"),"no") -> no | D91: dms_060301_checkvalue | E91: =IFERROR(IF(INDEX(dms_060301_Avg_Duration_Sustained_Int_Values,1,1)<>"","yes","no"),"no")
C92: =IF(AND(dms_Model="CA",(dms_060301_checkvalue="no")),"error - NR not present","no errors") -> no errors | E92: =IF(AND(dms_Model="CA",(dms_060301_checkvalue="no")),"error - NR not present","no errors")
B93: Table 6.3.1 - last row reference | C93: =IFERROR(IF(dms_Model="CA",LOOKUP(2,1/(dms_060301_Avg_Duration_Sustained_Int_Values<>""),(ROW(dms_060301_Avg_Duration_Sustained_Int_Values))),"not a CA"),"6.3 not present") -> not a CA | D93: dms_060301_LastRow | E93: =IFERROR(IF(dms_Model="CA",LOOKUP(2,1/(dms_060301_Avg_Duration_Sustained_Int_Values<>""),(ROW(dms_060301_Avg_Duration_Sustained_Int_Values))),"not a CA"),"6.3 not present")
B94: Table 6.3.1 - max number rows | C94: =IFERROR(IF(dms_Model="CA",(dms_060301_LastRow-15),"not a CA"),"error") -> not a CA | D94: dms_060301_MaxRows | E94: =IFERROR(IF(dms_Model="CA",(dms_060301_LastRow-15),"not a CA"),"error")
B95: Table 6.6.3 - Public lighting repair - no. business days | C95: =INDEX(dms_663_List,MATCH(dms_TradingName,dms_TradingName_List)) -> 2 | D95: dms_663 | E95: =INDEX(dms_663_List,MATCH(dms_TradingName,dms_TradingName_List))
B96: ARR or RESET RINS
B97: How many rows in tables 6.1 or 6.7? (leap year?) | C97: insert dms_LeapYear NR if required | E97: 'dms_LeapYear is used to determine dms_060701_Max_Rows BUT it is only found on worksheet 6.1 or 6.7 and the date value in the cell is used to determine whether it is a leap year
B98: Is dms_LeapYear named range present? | C98: =IFERROR(IF(dms_LeapYear,"yes"),"no") -> no
B99: Table 6.7.1 - includes a leap year? | C99: =IFERROR(IF(MONTH(DATE(YEAR(dms_LeapYear),2,29))=2,"is a leap year","not a leap year"), "dms_LeapYear not present") -> dms_LeapYear not present | D99: dms_LeapYear_Result | E99: =IFERROR(IF(MONTH(DATE(YEAR(dms_LeapYear),2,29))=2,"is a leap year","not a leap year"),"dms_LeapYear not present")
B100: MaxRows if Reset and leap year | C100: =IF(dms_LeapYear_Result="is a leap year",1827,1826) -> 1826 | D100: dms_060701_Reset_MaxRows | E100: =IF(dms_LeapYear_Result="is a leap year",1827,1826) | H100: number of days present in Reset RIN table
B101: MaxRows if ARR and leap year | C101: =IF(dms_LeapYear_Result="is a leap year",366,365) -> 365 | D101: dms_060701_ARR_MaxRows | E101: =IF(dms_LeapYear_Result="is a leap year",366,365) | H101: number of days present in ARR RIN table
B102: Table 6.7.1 - Max Rows (leap year/ non leap year) | C102: =IF(dms_Model="ARR",dms_060701_ARR_MaxRows,IF(dms_Model="Reset",dms_060701_Reset_MaxRows,"not a relevant RIN type")) -> 1826 | D102: dms_060701_MaxRows | E102: =IF(dms_Model="ARR",dms_060701_ARR_MaxRows,IF(dms_Model="Reset",dms_060701_Reset_MaxRows,"not a relevant RIN type"))
B103: How many columns in 6.7? (4 or 5 feeder categories) | C103: =IF(dms_FifthFeeder_flag_NSP="NO","This NSP has only 4 feeder categories","This NSP has 5 feeder categories") -> This NSP has only 4 feeder categories
B104: Table 6.7.1 - Last column (# of feeder categories > 4) | C104: =IF(dms_FifthFeeder_flag_NSP="NO",10,12) -> 10 | D104: dms_060701_MaxCols | E104: =IF(dms_FifthFeeder_flag_NSP="NO",8,10)
B105: Table 6.7.1 - Number of offset rows | C105: =IF(dms_Model="ARR",15,9) -> 9 | D105: dms_060701_OffsetRows | E105: =IF(dms_Model="ARR",15,9)
B106: Start date for telephone answering in 6.1 or 6.7? | E106: Using 060101 as naming standard not 060701 for start dates
B107: Table 6.1.1 and 6.7.1 - Start Date as Text | C107: =IF(dms_SingleYearModel="yes",(CONCATENATE(IF(LEN(CRY)=4,"1-Jan-","1-Jul-"),LEFT(CRY,4))),(CONCATENATE(IF(LEN(PRCP_y4)=4,"1-Jan-","1-Jul-"),LEFT(PRCP_y4,4)))) -> 1-Jul-2019 | D107: dms_060101_StartDateTxt | E107: =IF(SUM(dms_SingleYear_Model)>1,(CONCATENATE(IF(LEN(CRY)=4,"1-Jan-","1-Jul-"),LEFT(CRY,4))),(CONCATENATE(IF(LEN(CRCP_y4)=4,"1-Jan-","1-Jul-"),LEFT(CRCP_y4,4))))
B108: Table 6.1.1 and 6.7.1 - Start Date as Date Value | C108: =DATEVALUE(dms_060101_StartDateTxt) -> 43647 | D108: dms_060101_StartDateVal | E108: =DATEVALUE(dms_060701_StartDateTxt)
B109: Does the NSP report MAIFI or MAIFIe | C109: =INDEX(dms_MAIFI_flag_List,MATCH(dms_TradingName,dms_TradingName_List)) -> YES | D109: dms_MAIFI_Flag
B110: ARRs
B111: How many rows in table 6.8? | C111: insert dms_060801_StartCell NR if required | E111: dms_060801_StartCell is only found on worksheet 6.8 and is used to determine the starting date for the date range
B112: Is dms_060801_StartCell named range present? | C112: yes | D112: Must be present for ARRs | E112: =IFERROR(IF((ROW(dms_060801_StartCell)-1)=1,"yes","yes"),"no")
B113: Table 6.8 - Number of offset rows | C113: 12 | D113: dms_0608_OffsetRows | E113: =IFERROR(IF(dms_Model="ARR",(ROW(dms_060801_StartCell)-1),"not an ARR"),"6.8 error")
B114: Table 6.8 - Last row | C114: 0 | D114: dms_0608_LastRow | E114: =IFERROR(IF(dms_060801_StartCell<>"",IF(dms_Model="ARR",(LOOKUP(2,1/(dms_060801_01_Values<>""),(ROW(dms_060801_01_Values)))),"not an ARR"),0),"0")
B115: Table 6.8 - MaxRows | C115: =IFERROR(IF(dms_Model="ARR",(MAX(0,dms_0608_LastRow-dms_0608_OffsetRows)),"not an ARR"),"0") -> not an ARR | D115: dms_060801_MaxRows | E115: =IFERROR(IF(dms_Model="ARR",(MAX(0,dms_0608_LastRow-dms_0608_OffsetRows)),"not an ARR"),"0")
B116: TNSP RESET RINS
B117: Table 7.9.4 only appears in TNSPs Reset RIN
B118: Table 7.9.4 - first year | C118: =LEFT(PRCP_y3,4) -> 2018 | D118: dms_070904_Start_Year | E118: =LEFT(PRCP_y3,4)
B120: MISC
B121: Public lighting NSP? | C121: =INDEX(dms_Public_Lighting_List,MATCH(dms_TradingName,dms_TradingName_List)) -> YES | D121: dms_Public_Lighting | E121: =INDEX(dms_Public_Lighting_List,MATCH(dms_TradingName,dms_TradingName_List))
B122: CBD Feeder for this business | C122: =INDEX(dms_CBD_flag,MATCH(dms_TradingName,dms_TradingName_List)) -> NO | D122: dms_CBD_flag_NSP
B123: Urban Feeder for this business | C123: =INDEX(dms_Urban_flag,MATCH(dms_TradingName,dms_TradingName_List)) -> YES | D123: dms_Urban_flag_NSP
B124: Short rural Feeder for this business | C124: =INDEX(dms_ShortRural_flag,MATCH(dms_TradingName,dms_TradingName_List)) -> YES | D124: dms_ShortRural_flag_NSP
B125: Long rural Feeder for this business | C125: =INDEX(dms_LongRural_flag,MATCH(dms_TradingName,dms_TradingName_List)) -> YES | D125: dms_LongRural_flag_NSP
B126: Fifth Feeder Category (eg. TasNetworks (D)) | C126: =INDEX(dms_FeederType_5_flag,MATCH(dms_TradingName,dms_TradingName_List)) -> NO | D126: dms_FifthFeeder_flag_NSP | E126: =INDEX(dms_FeederType_5_flag,MATCH(dms_TradingName,dms_TradingName_List))
B128: DISCARD FILES
B129: discard this record? | C129: NO | D129: dms_DISCARD | E129: If record is to be discarded from DB set this flag to YES
B131: SUBSET FILES
B132: Is this Submission File a Subset File | C132: NO | D132: dms_Partial
B135: REGULATORY YEARS FOR MULTI RYE SUBMISSIONS
B136: Multiple RYE flag | C136: NO | D136: dms_Multi_RYE_flag
C137: Manually specify RYE | D137: Named ranges to apply
C138: 2013 | D138: dms_RYE_01
C139: 2014 | D139: dms_RYE_02
C140: 2015 | D140: dms_RYE_03
C141: 2016 | D141: dms_RYE_04
C142: 2017 | D142: dms_RYE_05
C143: 2018 | D143: dms_RYE_06
C144: 2019 | D144: dms_RYE_07
C145: 2020 | D145: dms_RYE_08
C146: 2021 | D146: dms_RYE_09
